 Batch Number,Vendor Name,Invoice Number, Line,Line Amount,Account Description,Issue Date ,Total Amount Paid,Department,Proclass
290722K     ,ARCO GROUP THE                ,*944076895            ,1,154.75,PROTECTIVE CLOTHING                     ,04/08/2022,,Central Fire Safety,Clothing
290722K     ,ARCO GROUP THE                ,*944076895            ,2,154.75,PROTECTIVE CLOTHING                     ,04/08/2022,339.75,Central Fire Safety,Clothing
290722K     ,ARCO GROUP THE                ,*944076895            ,3,30.25,PROTECTIVE CLOTHING                     ,04/08/2022,,Central Fire Safety,Clothing
144037      ,PA CONSULTING SERVICES LTD    ,0000018095            ,1,24974,SOFTWARE COTS                           ,15/08/2022,24974,Grenfell Investigation Legal Costs,ICT
800182190   ,Tersus Consultancy Ltd        ,0000040890            ,1,895.39,REACTIVE ASBESTOS                       ,04/08/2022,895.39,Property Department,Works - Construction
800182189   ,Tersus Consultancy Ltd        ,0000040915            ,1,2035,REACTIVE ASBESTOS                       ,04/08/2022,2035,Property Department,Works - Construction
800182191   ,Tersus Consultancy Ltd        ,0000041132            ,1,1411.2,REACTIVE ASBESTOS                       ,04/08/2022,1411.2,Property Department,Works - Construction
800183080   ,Tersus Consultancy Ltd        ,0000042022            ,1,1461.2,REACTIVE ASBESTOS                       ,18/08/2022,1461.2,Property Department,Works - Construction
800183082   ,Tersus Consultancy Ltd        ,0000042024            ,1,1326.2,REACTIVE ASBESTOS                       ,18/08/2022,1326.2,Property Department,Works - Construction
010822B PROP,GARRAN LOCKERS LTD            ,0000051207            ,1,1495.6,WORKPLACE IMPROVEMENTS                  ,04/08/2022,1495.6,Property Department,Works - Construction
800182948   ,APEX LIFT & ESCALATOR         ,0000101839            ,1,52.3,PLANNED LIFTS                           ,04/08/2022,,Property Department,Facilities & Management Services
800182948   ,APEX LIFT & ESCALATOR         ,0000101839            ,2,75.33,PLANNED LIFTS                           ,04/08/2022,,Property Department,Facilities & Management Services
800182948   ,APEX LIFT & ESCALATOR         ,0000101839            ,3,52.31,PLANNED LIFTS                           ,04/08/2022,,Property Department,Facilities & Management Services
800182948   ,APEX LIFT & ESCALATOR         ,0000101839            ,4,52.31,PLANNED LIFTS                           ,04/08/2022,,Property Department,Facilities & Management Services
800182948   ,APEX LIFT & ESCALATOR         ,0000101839            ,5,52.31,PLANNED LIFTS                           ,04/08/2022,1174.87,Property Department,Facilities & Management Services
800182948   ,APEX LIFT & ESCALATOR         ,0000101839            ,6,224.92,PLANNED LIFTS                           ,04/08/2022,,Property Department,Facilities & Management Services
800182948   ,APEX LIFT & ESCALATOR         ,0000101839            ,7,52.3,PLANNED LIFTS                           ,04/08/2022,,Property Department,Facilities & Management Services
800182948   ,APEX LIFT & ESCALATOR         ,0000101839            ,8,104.62,PLANNED LIFTS                           ,04/08/2022,,Property Department,Facilities & Management Services
800182948   ,APEX LIFT & ESCALATOR         ,0000101839            ,9,52.3,PLANNED LIFTS                           ,04/08/2022,,Property Department,Facilities & Management Services
800182948   ,APEX LIFT & ESCALATOR         ,0000101839            ,10,162.16,PLANNED LIFTS                           ,04/08/2022,,Property Department,Facilities & Management Services
800182948   ,APEX LIFT & ESCALATOR         ,0000101839            ,11,52.31,PLANNED LIFTS                           ,04/08/2022,,Property Department,Facilities & Management Services
800182948   ,APEX LIFT & ESCALATOR         ,0000101839            ,12,52.31,PLANNED LIFTS                           ,04/08/2022,,Property Department,Facilities & Management Services
800182948   ,APEX LIFT & ESCALATOR         ,0000101839            ,13,104.61,PLANNED LIFTS                           ,04/08/2022,,Property Department,Facilities & Management Services
800182948   ,APEX LIFT & ESCALATOR         ,0000101839            ,14,52.31,PLANNED LIFTS                           ,04/08/2022,,Property Department,Facilities & Management Services
800182948   ,APEX LIFT & ESCALATOR         ,0000101839            ,15,32.47,PLANNED LIFTS                           ,04/08/2022,,Property Department,Facilities & Management Services
800183075   ,APEX LIFT & ESCALATOR         ,0000101848            ,1,31.28,PLANNED LIFTS                           ,11/08/2022,,Property Department,Facilities & Management Services
800183075   ,APEX LIFT & ESCALATOR         ,0000101848            ,2,21.71,PLANNED LIFTS                           ,11/08/2022,,Property Department,Facilities & Management Services
800183075   ,APEX LIFT & ESCALATOR         ,0000101848            ,3,21.71,PLANNED LIFTS                           ,11/08/2022,579.28,Property Department,Facilities & Management Services
800183075   ,APEX LIFT & ESCALATOR         ,0000101848            ,4,93.36,PLANNED LIFTS                           ,11/08/2022,,Property Department,Facilities & Management Services
800183075   ,APEX LIFT & ESCALATOR         ,0000101848            ,5,21.71,PLANNED LIFTS                           ,11/08/2022,,Property Department,Facilities & Management Services
800183075   ,APEX LIFT & ESCALATOR         ,0000101848            ,6,21.71,PLANNED LIFTS                           ,11/08/2022,,Property Department,Facilities & Management Services
800183075   ,APEX LIFT & ESCALATOR         ,0000101848            ,7,43.42,PLANNED LIFTS                           ,11/08/2022,,Property Department,Facilities & Management Services
800183075   ,APEX LIFT & ESCALATOR         ,0000101848            ,8,67.31,PLANNED LIFTS                           ,11/08/2022,,Property Department,Facilities & Management Services
800183075   ,APEX LIFT & ESCALATOR         ,0000101848            ,9,21.71,PLANNED LIFTS                           ,11/08/2022,,Property Department,Facilities & Management Services
800183075   ,APEX LIFT & ESCALATOR         ,0000101848            ,10,235.36,PLANNED LIFTS                           ,11/08/2022,,Property Department,Facilities & Management Services
250722B PROP,S W BRUCE & CO LTD            ,0000113500            ,1,48930.44,DEVELOPMENT  EXPENSES-CONTRACT          ,08/08/2022,48930.44,Property Department,Consultancy
210722K1    ,HUNTERS CONTRACTS LIMITED     ,0000409347            ,1,354.2,OFFICE FURNITURE                        ,08/08/2022,354.2,Fire Stations (North East),Furniture & Soft Furnishings
020822K     ,HUNTERS CONTRACTS LIMITED     ,0000409362            ,1,353,OFFICE FURNITURE                        ,08/08/2022,353,Fire Stations (North West),Furniture & Soft Furnishings
020822K     ,HUNTERS CONTRACTS LIMITED     ,0000409363            ,1,438,OFFICE FURNITURE                        ,08/08/2022,791,Fire Stations (North West),Furniture & Soft Furnishings
020822K     ,HUNTERS CONTRACTS LIMITED     ,0000409363            ,2,353,OFFICE FURNITURE                        ,08/08/2022,,Fire Stations (North West),Furniture & Soft Furnishings
020822K     ,HUNTERS CONTRACTS LIMITED     ,0000409400            ,1,657,OFFICE FURNITURE                        ,15/08/2022,657,Fire Stations (North West),Furniture & Soft Furnishings
190822B     ,HUNTERS CONTRACTS LIMITED     ,0000409418            ,1,585.87,OFFICE FURNITURE                        ,25/08/2022,585.87,Fire Stations (South West),Furniture & Soft Furnishings
170822P     ,HUNTERS CONTRACTS LIMITED     ,0000409518            ,1,986,OFFICE FURNITURE                        ,25/08/2022,986,Control and Mobilising,Furniture & Soft Furnishings
144037      ,FIELD FISHER LLP              ,000234581             ,1,40809.9,LEGAL PROFESSIONAL FEES-GENERL          ,15/08/2022,40809.9,Grenfell Investigation Legal Costs,Legal Services
144037      ,FIELD FISHER LLP              ,000234792             ,1,2230.2,LEGAL PROFESSIONAL FEES-GENERL          ,15/08/2022,2230.2,Grenfell Investigation Legal Costs,Legal Services
144054      ,FIELD FISHER LLP              ,000237626             ,1,500,LEGAL PROFESSIONAL FEES-GENERL          ,18/08/2022,500,Grenfell Investigation Legal Costs,Legal Services
144054      ,FIELD FISHER LLP              ,000239109             ,1,24606.5,LEGAL PROFESSIONAL FEES-GENERL          ,25/08/2022,24606.5,Grenfell Investigation Legal Costs,Legal Services
144054      ,FIELD FISHER LLP              ,000239113             ,1,7025.4,LEGAL PROFESSIONAL FEES-GENERL          ,25/08/2022,7025.4,Grenfell Investigation Legal Costs,Legal Services
800183000,Reed Specialist Recruitment   ,0238352084D1          ,1,1143.80,FRS STAFF AGENCY                        ,25/08/2022,1143.80,Finance Services,Human Resources
800183002   ,Reed Specialist Recruitment   ,0238370197D1          ,1,1143.8,FRS STAFF AGENCY                        ,25/08/2022,1143.8,Finance Services,Human Resources
290722B     ,PAIDEIA TRAINING & CONSULTANCY,0405/LFBEDI2360003300 ,1,5475,CULTURAL CHANGE & TALENT                ,04/08/2022,5475,People Services,Human Resources
260722P     ,BT GLOBAL SERVICES            ,0790347904            ,1,541.66,TELECOMMUNICATIONS                      ,01/08/2022,541.66,Enterprise Application Group (ICT),ICT
170822P     ,AIRWAVE SOLUTIONS LTD         ,0900000186-062        ,1,3971.28,RADIO EQUIPMENT                         ,25/08/2022,3971.28,London Resilience Group,ICT
270722P     ,AIRWAVE SOLUTIONS LTD         ,0941000028-090        ,1,172.8,RADIO                                   ,01/08/2022,345.6,Enterprise Application Group (ICT),ICT
270722P     ,AIRWAVE SOLUTIONS LTD         ,0941000028-090        ,2,172.8,RADIO                                   ,01/08/2022,,Enterprise Application Group (ICT),ICT
170822P     ,AIRWAVE SOLUTIONS LTD         ,0941000028-091        ,1,172.8,RADIO                                   ,30/08/2022,345.6,Enterprise Application Group (ICT),ICT
170822P     ,AIRWAVE SOLUTIONS LTD         ,0941000028-091        ,2,172.8,RADIO                                   ,30/08/2022,,Enterprise Application Group (ICT),ICT
144030      ,BAA BUSINESS SUPPORT CENTRE   ,1000365654            ,1,1129.03,ELECTRICITY                             ,01/08/2022,1129.03,Property Department,Utilities
144054      ,BEVAN BRITTAN                 ,10182832              ,1,5157.3,LEGAL PROFESSIONAL FEES-GENERL          ,18/08/2022,5157.3,Procurement,Legal Services
144054      ,BEVAN BRITTAN                 ,10190190              ,1,3879,LEGAL PROFESSIONAL FEES-GENERL          ,18/08/2022,3879,Procurement,Legal Services
144034      ,BEVAN BRITTAN                 ,10192082              ,1,2845.3,PROFESSIONAL FEES GENERAL               ,04/08/2022,2845.3,General Counsel,Legal Services
144054      ,BEVAN BRITTAN                 ,10192250              ,1,4116,LEGAL PROFESSIONAL FEES-GENERL          ,18/08/2022,4116,Procurement,Legal Services
144031      ,MISS AMELIA HIGHNAM           ,102                   ,1,4380,LEGAL PROFESSIONAL FEES-GENERL          ,01/08/2022,4380,Grenfell Investigation Legal Costs,Legal Services
800182946   ,KIER BUILDING SERV ENGINEERS  ,10291785              ,1,862.6,REACTIVE MEP                            ,04/08/2022,862.6,Property Department,Works - Construction
800182932   ,KIER BUILDING SERV ENGINEERS  ,10291786              ,1,110,REACTIVE MEP                            ,04/08/2022,,Property Department,Works - Construction
800182932   ,KIER BUILDING SERV ENGINEERS  ,10291786              ,2,33.12,REACTIVE MEP                            ,04/08/2022,,Property Department,Works - Construction
800182932   ,KIER BUILDING SERV ENGINEERS  ,10291786              ,3,160.86,REACTIVE MEP                            ,04/08/2022,,Property Department,Works - Construction
800182932   ,KIER BUILDING SERV ENGINEERS  ,10291786              ,4,62.92,REACTIVE MEP                            ,04/08/2022,,Property Department,Works - Construction
800182932   ,KIER BUILDING SERV ENGINEERS  ,10291786              ,5,228.44,REACTIVE MEP                            ,04/08/2022,,Property Department,Works - Construction
800182932   ,KIER BUILDING SERV ENGINEERS  ,10291786              ,6,73.3,REACTIVE MEP                            ,04/08/2022,,Property Department,Works - Construction
800182932   ,KIER BUILDING SERV ENGINEERS  ,10291786              ,7,12.92,REACTIVE MEP                            ,04/08/2022,,Property Department,Works - Construction
800182932   ,KIER BUILDING SERV ENGINEERS  ,10291786              ,8,31.41,REACTIVE MEP                            ,04/08/2022,,Property Department,Works - Construction
800182932   ,KIER BUILDING SERV ENGINEERS  ,10291786              ,9,228.44,REACTIVE MEP                            ,04/08/2022,,Property Department,Works - Construction
800182932   ,KIER BUILDING SERV ENGINEERS  ,10291786              ,10,174.47,REACTIVE MEP                            ,04/08/2022,,Property Department,Works - Construction
800182932   ,KIER BUILDING SERV ENGINEERS  ,10291786              ,11,212.28,REACTIVE MEP                            ,04/08/2022,,Property Department,Works - Construction
800182932   ,KIER BUILDING SERV ENGINEERS  ,10291786              ,12,225.6,REACTIVE MEP                            ,04/08/2022,,Property Department,Works - Construction
800182932   ,KIER BUILDING SERV ENGINEERS  ,10291786              ,13,119.7,REACTIVE MEP                            ,04/08/2022,,Property Department,Works - Construction
800182932   ,KIER BUILDING SERV ENGINEERS  ,10291786              ,14,1.14,REACTIVE MEP                            ,04/08/2022,,Property Department,Works - Construction
800182932   ,KIER BUILDING SERV ENGINEERS  ,10291786              ,15,25.57,REACTIVE MEP                            ,04/08/2022,,Property Department,Works - Construction
800182932   ,KIER BUILDING SERV ENGINEERS  ,10291786              ,16,157.06,REACTIVE MEP                            ,04/08/2022,,Property Department,Works - Construction
800182932   ,KIER BUILDING SERV ENGINEERS  ,10291786              ,17,109.47,REACTIVE MEP                            ,04/08/2022,,Property Department,Works - Construction
800182932   ,KIER BUILDING SERV ENGINEERS  ,10291786              ,18,65.68,REACTIVE MEP                            ,04/08/2022,20553.57,Property Department,Works - Construction
800182932   ,KIER BUILDING SERV ENGINEERS  ,10291786              ,19,6.46,REACTIVE MEP                            ,04/08/2022,,Property Department,Works - Construction
800182932   ,KIER BUILDING SERV ENGINEERS  ,10291786              ,20,59.02,REACTIVE MEP                            ,04/08/2022,,Property Department,Works - Construction
800182932   ,KIER BUILDING SERV ENGINEERS  ,10291786              ,21,37.92,REACTIVE MEP                            ,04/08/2022,,Property Department,Works - Construction
800182932   ,KIER BUILDING SERV ENGINEERS  ,10291786              ,22,91.37,REACTIVE MEP                            ,04/08/2022,,Property Department,Works - Construction
800182932   ,KIER BUILDING SERV ENGINEERS  ,10291786              ,23,103.17,REACTIVE MEP                            ,04/08/2022,,Property Department,Works - Construction
800182932   ,KIER BUILDING SERV ENGINEERS  ,10291786              ,24,54.26,REACTIVE MEP                            ,04/08/2022,,Property Department,Works - Construction
800182932   ,KIER BUILDING SERV ENGINEERS  ,10291786              ,25,189.43,REACTIVE MEP                            ,04/08/2022,,Property Department,Works - Construction
800182932   ,KIER BUILDING SERV ENGINEERS  ,10291786              ,26,23.07,REACTIVE MEP                            ,04/08/2022,,Property Department,Works - Construction
800182932   ,KIER BUILDING SERV ENGINEERS  ,10291786              ,27,58.15,REACTIVE MEP                            ,04/08/2022,,Property Department,Works - Construction
800182932   ,KIER BUILDING SERV ENGINEERS  ,10291786              ,28,36,REACTIVE MEP                            ,04/08/2022,,Property Department,Works - Construction
800182932   ,KIER BUILDING SERV ENGINEERS  ,10291786              ,29,204.42,REACTIVE MEP                            ,04/08/2022,,Property Department,Works - Construction
800182932   ,KIER BUILDING SERV ENGINEERS  ,10291786              ,30,120.94,REACTIVE MEP                            ,04/08/2022,,Property Department,Works - Construction
800182932   ,KIER BUILDING SERV ENGINEERS  ,10291786              ,31,62.83,REACTIVE MEP                            ,04/08/2022,,Property Department,Works - Construction
800182932   ,KIER BUILDING SERV ENGINEERS  ,10291786              ,32,34.15,REACTIVE MEP                            ,04/08/2022,,Property Department,Works - Construction
800182932   ,KIER BUILDING SERV ENGINEERS  ,10291786              ,33,46.84,REACTIVE MEP                            ,04/08/2022,,Property Department,Works - Construction
800182932   ,KIER BUILDING SERV ENGINEERS  ,10291786              ,34,139.93,REACTIVE MEP                            ,04/08/2022,,Property Department,Works - Construction
800182932   ,KIER BUILDING SERV ENGINEERS  ,10291786              ,35,164.68,REACTIVE MEP                            ,04/08/2022,,Property Department,Works - Construction
800182932   ,KIER BUILDING SERV ENGINEERS  ,10291786              ,36,22.85,REACTIVE MEP                            ,04/08/2022,,Property Department,Works - Construction
800182932   ,KIER BUILDING SERV ENGINEERS  ,10291786              ,37,51.69,REACTIVE MEP                            ,04/08/2022,,Property Department,Works - Construction
800182932   ,KIER BUILDING SERV ENGINEERS  ,10291786              ,38,91.38,REACTIVE MEP                            ,04/08/2022,,Property Department,Works - Construction
800182932   ,KIER BUILDING SERV ENGINEERS  ,10291786              ,39,28.56,REACTIVE MEP                            ,04/08/2022,,Property Department,Works - Construction
800182932   ,KIER BUILDING SERV ENGINEERS  ,10291786              ,40,124.7,REACTIVE MEP                            ,04/08/2022,,Property Department,Works - Construction
800182932   ,KIER BUILDING SERV ENGINEERS  ,10291786              ,41,14.11,REACTIVE MEP                            ,04/08/2022,,Property Department,Works - Construction
800182932   ,KIER BUILDING SERV ENGINEERS  ,10291786              ,42,35.07,REACTIVE MEP                            ,04/08/2022,,Property Department,Works - Construction
800182932   ,KIER BUILDING SERV ENGINEERS  ,10291786              ,43,76.61,REACTIVE MEP                            ,04/08/2022,,Property Department,Works - Construction
800182932   ,KIER BUILDING SERV ENGINEERS  ,10291786              ,44,32.36,REACTIVE MEP                            ,04/08/2022,,Property Department,Works - Construction
800182932   ,KIER BUILDING SERV ENGINEERS  ,10291786              ,45,34.39,REACTIVE MEP                            ,04/08/2022,,Property Department,Works - Construction
800182932   ,KIER BUILDING SERV ENGINEERS  ,10291786              ,46,59.02,REACTIVE MEP                            ,04/08/2022,,Property Department,Works - Construction
800182932   ,KIER BUILDING SERV ENGINEERS  ,10291786              ,47,11.42,REACTIVE MEP                            ,04/08/2022,,Property Department,Works - Construction
800182932   ,KIER BUILDING SERV ENGINEERS  ,10291786              ,48,134.78,REACTIVE MEP                            ,04/08/2022,,Property Department,Works - Construction
800182932   ,KIER BUILDING SERV ENGINEERS  ,10291786              ,49,34.15,REACTIVE MEP                            ,04/08/2022,,Property Department,Works - Construction
800182932   ,KIER BUILDING SERV ENGINEERS  ,10291786              ,50,33.51,REACTIVE MEP                            ,04/08/2022,,Property Department,Works - Construction
800182932   ,KIER BUILDING SERV ENGINEERS  ,10291786              ,51,78.06,REACTIVE MEP                            ,04/08/2022,,Property Department,Works - Construction
800182932   ,KIER BUILDING SERV ENGINEERS  ,10291786              ,52,1.9,REACTIVE MEP                            ,04/08/2022,,Property Department,Works - Construction
800182932   ,KIER BUILDING SERV ENGINEERS  ,10291786              ,53,59.02,REACTIVE MEP                            ,04/08/2022,,Property Department,Works - Construction
800182932   ,KIER BUILDING SERV ENGINEERS  ,10291786              ,54,37.12,REACTIVE MEP                            ,04/08/2022,,Property Department,Works - Construction
800182932   ,KIER BUILDING SERV ENGINEERS  ,10291786              ,55,58.07,REACTIVE MEP                            ,04/08/2022,,Property Department,Works - Construction
800182932   ,KIER BUILDING SERV ENGINEERS  ,10291786              ,56,26.65,REACTIVE MEP                            ,04/08/2022,,Property Department,Works - Construction
800182932   ,KIER BUILDING SERV ENGINEERS  ,10291786              ,57,21.89,REACTIVE MEP                            ,04/08/2022,,Property Department,Works - Construction
800182932   ,KIER BUILDING SERV ENGINEERS  ,10291786              ,58,5.24,REACTIVE MEP                            ,04/08/2022,,Property Department,Works - Construction
800182932   ,KIER BUILDING SERV ENGINEERS  ,10291786              ,59,34.06,REACTIVE MEP                            ,04/08/2022,,Property Department,Works - Construction
800182932   ,KIER BUILDING SERV ENGINEERS  ,10291786              ,60,39.31,REACTIVE MEP                            ,04/08/2022,,Property Department,Works - Construction
800182932   ,KIER BUILDING SERV ENGINEERS  ,10291786              ,61,35.22,REACTIVE MEP                            ,04/08/2022,,Property Department,Works - Construction
800182932   ,KIER BUILDING SERV ENGINEERS  ,10291786              ,62,75.2,REACTIVE MEP                            ,04/08/2022,,Property Department,Works - Construction
800182932   ,KIER BUILDING SERV ENGINEERS  ,10291786              ,63,35.22,REACTIVE MEP                            ,04/08/2022,,Property Department,Works - Construction
800182932   ,KIER BUILDING SERV ENGINEERS  ,10291786              ,64,59.97,REACTIVE MEP                            ,04/08/2022,,Property Department,Works - Construction
800182932   ,KIER BUILDING SERV ENGINEERS  ,10291786              ,65,61.87,REACTIVE MEP                            ,04/08/2022,,Property Department,Works - Construction
800182932   ,KIER BUILDING SERV ENGINEERS  ,10291786              ,66,49.5,REACTIVE MEP                            ,04/08/2022,,Property Department,Works - Construction
800182932   ,KIER BUILDING SERV ENGINEERS  ,10291786              ,67,7.94,REACTIVE BUILDING FABRIC                ,04/08/2022,,Property Department,Works - Construction
800182932   ,KIER BUILDING SERV ENGINEERS  ,10291786              ,68,75.2,REACTIVE MEP                            ,04/08/2022,,Property Department,Works - Construction
800182932   ,KIER BUILDING SERV ENGINEERS  ,10291786              ,69,58.07,REACTIVE MEP                            ,04/08/2022,,Property Department,Works - Construction
800182932   ,KIER BUILDING SERV ENGINEERS  ,10291786              ,70,49.68,REACTIVE MEP                            ,04/08/2022,,Property Department,Works - Construction
800182932   ,KIER BUILDING SERV ENGINEERS  ,10291786              ,71,1008.23,REACTIVE MEP                            ,04/08/2022,,Property Department,Works - Construction
800182932   ,KIER BUILDING SERV ENGINEERS  ,10291786              ,72,517.3,REACTIVE MEP                            ,04/08/2022,,Property Department,Works - Construction
800182932   ,KIER BUILDING SERV ENGINEERS  ,10291786              ,73,1206.12,REACTIVE MEP                            ,04/08/2022,,Property Department,Works - Construction
800182932   ,KIER BUILDING SERV ENGINEERS  ,10291786              ,74,52.35,REACTIVE MEP                            ,04/08/2022,,Property Department,Works - Construction
800182932   ,KIER BUILDING SERV ENGINEERS  ,10291786              ,75,1058.7,REACTIVE MEP                            ,04/08/2022,,Property Department,Works - Construction
800182932   ,KIER BUILDING SERV ENGINEERS  ,10291786              ,76,569.23,REACTIVE MEP                            ,04/08/2022,,Property Department,Works - Construction
800182932   ,KIER BUILDING SERV ENGINEERS  ,10291786              ,77,825.47,REACTIVE MEP                            ,04/08/2022,,Property Department,Works - Construction
800182932   ,KIER BUILDING SERV ENGINEERS  ,10291786              ,78,1763.28,REACTIVE MEP                            ,04/08/2022,,Property Department,Works - Construction
800182932   ,KIER BUILDING SERV ENGINEERS  ,10291786              ,79,294.81,REACTIVE MEP                            ,04/08/2022,,Property Department,Works - Construction
800182932   ,KIER BUILDING SERV ENGINEERS  ,10291786              ,80,89.81,REACTIVE MEP                            ,04/08/2022,,Property Department,Works - Construction
800182932   ,KIER BUILDING SERV ENGINEERS  ,10291786              ,81,146.83,REACTIVE MEP                            ,04/08/2022,,Property Department,Works - Construction
800182932   ,KIER BUILDING SERV ENGINEERS  ,10291786              ,82,109.71,REACTIVE MEP                            ,04/08/2022,,Property Department,Works - Construction
800182932   ,KIER BUILDING SERV ENGINEERS  ,10291786              ,83,15.7,REACTIVE MEP                            ,04/08/2022,,Property Department,Works - Construction
800182932   ,KIER BUILDING SERV ENGINEERS  ,10291786              ,84,194.69,REACTIVE MEP                            ,04/08/2022,,Property Department,Works - Construction
800182932   ,KIER BUILDING SERV ENGINEERS  ,10291786              ,85,11.34,REACTIVE MEP                            ,04/08/2022,,Property Department,Works - Construction
800182932   ,KIER BUILDING SERV ENGINEERS  ,10291786              ,86,0.95,REACTIVE MEP                            ,04/08/2022,,Property Department,Works - Construction
800182932   ,KIER BUILDING SERV ENGINEERS  ,10291786              ,87,138.45,REACTIVE MEP                            ,04/08/2022,,Property Department,Works - Construction
800182932   ,KIER BUILDING SERV ENGINEERS  ,10291786              ,88,7.04,REACTIVE MEP                            ,04/08/2022,,Property Department,Works - Construction
800182932   ,KIER BUILDING SERV ENGINEERS  ,10291786              ,89,20.2,REACTIVE MEP                            ,04/08/2022,,Property Department,Works - Construction
800182932   ,KIER BUILDING SERV ENGINEERS  ,10291786              ,90,11.08,REACTIVE MEP                            ,04/08/2022,,Property Department,Works - Construction
800182932   ,KIER BUILDING SERV ENGINEERS  ,10291786              ,91,5.94,REACTIVE MEP                            ,04/08/2022,,Property Department,Works - Construction
800182932   ,KIER BUILDING SERV ENGINEERS  ,10291786              ,92,3.35,REACTIVE MEP                            ,04/08/2022,,Property Department,Works - Construction
800182932   ,KIER BUILDING SERV ENGINEERS  ,10291786              ,93,16.19,REACTIVE MEP                            ,04/08/2022,,Property Department,Works - Construction
800182932   ,KIER BUILDING SERV ENGINEERS  ,10291786              ,94,7.02,REACTIVE MEP                            ,04/08/2022,,Property Department,Works - Construction
800182932   ,KIER BUILDING SERV ENGINEERS  ,10291786              ,95,44.3,REACTIVE MEP                            ,04/08/2022,,Property Department,Works - Construction
800182932   ,KIER BUILDING SERV ENGINEERS  ,10291786              ,96,88.18,REACTIVE MEP                            ,04/08/2022,,Property Department,Works - Construction
800182932   ,KIER BUILDING SERV ENGINEERS  ,10291786              ,97,65.68,REACTIVE MEP                            ,04/08/2022,,Property Department,Works - Construction
800182932   ,KIER BUILDING SERV ENGINEERS  ,10291786              ,98,101.85,REACTIVE MEP                            ,04/08/2022,,Property Department,Works - Construction
800182932   ,KIER BUILDING SERV ENGINEERS  ,10291786              ,99,28.68,REACTIVE MEP                            ,04/08/2022,,Property Department,Works - Construction
800182932   ,KIER BUILDING SERV ENGINEERS  ,10291786              ,100,86.62,REACTIVE MEP                            ,04/08/2022,,Property Department,Works - Construction
800182932   ,KIER BUILDING SERV ENGINEERS  ,10291786              ,101,10.78,REACTIVE MEP                            ,04/08/2022,,Property Department,Works - Construction
800182932   ,KIER BUILDING SERV ENGINEERS  ,10291786              ,102,13.45,REACTIVE MEP                            ,04/08/2022,,Property Department,Works - Construction
800182932   ,KIER BUILDING SERV ENGINEERS  ,10291786              ,103,14.77,REACTIVE MEP                            ,04/08/2022,,Property Department,Works - Construction
800182932   ,KIER BUILDING SERV ENGINEERS  ,10291786              ,104,1766.76,REACTIVE MEP                            ,04/08/2022,,Property Department,Works - Construction
800182932   ,KIER BUILDING SERV ENGINEERS  ,10291786              ,105,665.25,REACTIVE MEP                            ,04/08/2022,,Property Department,Works - Construction
800182932   ,KIER BUILDING SERV ENGINEERS  ,10291786              ,106,10.53,REACTIVE MEP                            ,04/08/2022,,Property Department,Works - Construction
800182932   ,KIER BUILDING SERV ENGINEERS  ,10291786              ,107,129.6,REACTIVE MEP                            ,04/08/2022,,Property Department,Works - Construction
800182932   ,KIER BUILDING SERV ENGINEERS  ,10291786              ,108,42.42,REACTIVE MEP                            ,04/08/2022,,Property Department,Works - Construction
800182932   ,KIER BUILDING SERV ENGINEERS  ,10291786              ,109,97.2,REACTIVE MEP                            ,04/08/2022,,Property Department,Works - Construction
800182932   ,KIER BUILDING SERV ENGINEERS  ,10291786              ,110,8.96,REACTIVE MEP                            ,04/08/2022,,Property Department,Works - Construction
800182932   ,KIER BUILDING SERV ENGINEERS  ,10291786              ,111,6.64,REACTIVE MEP                            ,04/08/2022,,Property Department,Works - Construction
800182932   ,KIER BUILDING SERV ENGINEERS  ,10291786              ,112,1.57,REACTIVE MEP                            ,04/08/2022,,Property Department,Works - Construction
800182932   ,KIER BUILDING SERV ENGINEERS  ,10291786              ,113,60.84,REACTIVE MEP                            ,04/08/2022,,Property Department,Works - Construction
800182932   ,KIER BUILDING SERV ENGINEERS  ,10291786              ,114,0.76,REACTIVE MEP                            ,04/08/2022,,Property Department,Works - Construction
800182932   ,KIER BUILDING SERV ENGINEERS  ,10291786              ,115,3.35,REACTIVE MEP                            ,04/08/2022,,Property Department,Works - Construction
800182932   ,KIER BUILDING SERV ENGINEERS  ,10291786              ,116,22.15,REACTIVE MEP                            ,04/08/2022,,Property Department,Works - Construction
800182932   ,KIER BUILDING SERV ENGINEERS  ,10291786              ,117,1.3,REACTIVE MEP                            ,04/08/2022,,Property Department,Works - Construction
800182932   ,KIER BUILDING SERV ENGINEERS  ,10291786              ,118,213.73,REACTIVE MEP                            ,04/08/2022,,Property Department,Works - Construction
800182932   ,KIER BUILDING SERV ENGINEERS  ,10291786              ,119,21.3,REACTIVE MEP                            ,04/08/2022,,Property Department,Works - Construction
800182932   ,KIER BUILDING SERV ENGINEERS  ,10291786              ,120,2.08,REACTIVE MEP                            ,04/08/2022,,Property Department,Works - Construction
800182932   ,KIER BUILDING SERV ENGINEERS  ,10291786              ,121,87.67,REACTIVE MEP                            ,04/08/2022,,Property Department,Works - Construction
800182932   ,KIER BUILDING SERV ENGINEERS  ,10291786              ,122,28.62,REACTIVE MEP                            ,04/08/2022,,Property Department,Works - Construction
800182932   ,KIER BUILDING SERV ENGINEERS  ,10291786              ,123,282.96,REACTIVE MEP                            ,04/08/2022,,Property Department,Works - Construction
800182932   ,KIER BUILDING SERV ENGINEERS  ,10291786              ,124,4.22,REACTIVE MEP                            ,04/08/2022,,Property Department,Works - Construction
800182932   ,KIER BUILDING SERV ENGINEERS  ,10291786              ,125,4.86,REACTIVE MEP                            ,04/08/2022,,Property Department,Works - Construction
800182932   ,KIER BUILDING SERV ENGINEERS  ,10291786              ,126,39.69,REACTIVE MEP                            ,04/08/2022,,Property Department,Works - Construction
800182932   ,KIER BUILDING SERV ENGINEERS  ,10291786              ,127,0.7,REACTIVE MEP                            ,04/08/2022,,Property Department,Works - Construction
800182932   ,KIER BUILDING SERV ENGINEERS  ,10291786              ,128,2086.55,REACTIVE MEP                            ,04/08/2022,,Property Department,Works - Construction
800182932   ,KIER BUILDING SERV ENGINEERS  ,10291786              ,129,19.45,REACTIVE MEP                            ,04/08/2022,,Property Department,Works - Construction
800182932   ,KIER BUILDING SERV ENGINEERS  ,10291786              ,130,15.8,REACTIVE MEP                            ,04/08/2022,,Property Department,Works - Construction
800182932   ,KIER BUILDING SERV ENGINEERS  ,10291786              ,131,60.84,REACTIVE MEP                            ,04/08/2022,,Property Department,Works - Construction
800182932   ,KIER BUILDING SERV ENGINEERS  ,10291786              ,132,0.7,REACTIVE MEP                            ,04/08/2022,,Property Department,Works - Construction
800182932   ,KIER BUILDING SERV ENGINEERS  ,10291786              ,133,6.3,REACTIVE MEP                            ,04/08/2022,,Property Department,Works - Construction
800182932   ,KIER BUILDING SERV ENGINEERS  ,10291786              ,134,6.34,REACTIVE MEP                            ,04/08/2022,,Property Department,Works - Construction
800182932   ,KIER BUILDING SERV ENGINEERS  ,10291786              ,135,48.5,REACTIVE MEP                            ,04/08/2022,,Property Department,Works - Construction
800182932   ,KIER BUILDING SERV ENGINEERS  ,10291786              ,136,1159.02,REACTIVE MEP                            ,04/08/2022,,Property Department,Works - Construction
800182972   ,KIER BUILDING SERV ENGINEERS  ,10292163              ,1,2278.63,PLANNED MEP                             ,04/08/2022,,Property Department,Works - Construction
800182972   ,KIER BUILDING SERV ENGINEERS  ,10292163              ,2,837.63,PLANNED MEP                             ,04/08/2022,,Property Department,Works - Construction
800182972   ,KIER BUILDING SERV ENGINEERS  ,10292163              ,3,1378.94,PLANNED MEP                             ,04/08/2022,,Property Department,Works - Construction
800182972   ,KIER BUILDING SERV ENGINEERS  ,10292163              ,4,791.46,PLANNED MEP                             ,04/08/2022,63445.47,Property Department,Works - Construction
800182972   ,KIER BUILDING SERV ENGINEERS  ,10292163              ,5,1218.15,PLANNED MEP                             ,04/08/2022,,Property Department,Works - Construction
800182972   ,KIER BUILDING SERV ENGINEERS  ,10292163              ,6,1058.96,PLANNED MEP                             ,04/08/2022,,Property Department,Works - Construction
800182972   ,KIER BUILDING SERV ENGINEERS  ,10292163              ,7,1219.9,PLANNED MEP                             ,04/08/2022,,Property Department,Works - Construction
800182972   ,KIER BUILDING SERV ENGINEERS  ,10292163              ,8,895.45,PLANNED MEP                             ,04/08/2022,,Property Department,Works - Construction
800182972   ,KIER BUILDING SERV ENGINEERS  ,10292163              ,9,1346.46,PLANNED MEP                             ,04/08/2022,,Property Department,Works - Construction
800182972   ,KIER BUILDING SERV ENGINEERS  ,10292163              ,10,1021.17,PLANNED MEP                             ,04/08/2022,,Property Department,Works - Construction
800182972   ,KIER BUILDING SERV ENGINEERS  ,10292163              ,11,1071.55,PLANNED MEP                             ,04/08/2022,,Property Department,Works - Construction
800182972   ,KIER BUILDING SERV ENGINEERS  ,10292163              ,12,1174.72,PLANNED MEP                             ,04/08/2022,,Property Department,Works - Construction
800182972   ,KIER BUILDING SERV ENGINEERS  ,10292163              ,13,1521.17,PLANNED MEP                             ,04/08/2022,,Property Department,Works - Construction
800182972   ,KIER BUILDING SERV ENGINEERS  ,10292163              ,14,1494.24,PLANNED MEP                             ,04/08/2022,,Property Department,Works - Construction
800182972   ,KIER BUILDING SERV ENGINEERS  ,10292163              ,15,804.31,PLANNED MEP                             ,04/08/2022,,Property Department,Works - Construction
800182972   ,KIER BUILDING SERV ENGINEERS  ,10292163              ,16,1031.04,PLANNED MEP                             ,04/08/2022,,Property Department,Works - Construction
800182972   ,KIER BUILDING SERV ENGINEERS  ,10292163              ,17,1476.42,PLANNED MEP                             ,04/08/2022,,Property Department,Works - Construction
800182972   ,KIER BUILDING SERV ENGINEERS  ,10292163              ,18,888.87,PLANNED MEP                             ,04/08/2022,,Property Department,Works - Construction
800182972   ,KIER BUILDING SERV ENGINEERS  ,10292163              ,19,921.14,PLANNED MEP                             ,04/08/2022,,Property Department,Works - Construction
800182972   ,KIER BUILDING SERV ENGINEERS  ,10292163              ,20,2251.16,PLANNED MEP                             ,04/08/2022,,Property Department,Works - Construction
800182972   ,KIER BUILDING SERV ENGINEERS  ,10292163              ,21,1312.13,PLANNED MEP                             ,04/08/2022,,Property Department,Works - Construction
800182972   ,KIER BUILDING SERV ENGINEERS  ,10292163              ,22,2112.44,PLANNED MEP                             ,04/08/2022,,Property Department,Works - Construction
800182972   ,KIER BUILDING SERV ENGINEERS  ,10292163              ,23,1450.48,PLANNED MEP                             ,04/08/2022,,Property Department,Works - Construction
800182972   ,KIER BUILDING SERV ENGINEERS  ,10292163              ,24,1414.85,PLANNED MEP                             ,04/08/2022,,Property Department,Works - Construction
800182972   ,KIER BUILDING SERV ENGINEERS  ,10292163              ,25,1013.96,PLANNED MEP                             ,04/08/2022,,Property Department,Works - Construction
800182972   ,KIER BUILDING SERV ENGINEERS  ,10292163              ,26,1522.17,PLANNED MEP                             ,04/08/2022,,Property Department,Works - Construction
800182972   ,KIER BUILDING SERV ENGINEERS  ,10292163              ,27,1375.23,PLANNED MEP                             ,04/08/2022,,Property Department,Works - Construction
800182972   ,KIER BUILDING SERV ENGINEERS  ,10292163              ,28,990.97,PLANNED MEP                             ,04/08/2022,,Property Department,Works - Construction
800182972   ,KIER BUILDING SERV ENGINEERS  ,10292163              ,29,1267.46,PLANNED MEP                             ,04/08/2022,,Property Department,Works - Construction
800182972   ,KIER BUILDING SERV ENGINEERS  ,10292163              ,30,1821.3,PLANNED MEP                             ,04/08/2022,,Property Department,Works - Construction
800182972   ,KIER BUILDING SERV ENGINEERS  ,10292163              ,31,962.1,PLANNED MEP                             ,04/08/2022,,Property Department,Works - Construction
800182972   ,KIER BUILDING SERV ENGINEERS  ,10292163              ,32,3635.67,PLANNED MEP                             ,04/08/2022,,Property Department,Works - Construction
800182972   ,KIER BUILDING SERV ENGINEERS  ,10292163              ,33,807.19,PLANNED MEP                             ,04/08/2022,,Property Department,Works - Construction
800182972   ,KIER BUILDING SERV ENGINEERS  ,10292163              ,34,946.64,PLANNED MEP                             ,04/08/2022,,Property Department,Works - Construction
800182972   ,KIER BUILDING SERV ENGINEERS  ,10292163              ,35,1363.92,PLANNED MEP                             ,04/08/2022,,Property Department,Works - Construction
800182972   ,KIER BUILDING SERV ENGINEERS  ,10292163              ,36,1380,PLANNED MEP                             ,04/08/2022,,Property Department,Works - Construction
800182972   ,KIER BUILDING SERV ENGINEERS  ,10292163              ,37,1139.3,PLANNED MEP                             ,04/08/2022,,Property Department,Works - Construction
800182972   ,KIER BUILDING SERV ENGINEERS  ,10292163              ,38,930.99,PLANNED MEP                             ,04/08/2022,,Property Department,Works - Construction
800182972   ,KIER BUILDING SERV ENGINEERS  ,10292163              ,39,2136.73,PLANNED MEP                             ,04/08/2022,,Property Department,Works - Construction
800182972   ,KIER BUILDING SERV ENGINEERS  ,10292163              ,40,1660.03,PLANNED MEP                             ,04/08/2022,,Property Department,Works - Construction
800182972   ,KIER BUILDING SERV ENGINEERS  ,10292163              ,41,1362.77,PLANNED MEP                             ,04/08/2022,,Property Department,Works - Construction
800182972   ,KIER BUILDING SERV ENGINEERS  ,10292163              ,42,1529.53,PLANNED MEP                             ,04/08/2022,,Property Department,Works - Construction
800182972   ,KIER BUILDING SERV ENGINEERS  ,10292163              ,43,2120.53,PLANNED MEP                             ,04/08/2022,,Property Department,Works - Construction
800182972   ,KIER BUILDING SERV ENGINEERS  ,10292163              ,44,4507.71,PLANNED MEP                             ,04/08/2022,,Property Department,Works - Construction
800183076   ,KIER BUILDING SERV ENGINEERS  ,10292164              ,1,491.31,PLANNED MEP                             ,11/08/2022,982.62,Property Department,Works - Construction
800183076   ,KIER BUILDING SERV ENGINEERS  ,10292164              ,2,491.31,PLANNED MEP                             ,11/08/2022,,Property Department,Works - Construction
800182970   ,KIER BUILDING SERV ENGINEERS  ,10292165              ,1,11630.58,PLANNED MEP                             ,04/08/2022,23670,Property Department,Works - Construction
800182970   ,KIER BUILDING SERV ENGINEERS  ,10292165              ,2,12039.42,PLANNED MEP                             ,04/08/2022,,Property Department,Works - Construction
800183243   ,KIER BUILDING SERV ENGINEERS  ,10292849              ,1,6.62,REACTIVE SOFT FM CONTRACT               ,18/08/2022,,Property Department,Facilities & Management Services
800183243   ,KIER BUILDING SERV ENGINEERS  ,10292849              ,2,120.89,REACTIVE MEP                            ,18/08/2022,,Property Department,Works - Construction
800183243   ,KIER BUILDING SERV ENGINEERS  ,10292849              ,3,19.04,REACTIVE MEP                            ,18/08/2022,,Property Department,Works - Construction
800183243   ,KIER BUILDING SERV ENGINEERS  ,10292849              ,4,38.08,REACTIVE MEP                            ,18/08/2022,,Property Department,Works - Construction
800183243   ,KIER BUILDING SERV ENGINEERS  ,10292849              ,5,171.33,REACTIVE MEP                            ,18/08/2022,,Property Department,Works - Construction
800183243   ,KIER BUILDING SERV ENGINEERS  ,10292849              ,6,47.6,REACTIVE MEP                            ,18/08/2022,,Property Department,Works - Construction
800183243   ,KIER BUILDING SERV ENGINEERS  ,10292849              ,7,38.08,REACTIVE MEP                            ,18/08/2022,,Property Department,Works - Construction
800183243   ,KIER BUILDING SERV ENGINEERS  ,10292849              ,8,171.33,REACTIVE MEP                            ,18/08/2022,,Property Department,Works - Construction
800183243   ,KIER BUILDING SERV ENGINEERS  ,10292849              ,9,74.95,REACTIVE MEP                            ,18/08/2022,,Property Department,Works - Construction
800183243   ,KIER BUILDING SERV ENGINEERS  ,10292849              ,10,124.59,REACTIVE MEP                            ,18/08/2022,,Property Department,Works - Construction
800183243   ,KIER BUILDING SERV ENGINEERS  ,10292849              ,11,171.33,REACTIVE MEP                            ,18/08/2022,,Property Department,Works - Construction
800183243   ,KIER BUILDING SERV ENGINEERS  ,10292849              ,12,171.33,REACTIVE MEP                            ,18/08/2022,,Property Department,Works - Construction
800183243   ,KIER BUILDING SERV ENGINEERS  ,10292849              ,13,171.33,REACTIVE MEP                            ,18/08/2022,,Property Department,Works - Construction
800183243   ,KIER BUILDING SERV ENGINEERS  ,10292849              ,14,171.33,REACTIVE MEP                            ,18/08/2022,,Property Department,Works - Construction
800183243   ,KIER BUILDING SERV ENGINEERS  ,10292849              ,15,79.36,REACTIVE MEP                            ,18/08/2022,,Property Department,Works - Construction
800183243   ,KIER BUILDING SERV ENGINEERS  ,10292849              ,16,57.11,REACTIVE MEP                            ,18/08/2022,,Property Department,Works - Construction
800183243   ,KIER BUILDING SERV ENGINEERS  ,10292849              ,17,171.33,REACTIVE MEP                            ,18/08/2022,,Property Department,Works - Construction
800183243   ,KIER BUILDING SERV ENGINEERS  ,10292849              ,18,57.11,REACTIVE MEP                            ,18/08/2022,,Property Department,Works - Construction
800183243   ,KIER BUILDING SERV ENGINEERS  ,10292849              ,19,108.19,REACTIVE MEP                            ,18/08/2022,,Property Department,Works - Construction
800183243   ,KIER BUILDING SERV ENGINEERS  ,10292849              ,20,57.11,REACTIVE MEP                            ,18/08/2022,,Property Department,Works - Construction
800183243   ,KIER BUILDING SERV ENGINEERS  ,10292849              ,21,127.56,REACTIVE MEP                            ,18/08/2022,,Property Department,Works - Construction
800183243   ,KIER BUILDING SERV ENGINEERS  ,10292849              ,22,114.22,REACTIVE MEP                            ,18/08/2022,,Property Department,Works - Construction
800183243   ,KIER BUILDING SERV ENGINEERS  ,10292849              ,23,180.86,REACTIVE MEP                            ,18/08/2022,,Property Department,Works - Construction
800183243   ,KIER BUILDING SERV ENGINEERS  ,10292849              ,24,171.33,REACTIVE MEP                            ,18/08/2022,,Property Department,Works - Construction
800183243   ,KIER BUILDING SERV ENGINEERS  ,10292849              ,25,171.33,REACTIVE MEP                            ,18/08/2022,,Property Department,Works - Construction
800183243   ,KIER BUILDING SERV ENGINEERS  ,10292849              ,26,114.22,REACTIVE MEP                            ,18/08/2022,,Property Department,Works - Construction
800183243   ,KIER BUILDING SERV ENGINEERS  ,10292849              ,27,110.29,REACTIVE MEP                            ,18/08/2022,,Property Department,Works - Construction
800183243   ,KIER BUILDING SERV ENGINEERS  ,10292849              ,28,89.48,REACTIVE MEP                            ,18/08/2022,,Property Department,Works - Construction
800183243   ,KIER BUILDING SERV ENGINEERS  ,10292849              ,29,342.66,REACTIVE MEP                            ,18/08/2022,,Property Department,Works - Construction
800183243   ,KIER BUILDING SERV ENGINEERS  ,10292849              ,30,104.7,REACTIVE MEP                            ,18/08/2022,,Property Department,Works - Construction
800183243   ,KIER BUILDING SERV ENGINEERS  ,10292849              ,31,152.46,REACTIVE MEP                            ,18/08/2022,,Property Department,Works - Construction
800183243   ,KIER BUILDING SERV ENGINEERS  ,10292849              ,32,101.85,REACTIVE MEP                            ,18/08/2022,,Property Department,Works - Construction
800183243   ,KIER BUILDING SERV ENGINEERS  ,10292849              ,33,115.18,REACTIVE MEP                            ,18/08/2022,,Property Department,Works - Construction
800183243   ,KIER BUILDING SERV ENGINEERS  ,10292849              ,34,63.4,REACTIVE MEP                            ,18/08/2022,,Property Department,Works - Construction
800183243   ,KIER BUILDING SERV ENGINEERS  ,10292849              ,35,171.34,REACTIVE MEP                            ,18/08/2022,,Property Department,Works - Construction
800183243   ,KIER BUILDING SERV ENGINEERS  ,10292849              ,36,44.3,REACTIVE MEP                            ,18/08/2022,,Property Department,Works - Construction
800183243   ,KIER BUILDING SERV ENGINEERS  ,10292849              ,37,79.38,REACTIVE MEP                            ,18/08/2022,,Property Department,Works - Construction
800183243   ,KIER BUILDING SERV ENGINEERS  ,10292849              ,38,116.92,REACTIVE MEP                            ,18/08/2022,,Property Department,Works - Construction
800183243   ,KIER BUILDING SERV ENGINEERS  ,10292849              ,39,57.11,REACTIVE MEP                            ,18/08/2022,,Property Department,Works - Construction
800183243   ,KIER BUILDING SERV ENGINEERS  ,10292849              ,40,271.29,REACTIVE MEP                            ,18/08/2022,,Property Department,Works - Construction
800183243   ,KIER BUILDING SERV ENGINEERS  ,10292849              ,41,23.07,REACTIVE MEP                            ,18/08/2022,,Property Department,Works - Construction
800183243   ,KIER BUILDING SERV ENGINEERS  ,10292849              ,42,110,REACTIVE MEP                            ,18/08/2022,,Property Department,Works - Construction
800183243   ,KIER BUILDING SERV ENGINEERS  ,10292849              ,43,136.12,REACTIVE MEP                            ,18/08/2022,,Property Department,Works - Construction
800183243   ,KIER BUILDING SERV ENGINEERS  ,10292849              ,44,57.11,REACTIVE MEP                            ,18/08/2022,,Property Department,Works - Construction
800183243   ,KIER BUILDING SERV ENGINEERS  ,10292849              ,45,31.45,REACTIVE MEP                            ,18/08/2022,,Property Department,Works - Construction
800183243   ,KIER BUILDING SERV ENGINEERS  ,10292849              ,46,103.52,REACTIVE MEP                            ,18/08/2022,,Property Department,Works - Construction
800183243   ,KIER BUILDING SERV ENGINEERS  ,10292849              ,47,408.84,REACTIVE MEP                            ,18/08/2022,,Property Department,Works - Construction
800183243   ,KIER BUILDING SERV ENGINEERS  ,10292849              ,48,33.51,REACTIVE MEP                            ,18/08/2022,,Property Department,Works - Construction
800183243   ,KIER BUILDING SERV ENGINEERS  ,10292849              ,49,97.83,REACTIVE MEP                            ,18/08/2022,,Property Department,Works - Construction
800183243   ,KIER BUILDING SERV ENGINEERS  ,10292849              ,50,30.46,REACTIVE MEP                            ,18/08/2022,,Property Department,Works - Construction
800183243   ,KIER BUILDING SERV ENGINEERS  ,10292849              ,51,35.32,REACTIVE MEP                            ,18/08/2022,,Property Department,Works - Construction
800183243   ,KIER BUILDING SERV ENGINEERS  ,10292849              ,52,124.49,REACTIVE MEP                            ,18/08/2022,,Property Department,Works - Construction
800183243   ,KIER BUILDING SERV ENGINEERS  ,10292849              ,53,175.15,REACTIVE MEP                            ,18/08/2022,,Property Department,Works - Construction
800183243   ,KIER BUILDING SERV ENGINEERS  ,10292849              ,54,14.99,REACTIVE MEP                            ,18/08/2022,,Property Department,Works - Construction
800183243   ,KIER BUILDING SERV ENGINEERS  ,10292849              ,55,57.11,REACTIVE MEP                            ,18/08/2022,,Property Department,Works - Construction
800183243   ,KIER BUILDING SERV ENGINEERS  ,10292849              ,56,286.52,REACTIVE MEP                            ,18/08/2022,,Property Department,Works - Construction
800183243   ,KIER BUILDING SERV ENGINEERS  ,10292849              ,57,222.75,REACTIVE MEP                            ,18/08/2022,,Property Department,Works - Construction
800183243   ,KIER BUILDING SERV ENGINEERS  ,10292849              ,58,268.44,REACTIVE MEP                            ,18/08/2022,,Property Department,Works - Construction
800183243   ,KIER BUILDING SERV ENGINEERS  ,10292849              ,59,337.93,REACTIVE MEP                            ,18/08/2022,,Property Department,Works - Construction
800183243   ,KIER BUILDING SERV ENGINEERS  ,10292849              ,60,125.78,REACTIVE MEP                            ,18/08/2022,,Property Department,Works - Construction
800183243   ,KIER BUILDING SERV ENGINEERS  ,10292849              ,61,61.87,REACTIVE MEP                            ,18/08/2022,,Property Department,Works - Construction
800183243   ,KIER BUILDING SERV ENGINEERS  ,10292849              ,62,24.75,REACTIVE MEP                            ,18/08/2022,,Property Department,Works - Construction
800183243   ,KIER BUILDING SERV ENGINEERS  ,10292849              ,63,54.25,REACTIVE MEP                            ,18/08/2022,,Property Department,Works - Construction
800183243   ,KIER BUILDING SERV ENGINEERS  ,10292849              ,64,52.61,REACTIVE MEP                            ,18/08/2022,,Property Department,Works - Construction
800183243   ,KIER BUILDING SERV ENGINEERS  ,10292849              ,65,85.67,REACTIVE MEP                            ,18/08/2022,,Property Department,Works - Construction
800183243   ,KIER BUILDING SERV ENGINEERS  ,10292849              ,66,0.95,REACTIVE MEP                            ,18/08/2022,,Property Department,Works - Construction
800183243   ,KIER BUILDING SERV ENGINEERS  ,10292849              ,67,121.84,REACTIVE MEP                            ,18/08/2022,,Property Department,Works - Construction
800183243   ,KIER BUILDING SERV ENGINEERS  ,10292849              ,68,293.18,REACTIVE MEP                            ,18/08/2022,,Property Department,Works - Construction
800183243   ,KIER BUILDING SERV ENGINEERS  ,10292849              ,69,40.56,REACTIVE MEP                            ,18/08/2022,,Property Department,Works - Construction
800183243   ,KIER BUILDING SERV ENGINEERS  ,10292849              ,70,172.3,REACTIVE MEP                            ,18/08/2022,,Property Department,Works - Construction
800183243   ,KIER BUILDING SERV ENGINEERS  ,10292849              ,71,4.42,REACTIVE MEP                            ,18/08/2022,,Property Department,Works - Construction
800183243   ,KIER BUILDING SERV ENGINEERS  ,10292849              ,72,48.92,REACTIVE MEP                            ,18/08/2022,,Property Department,Works - Construction
800183243   ,KIER BUILDING SERV ENGINEERS  ,10292849              ,73,57.11,REACTIVE MEP                            ,18/08/2022,,Property Department,Works - Construction
800183243   ,KIER BUILDING SERV ENGINEERS  ,10292849              ,74,101.85,REACTIVE MEP                            ,18/08/2022,,Property Department,Works - Construction
800183243   ,KIER BUILDING SERV ENGINEERS  ,10292849              ,75,67.59,REACTIVE MEP                            ,18/08/2022,,Property Department,Works - Construction
800183243   ,KIER BUILDING SERV ENGINEERS  ,10292849              ,76,86.39,REACTIVE MEP                            ,18/08/2022,,Property Department,Works - Construction
800183243   ,KIER BUILDING SERV ENGINEERS  ,10292849              ,77,98.94,REACTIVE MEP                            ,18/08/2022,,Property Department,Works - Construction
800183243   ,KIER BUILDING SERV ENGINEERS  ,10292849              ,78,180.86,REACTIVE MEP                            ,18/08/2022,,Property Department,Works - Construction
800183243   ,KIER BUILDING SERV ENGINEERS  ,10292849              ,79,142.78,REACTIVE MEP                            ,18/08/2022,,Property Department,Works - Construction
800183243   ,KIER BUILDING SERV ENGINEERS  ,10292849              ,80,126.6,REACTIVE MEP                            ,18/08/2022,,Property Department,Works - Construction
800183243   ,KIER BUILDING SERV ENGINEERS  ,10292849              ,81,11.42,REACTIVE MEP                            ,18/08/2022,,Property Department,Works - Construction
800183243   ,KIER BUILDING SERV ENGINEERS  ,10292849              ,82,38.77,REACTIVE MEP                            ,18/08/2022,,Property Department,Works - Construction
800183243   ,KIER BUILDING SERV ENGINEERS  ,10292849              ,83,1895.6,REACTIVE MEP                            ,18/08/2022,,Property Department,Works - Construction
800183243   ,KIER BUILDING SERV ENGINEERS  ,10292849              ,84,483.51,REACTIVE MEP                            ,18/08/2022,,Property Department,Works - Construction
800183243   ,KIER BUILDING SERV ENGINEERS  ,10292849              ,85,159.82,REACTIVE MEP                            ,18/08/2022,,Property Department,Works - Construction
800183243   ,KIER BUILDING SERV ENGINEERS  ,10292849              ,86,1703.52,REACTIVE MEP                            ,18/08/2022,,Property Department,Works - Construction
800183243   ,KIER BUILDING SERV ENGINEERS  ,10292849              ,87,158.79,REACTIVE MEP                            ,18/08/2022,,Property Department,Works - Construction
800183243   ,KIER BUILDING SERV ENGINEERS  ,10292849              ,88,2918.91,REACTIVE MEP                            ,18/08/2022,,Property Department,Works - Construction
800183243   ,KIER BUILDING SERV ENGINEERS  ,10292849              ,89,72.11,REACTIVE MEP                            ,18/08/2022,,Property Department,Works - Construction
800183243   ,KIER BUILDING SERV ENGINEERS  ,10292849              ,90,130.14,REACTIVE MEP                            ,18/08/2022,,Property Department,Works - Construction
800183243   ,KIER BUILDING SERV ENGINEERS  ,10292849              ,91,108.52,REACTIVE SOFT FM CONTRACT               ,18/08/2022,,Property Department,Facilities & Management Services
800183243   ,KIER BUILDING SERV ENGINEERS  ,10292849              ,92,34.27,REACTIVE MEP                            ,18/08/2022,,Property Department,Works - Construction
800183243   ,KIER BUILDING SERV ENGINEERS  ,10292849              ,93,1301.79,REACTIVE MEP                            ,18/08/2022,,Property Department,Works - Construction
800183243   ,KIER BUILDING SERV ENGINEERS  ,10292849              ,94,1886.58,REACTIVE MEP                            ,18/08/2022,,Property Department,Works - Construction
800183243   ,KIER BUILDING SERV ENGINEERS  ,10292849              ,95,43.07,REACTIVE MEP                            ,18/08/2022,,Property Department,Works - Construction
800183243   ,KIER BUILDING SERV ENGINEERS  ,10292849              ,96,120.91,REACTIVE MEP                            ,18/08/2022,,Property Department,Works - Construction
800183243   ,KIER BUILDING SERV ENGINEERS  ,10292849              ,97,41.53,REACTIVE MEP                            ,18/08/2022,,Property Department,Works - Construction
800183243   ,KIER BUILDING SERV ENGINEERS  ,10292849              ,98,114.45,REACTIVE MEP                            ,18/08/2022,,Property Department,Works - Construction
800183243   ,KIER BUILDING SERV ENGINEERS  ,10292849              ,99,24.38,REACTIVE MEP                            ,18/08/2022,,Property Department,Works - Construction
800183243   ,KIER BUILDING SERV ENGINEERS  ,10292849              ,100,229.39,REACTIVE MEP                            ,18/08/2022,,Property Department,Works - Construction
800183243   ,KIER BUILDING SERV ENGINEERS  ,10292849              ,101,28.56,REACTIVE MEP                            ,18/08/2022,,Property Department,Works - Construction
800183243   ,KIER BUILDING SERV ENGINEERS  ,10292849              ,102,24.04,REACTIVE MEP                            ,18/08/2022,,Property Department,Works - Construction
800183243   ,KIER BUILDING SERV ENGINEERS  ,10292849              ,103,110,REACTIVE MEP                            ,18/08/2022,,Property Department,Works - Construction
800183243   ,KIER BUILDING SERV ENGINEERS  ,10292849              ,104,109.24,REACTIVE MEP                            ,18/08/2022,,Property Department,Works - Construction
800183243   ,KIER BUILDING SERV ENGINEERS  ,10292849              ,105,649,REACTIVE MEP                            ,18/08/2022,,Property Department,Works - Construction
800183243   ,KIER BUILDING SERV ENGINEERS  ,10292849              ,106,114.22,REACTIVE MEP                            ,18/08/2022,,Property Department,Works - Construction
800183243   ,KIER BUILDING SERV ENGINEERS  ,10292849              ,107,105.66,REACTIVE MEP                            ,18/08/2022,,Property Department,Works - Construction
800183243   ,KIER BUILDING SERV ENGINEERS  ,10292849              ,108,75.68,REACTIVE MEP                            ,18/08/2022,,Property Department,Works - Construction
800183243   ,KIER BUILDING SERV ENGINEERS  ,10292849              ,109,59.02,REACTIVE MEP                            ,18/08/2022,,Property Department,Works - Construction
800183243   ,KIER BUILDING SERV ENGINEERS  ,10292849              ,110,110,REACTIVE MEP                            ,18/08/2022,,Property Department,Works - Construction
800183243   ,KIER BUILDING SERV ENGINEERS  ,10292849              ,111,53.53,REACTIVE MEP                            ,18/08/2022,,Property Department,Works - Construction
800183243   ,KIER BUILDING SERV ENGINEERS  ,10292849              ,112,110,REACTIVE MEP                            ,18/08/2022,,Property Department,Works - Construction
800183243   ,KIER BUILDING SERV ENGINEERS  ,10292849              ,113,35.65,REACTIVE MEP                            ,18/08/2022,,Property Department,Works - Construction
800183243   ,KIER BUILDING SERV ENGINEERS  ,10292849              ,114,55.38,REACTIVE MEP                            ,18/08/2022,,Property Department,Works - Construction
800183243   ,KIER BUILDING SERV ENGINEERS  ,10292849              ,115,101.85,REACTIVE MEP                            ,18/08/2022,,Property Department,Works - Construction
800183243   ,KIER BUILDING SERV ENGINEERS  ,10292849              ,116,110,REACTIVE MEP                            ,18/08/2022,,Property Department,Works - Construction
800183243   ,KIER BUILDING SERV ENGINEERS  ,10292849              ,117,17.83,REACTIVE MEP                            ,18/08/2022,,Property Department,Works - Construction
800183243   ,KIER BUILDING SERV ENGINEERS  ,10292849              ,118,108.51,REACTIVE MEP                            ,18/08/2022,,Property Department,Works - Construction
800183243   ,KIER BUILDING SERV ENGINEERS  ,10292849              ,119,3.51,REACTIVE MEP                            ,18/08/2022,,Property Department,Works - Construction
800183243   ,KIER BUILDING SERV ENGINEERS  ,10292849              ,120,159.67,REACTIVE MEP                            ,18/08/2022,,Property Department,Works - Construction
800183243   ,KIER BUILDING SERV ENGINEERS  ,10292849              ,121,93.37,REACTIVE MEP                            ,18/08/2022,,Property Department,Works - Construction
800183243   ,KIER BUILDING SERV ENGINEERS  ,10292849              ,122,139.21,REACTIVE MEP                            ,18/08/2022,,Property Department,Works - Construction
800183243   ,KIER BUILDING SERV ENGINEERS  ,10292849              ,123,61.87,REACTIVE MEP                            ,18/08/2022,,Property Department,Works - Construction
800183243   ,KIER BUILDING SERV ENGINEERS  ,10292849              ,124,34.26,REACTIVE MEP                            ,18/08/2022,,Property Department,Works - Construction
800183243   ,KIER BUILDING SERV ENGINEERS  ,10292849              ,125,73.84,REACTIVE MEP                            ,18/08/2022,,Property Department,Works - Construction
800183243   ,KIER BUILDING SERV ENGINEERS  ,10292849              ,126,104.7,REACTIVE MEP                            ,18/08/2022,,Property Department,Works - Construction
800183243   ,KIER BUILDING SERV ENGINEERS  ,10292849              ,127,54.4,REACTIVE MEP                            ,18/08/2022,,Property Department,Works - Construction
800183243   ,KIER BUILDING SERV ENGINEERS  ,10292849              ,128,152.46,REACTIVE MEP                            ,18/08/2022,,Property Department,Works - Construction
800183243   ,KIER BUILDING SERV ENGINEERS  ,10292849              ,129,23.07,REACTIVE MEP                            ,18/08/2022,,Property Department,Works - Construction
800183243   ,KIER BUILDING SERV ENGINEERS  ,10292849              ,130,57.11,REACTIVE MEP                            ,18/08/2022,,Property Department,Works - Construction
800183243   ,KIER BUILDING SERV ENGINEERS  ,10292849              ,131,233.53,REACTIVE MEP                            ,18/08/2022,,Property Department,Works - Construction
800183243   ,KIER BUILDING SERV ENGINEERS  ,10292849              ,132,21.48,REACTIVE MEP                            ,18/08/2022,,Property Department,Works - Construction
800183243   ,KIER BUILDING SERV ENGINEERS  ,10292849              ,133,213.21,REACTIVE MEP                            ,18/08/2022,,Property Department,Works - Construction
800183243   ,KIER BUILDING SERV ENGINEERS  ,10292849              ,134,31.38,REACTIVE MEP                            ,18/08/2022,,Property Department,Works - Construction
800183243   ,KIER BUILDING SERV ENGINEERS  ,10292849              ,135,117.08,REACTIVE MEP                            ,18/08/2022,,Property Department,Works - Construction
800183243   ,KIER BUILDING SERV ENGINEERS  ,10292849              ,136,31.91,REACTIVE MEP                            ,18/08/2022,,Property Department,Works - Construction
800183243   ,KIER BUILDING SERV ENGINEERS  ,10292849              ,137,57.22,REACTIVE MEP                            ,18/08/2022,,Property Department,Works - Construction
800183243   ,KIER BUILDING SERV ENGINEERS  ,10292849              ,138,56.3,REACTIVE MEP                            ,18/08/2022,,Property Department,Works - Construction
800183243   ,KIER BUILDING SERV ENGINEERS  ,10292849              ,139,18.93,REACTIVE MEP                            ,18/08/2022,,Property Department,Works - Construction
800183243   ,KIER BUILDING SERV ENGINEERS  ,10292849              ,140,103.56,REACTIVE MEP                            ,18/08/2022,,Property Department,Works - Construction
800183243   ,KIER BUILDING SERV ENGINEERS  ,10292849              ,141,110,REACTIVE MEP                            ,18/08/2022,,Property Department,Works - Construction
800183243   ,KIER BUILDING SERV ENGINEERS  ,10292849              ,142,64.9,REACTIVE MEP                            ,18/08/2022,,Property Department,Works - Construction
800183243   ,KIER BUILDING SERV ENGINEERS  ,10292849              ,143,108.2,REACTIVE MEP                            ,18/08/2022,,Property Department,Works - Construction
800183243   ,KIER BUILDING SERV ENGINEERS  ,10292849              ,144,110,REACTIVE MEP                            ,18/08/2022,,Property Department,Works - Construction
800183243   ,KIER BUILDING SERV ENGINEERS  ,10292849              ,145,75.83,REACTIVE MEP                            ,18/08/2022,,Property Department,Works - Construction
800183243   ,KIER BUILDING SERV ENGINEERS  ,10292849              ,146,35.22,REACTIVE MEP                            ,18/08/2022,,Property Department,Works - Construction
800183243   ,KIER BUILDING SERV ENGINEERS  ,10292849              ,147,2.15,REACTIVE MEP                            ,18/08/2022,,Property Department,Works - Construction
800183243   ,KIER BUILDING SERV ENGINEERS  ,10292849              ,148,21.95,REACTIVE MEP                            ,18/08/2022,,Property Department,Works - Construction
800183243   ,KIER BUILDING SERV ENGINEERS  ,10292849              ,149,78.45,REACTIVE MEP                            ,18/08/2022,,Property Department,Works - Construction
800183243   ,KIER BUILDING SERV ENGINEERS  ,10292849              ,150,110.76,REACTIVE MEP                            ,18/08/2022,,Property Department,Works - Construction
800183243   ,KIER BUILDING SERV ENGINEERS  ,10292849              ,151,68.78,REACTIVE MEP                            ,18/08/2022,,Property Department,Works - Construction
800183243   ,KIER BUILDING SERV ENGINEERS  ,10292849              ,152,45.69,REACTIVE MEP                            ,18/08/2022,,Property Department,Works - Construction
800183243   ,KIER BUILDING SERV ENGINEERS  ,10292849              ,153,72.91,REACTIVE MEP                            ,18/08/2022,,Property Department,Works - Construction
800183243   ,KIER BUILDING SERV ENGINEERS  ,10292849              ,154,6.01,REACTIVE MEP                            ,18/08/2022,,Property Department,Works - Construction
800183243   ,KIER BUILDING SERV ENGINEERS  ,10292849              ,155,35.07,REACTIVE MEP                            ,18/08/2022,,Property Department,Works - Construction
800183243   ,KIER BUILDING SERV ENGINEERS  ,10292849              ,156,125.65,REACTIVE MEP                            ,18/08/2022,,Property Department,Works - Construction
800183243   ,KIER BUILDING SERV ENGINEERS  ,10292849              ,157,160.87,REACTIVE MEP                            ,18/08/2022,,Property Department,Works - Construction
800183243   ,KIER BUILDING SERV ENGINEERS  ,10292849              ,158,158.02,REACTIVE MEP                            ,18/08/2022,,Property Department,Works - Construction
800183243   ,KIER BUILDING SERV ENGINEERS  ,10292849              ,159,36.17,REACTIVE MEP                            ,18/08/2022,,Property Department,Works - Construction
800183243   ,KIER BUILDING SERV ENGINEERS  ,10292849              ,160,5.35,REACTIVE MEP                            ,18/08/2022,,Property Department,Works - Construction
800183243   ,KIER BUILDING SERV ENGINEERS  ,10292849              ,161,177.17,REACTIVE MEP                            ,18/08/2022,,Property Department,Works - Construction
800183243   ,KIER BUILDING SERV ENGINEERS  ,10292849              ,162,94.14,REACTIVE MEP                            ,18/08/2022,,Property Department,Works - Construction
800183243   ,KIER BUILDING SERV ENGINEERS  ,10292849              ,163,77.1,REACTIVE MEP                            ,18/08/2022,,Property Department,Works - Construction
800183243   ,KIER BUILDING SERV ENGINEERS  ,10292849              ,164,83.9,REACTIVE MEP                            ,18/08/2022,,Property Department,Works - Construction
800183243   ,KIER BUILDING SERV ENGINEERS  ,10292849              ,165,57.11,REACTIVE MEP                            ,18/08/2022,,Property Department,Works - Construction
800183243   ,KIER BUILDING SERV ENGINEERS  ,10292849              ,166,119.94,REACTIVE MEP                            ,18/08/2022,,Property Department,Works - Construction
800183243   ,KIER BUILDING SERV ENGINEERS  ,10292849              ,167,25.57,REACTIVE MEP                            ,18/08/2022,,Property Department,Works - Construction
800183243   ,KIER BUILDING SERV ENGINEERS  ,10292849              ,168,143.06,REACTIVE MEP                            ,18/08/2022,,Property Department,Works - Construction
800183243   ,KIER BUILDING SERV ENGINEERS  ,10292849              ,169,75.65,REACTIVE MEP                            ,18/08/2022,,Property Department,Works - Construction
800183243   ,KIER BUILDING SERV ENGINEERS  ,10292849              ,170,51.78,REACTIVE MEP                            ,18/08/2022,,Property Department,Works - Construction
800183243   ,KIER BUILDING SERV ENGINEERS  ,10292849              ,171,185.34,REACTIVE MEP                            ,18/08/2022,,Property Department,Works - Construction
800183243   ,KIER BUILDING SERV ENGINEERS  ,10292849              ,172,96.91,REACTIVE MEP                            ,18/08/2022,,Property Department,Works - Construction
800183243   ,KIER BUILDING SERV ENGINEERS  ,10292849              ,173,57.22,REACTIVE MEP                            ,18/08/2022,,Property Department,Works - Construction
800183243   ,KIER BUILDING SERV ENGINEERS  ,10292849              ,174,359.82,REACTIVE MEP                            ,18/08/2022,30662.85,Property Department,Works - Construction
800183243   ,KIER BUILDING SERV ENGINEERS  ,10292849              ,175,180.9,REACTIVE MEP                            ,18/08/2022,,Property Department,Works - Construction
800183243   ,KIER BUILDING SERV ENGINEERS  ,10292849              ,176,508.19,REACTIVE MEP                            ,18/08/2022,,Property Department,Works - Construction
800183243   ,KIER BUILDING SERV ENGINEERS  ,10292849              ,177,44,REACTIVE SOFT FM CONTRACT               ,18/08/2022,,Property Department,Facilities & Management Services
800183243   ,KIER BUILDING SERV ENGINEERS  ,10292849              ,178,16.88,REACTIVE MEP                            ,18/08/2022,,Property Department,Works - Construction
800183243   ,KIER BUILDING SERV ENGINEERS  ,10292849              ,179,19.04,REACTIVE MEP                            ,18/08/2022,,Property Department,Works - Construction
800183243   ,KIER BUILDING SERV ENGINEERS  ,10292849              ,180,17.66,REACTIVE MEP                            ,18/08/2022,,Property Department,Works - Construction
800183243   ,KIER BUILDING SERV ENGINEERS  ,10292849              ,181,39.69,REACTIVE MEP                            ,18/08/2022,,Property Department,Works - Construction
800183243   ,KIER BUILDING SERV ENGINEERS  ,10292849              ,182,81.22,REACTIVE MEP                            ,18/08/2022,,Property Department,Works - Construction
800183243   ,KIER BUILDING SERV ENGINEERS  ,10292849              ,183,28.56,REACTIVE MEP                            ,18/08/2022,,Property Department,Works - Construction
800183243   ,KIER BUILDING SERV ENGINEERS  ,10292849              ,184,107.1,REACTIVE MEP                            ,18/08/2022,,Property Department,Works - Construction
800183243   ,KIER BUILDING SERV ENGINEERS  ,10292849              ,185,5.4,REACTIVE MEP                            ,18/08/2022,,Property Department,Works - Construction
800183243   ,KIER BUILDING SERV ENGINEERS  ,10292849              ,186,55.18,REACTIVE MEP                            ,18/08/2022,,Property Department,Works - Construction
800183243   ,KIER BUILDING SERV ENGINEERS  ,10292849              ,187,129.79,REACTIVE MEP                            ,18/08/2022,,Property Department,Works - Construction
800183243   ,KIER BUILDING SERV ENGINEERS  ,10292849              ,188,23.16,REACTIVE MEP                            ,18/08/2022,,Property Department,Works - Construction
800183243   ,KIER BUILDING SERV ENGINEERS  ,10292849              ,189,18.93,REACTIVE MEP                            ,18/08/2022,,Property Department,Works - Construction
800183243   ,KIER BUILDING SERV ENGINEERS  ,10292849              ,190,39.69,REACTIVE MEP                            ,18/08/2022,,Property Department,Works - Construction
800183243   ,KIER BUILDING SERV ENGINEERS  ,10292849              ,191,81.22,REACTIVE MEP                            ,18/08/2022,,Property Department,Works - Construction
800183243   ,KIER BUILDING SERV ENGINEERS  ,10292849              ,192,35.53,REACTIVE MEP                            ,18/08/2022,,Property Department,Works - Construction
800183243   ,KIER BUILDING SERV ENGINEERS  ,10292849              ,193,82.8,REACTIVE MEP                            ,18/08/2022,,Property Department,Works - Construction
800183243   ,KIER BUILDING SERV ENGINEERS  ,10292849              ,194,33.32,REACTIVE MEP                            ,18/08/2022,,Property Department,Works - Construction
800183243   ,KIER BUILDING SERV ENGINEERS  ,10292849              ,195,72.31,REACTIVE MEP                            ,18/08/2022,,Property Department,Works - Construction
800183243   ,KIER BUILDING SERV ENGINEERS  ,10292849              ,196,165.03,REACTIVE MEP                            ,18/08/2022,,Property Department,Works - Construction
800183243   ,KIER BUILDING SERV ENGINEERS  ,10292849              ,197,55.8,REACTIVE MEP                            ,18/08/2022,,Property Department,Works - Construction
800183243   ,KIER BUILDING SERV ENGINEERS  ,10292849              ,198,93.26,REACTIVE MEP                            ,18/08/2022,,Property Department,Works - Construction
800183243   ,KIER BUILDING SERV ENGINEERS  ,10292849              ,199,85.67,REACTIVE MEP                            ,18/08/2022,,Property Department,Works - Construction
800183243   ,KIER BUILDING SERV ENGINEERS  ,10292849              ,200,30.91,REACTIVE MEP                            ,18/08/2022,,Property Department,Works - Construction
800183243   ,KIER BUILDING SERV ENGINEERS  ,10292849              ,201,97.05,REACTIVE MEP                            ,18/08/2022,,Property Department,Works - Construction
800183243   ,KIER BUILDING SERV ENGINEERS  ,10292849              ,202,61.87,REACTIVE MEP                            ,18/08/2022,,Property Department,Works - Construction
800183243   ,KIER BUILDING SERV ENGINEERS  ,10292849              ,203,47.99,REACTIVE MEP                            ,18/08/2022,,Property Department,Works - Construction
800183243   ,KIER BUILDING SERV ENGINEERS  ,10292849              ,204,194.27,REACTIVE MEP                            ,18/08/2022,,Property Department,Works - Construction
800183243   ,KIER BUILDING SERV ENGINEERS  ,10292849              ,205,84.72,REACTIVE MEP                            ,18/08/2022,,Property Department,Works - Construction
800183243   ,KIER BUILDING SERV ENGINEERS  ,10292849              ,206,10.47,REACTIVE MEP                            ,18/08/2022,,Property Department,Works - Construction
800183243   ,KIER BUILDING SERV ENGINEERS  ,10292849              ,207,549.08,REACTIVE MEP                            ,18/08/2022,,Property Department,Works - Construction
800183242   ,KIER BUILDING SERV ENGINEERS  ,10292850              ,1,5424.81,REACTIVE SMALL WORKS AND PROJ           ,18/08/2022,5424.81,Property Department,Works - Construction
144013      ,ANGLIAN WATER BUS NATIONAL    ,1040107               ,1,235.98,WATER & SEWERAGE RATES                  ,04/08/2022,,Property Department,Utilities
144013      ,ANGLIAN WATER BUS NATIONAL    ,1040107               ,2,165.4,WATER & SEWERAGE RATES                  ,04/08/2022,,Property Department,Utilities
144013      ,ANGLIAN WATER BUS NATIONAL    ,1040107               ,3,275.69,WATER & SEWERAGE RATES                  ,04/08/2022,,Property Department,Utilities
144013      ,ANGLIAN WATER BUS NATIONAL    ,1040107               ,4,90.61,WATER & SEWERAGE RATES                  ,04/08/2022,,Property Department,Utilities
144013      ,ANGLIAN WATER BUS NATIONAL    ,1040107               ,5,259.85,WATER & SEWERAGE RATES                  ,04/08/2022,,Property Department,Utilities
144013      ,ANGLIAN WATER BUS NATIONAL    ,1040107               ,7,2031.59,WATER & SEWERAGE RATES                  ,04/08/2022,,Property Department,Utilities
144013      ,ANGLIAN WATER BUS NATIONAL    ,1040107               ,8,19.97,WATER & SEWERAGE RATES                  ,04/08/2022,,Property Department,Utilities
144013      ,ANGLIAN WATER BUS NATIONAL    ,1040107               ,9,102.27,WATER & SEWERAGE RATES                  ,04/08/2022,24559.28,Property Department,Utilities
144013      ,ANGLIAN WATER BUS NATIONAL    ,1040107               ,10,118.79,WATER & SEWERAGE RATES                  ,04/08/2022,,Property Department,Utilities
144013      ,ANGLIAN WATER BUS NATIONAL    ,1040107               ,11,382.08,WATER & SEWERAGE RATES                  ,04/08/2022,,Property Department,Utilities
144013      ,ANGLIAN WATER BUS NATIONAL    ,1040107               ,12,162.62,WATER & SEWERAGE RATES                  ,04/08/2022,,Property Department,Utilities
144013      ,ANGLIAN WATER BUS NATIONAL    ,1040107               ,13,215.4,WATER & SEWERAGE RATES                  ,04/08/2022,,Property Department,Utilities
144013      ,ANGLIAN WATER BUS NATIONAL    ,1040107               ,14,182.06,WATER & SEWERAGE RATES                  ,04/08/2022,,Property Department,Utilities
144013      ,ANGLIAN WATER BUS NATIONAL    ,1040107               ,15,154.29,WATER & SEWERAGE RATES                  ,04/08/2022,,Property Department,Utilities
144013      ,ANGLIAN WATER BUS NATIONAL    ,1040107               ,16,66.25,WATER & SEWERAGE RATES                  ,04/08/2022,,Property Department,Utilities
144013      ,ANGLIAN WATER BUS NATIONAL    ,1040107               ,17,212.61,WATER & SEWERAGE RATES                  ,04/08/2022,,Property Department,Utilities
144013      ,ANGLIAN WATER BUS NATIONAL    ,1040107               ,18,50.82,WATER & SEWERAGE RATES                  ,04/08/2022,,Property Department,Utilities
144013      ,ANGLIAN WATER BUS NATIONAL    ,1040107               ,19,68.15,WATER & SEWERAGE RATES                  ,04/08/2022,,Property Department,Utilities
144013      ,ANGLIAN WATER BUS NATIONAL    ,1040107               ,20,401.52,WATER & SEWERAGE RATES                  ,04/08/2022,,Property Department,Utilities
144013      ,ANGLIAN WATER BUS NATIONAL    ,1040107               ,22,98.72,WATER & SEWERAGE RATES                  ,04/08/2022,,Property Department,Utilities
144013      ,ANGLIAN WATER BUS NATIONAL    ,1040107               ,23,233.62,WATER & SEWERAGE RATES                  ,04/08/2022,,Property Department,Utilities
144013      ,ANGLIAN WATER BUS NATIONAL    ,1040107               ,24,170.95,WATER & SEWERAGE RATES                  ,04/08/2022,,Property Department,Utilities
144013      ,ANGLIAN WATER BUS NATIONAL    ,1040107               ,25,132.05,WATER & SEWERAGE RATES                  ,04/08/2022,,Property Department,Utilities
144013      ,ANGLIAN WATER BUS NATIONAL    ,1040107               ,26,291.36,WATER & SEWERAGE RATES                  ,04/08/2022,,Property Department,Utilities
144013      ,ANGLIAN WATER BUS NATIONAL    ,1040107               ,27,354.35,WATER & SEWERAGE RATES                  ,04/08/2022,,Property Department,Utilities
144013      ,ANGLIAN WATER BUS NATIONAL    ,1040107               ,28,265.4,WATER & SEWERAGE RATES                  ,04/08/2022,,Property Department,Utilities
144013      ,ANGLIAN WATER BUS NATIONAL    ,1040107               ,29,101.5,WATER & SEWERAGE RATES                  ,04/08/2022,,Property Department,Utilities
144013      ,ANGLIAN WATER BUS NATIONAL    ,1040107               ,30,86.83,WATER & SEWERAGE RATES                  ,04/08/2022,,Property Department,Utilities
144013      ,ANGLIAN WATER BUS NATIONAL    ,1040107               ,31,72.75,WATER & SEWERAGE RATES                  ,04/08/2022,,Property Department,Utilities
144013      ,ANGLIAN WATER BUS NATIONAL    ,1040107               ,32,213.56,WATER & SEWERAGE RATES                  ,04/08/2022,,Property Department,Utilities
144013      ,ANGLIAN WATER BUS NATIONAL    ,1040107               ,33,19.97,WATER & SEWERAGE RATES                  ,04/08/2022,,Property Department,Utilities
144013      ,ANGLIAN WATER BUS NATIONAL    ,1040107               ,34,10.23,WATER & SEWERAGE RATES                  ,04/08/2022,,Property Department,Utilities
144013      ,ANGLIAN WATER BUS NATIONAL    ,1040107               ,35,82.75,WATER & SEWERAGE RATES                  ,04/08/2022,,Property Department,Utilities
144013      ,ANGLIAN WATER BUS NATIONAL    ,1040107               ,36,181.68,WATER & SEWERAGE RATES                  ,04/08/2022,,Property Department,Utilities
144013      ,ANGLIAN WATER BUS NATIONAL    ,1040107               ,37,390.47,WATER & SEWERAGE RATES                  ,04/08/2022,,Property Department,Utilities
144013      ,ANGLIAN WATER BUS NATIONAL    ,1040107               ,38,151.56,WATER & SEWERAGE RATES                  ,04/08/2022,,Property Department,Utilities
144013      ,ANGLIAN WATER BUS NATIONAL    ,1040107               ,39,140.39,WATER & SEWERAGE RATES                  ,04/08/2022,,Property Department,Utilities
144013      ,ANGLIAN WATER BUS NATIONAL    ,1040107               ,40,7.05,WATER & SEWERAGE RATES                  ,04/08/2022,,Property Department,Utilities
144013      ,ANGLIAN WATER BUS NATIONAL    ,1040107               ,41,376.52,WATER & SEWERAGE RATES                  ,04/08/2022,,Property Department,Utilities
144013      ,ANGLIAN WATER BUS NATIONAL    ,1040107               ,42,44.98,WATER & SEWERAGE RATES                  ,04/08/2022,,Property Department,Utilities
144013      ,ANGLIAN WATER BUS NATIONAL    ,1040107               ,43,14.16,WATER & SEWERAGE RATES                  ,04/08/2022,,Property Department,Utilities
144013      ,ANGLIAN WATER BUS NATIONAL    ,1040107               ,44,111.77,WATER & SEWERAGE RATES                  ,04/08/2022,,Property Department,Utilities
144013      ,ANGLIAN WATER BUS NATIONAL    ,1040107               ,45,53.57,WATER & SEWERAGE RATES                  ,04/08/2022,,Property Department,Utilities
144013      ,ANGLIAN WATER BUS NATIONAL    ,1040107               ,46,264.15,WATER & SEWERAGE RATES                  ,04/08/2022,,Property Department,Utilities
144013      ,ANGLIAN WATER BUS NATIONAL    ,1040107               ,47,75.25,WATER & SEWERAGE RATES                  ,04/08/2022,,Property Department,Utilities
144013      ,ANGLIAN WATER BUS NATIONAL    ,1040107               ,48,4.27,WATER & SEWERAGE RATES                  ,04/08/2022,,Property Department,Utilities
144013      ,ANGLIAN WATER BUS NATIONAL    ,1040107               ,49,965.46,WATER & SEWERAGE RATES                  ,04/08/2022,,Property Department,Utilities
144013      ,ANGLIAN WATER BUS NATIONAL    ,1040107               ,50,101.46,WATER & SEWERAGE RATES                  ,04/08/2022,,Property Department,Utilities
144013      ,ANGLIAN WATER BUS NATIONAL    ,1040107               ,51,201.51,WATER & SEWERAGE RATES                  ,04/08/2022,,Property Department,Utilities
144013      ,ANGLIAN WATER BUS NATIONAL    ,1040107               ,52,157.06,WATER & SEWERAGE RATES                  ,04/08/2022,,Property Department,Utilities
144013      ,ANGLIAN WATER BUS NATIONAL    ,1040107               ,53,155.83,WATER & SEWERAGE RATES                  ,04/08/2022,,Property Department,Utilities
144013      ,ANGLIAN WATER BUS NATIONAL    ,1040107               ,54,162.62,WATER & SEWERAGE RATES                  ,04/08/2022,,Property Department,Utilities
144013      ,ANGLIAN WATER BUS NATIONAL    ,1040107               ,55,79.13,WATER & SEWERAGE RATES                  ,04/08/2022,,Property Department,Utilities
144013      ,ANGLIAN WATER BUS NATIONAL    ,1040107               ,56,159.83,WATER & SEWERAGE RATES                  ,04/08/2022,,Property Department,Utilities
144013      ,ANGLIAN WATER BUS NATIONAL    ,1040107               ,57,193.18,WATER & SEWERAGE RATES                  ,04/08/2022,,Property Department,Utilities
144013      ,ANGLIAN WATER BUS NATIONAL    ,1040107               ,58,157.06,WATER & SEWERAGE RATES                  ,04/08/2022,,Property Department,Utilities
144013      ,ANGLIAN WATER BUS NATIONAL    ,1040107               ,59,222.46,WATER & SEWERAGE RATES                  ,04/08/2022,,Property Department,Utilities
144013      ,ANGLIAN WATER BUS NATIONAL    ,1040107               ,60,58.62,WATER & SEWERAGE RATES                  ,04/08/2022,,Property Department,Utilities
144013      ,ANGLIAN WATER BUS NATIONAL    ,1040107               ,61,173.73,WATER & SEWERAGE RATES                  ,04/08/2022,,Property Department,Utilities
144013      ,ANGLIAN WATER BUS NATIONAL    ,1040107               ,62,287.62,WATER & SEWERAGE RATES                  ,04/08/2022,,Property Department,Utilities
144013      ,ANGLIAN WATER BUS NATIONAL    ,1040107               ,63,173.73,WATER & SEWERAGE RATES                  ,04/08/2022,,Property Department,Utilities
144013      ,ANGLIAN WATER BUS NATIONAL    ,1040107               ,64,84.5,WATER & SEWERAGE RATES                  ,04/08/2022,,Property Department,Utilities
144013      ,ANGLIAN WATER BUS NATIONAL    ,1040107               ,65,832.17,WATER & SEWERAGE RATES                  ,04/08/2022,,Property Department,Utilities
144013      ,ANGLIAN WATER BUS NATIONAL    ,1040107               ,66,433.64,WATER & SEWERAGE RATES                  ,04/08/2022,,Property Department,Utilities
144013      ,ANGLIAN WATER BUS NATIONAL    ,1040107               ,67,99.2,WATER & SEWERAGE RATES                  ,04/08/2022,,Property Department,Utilities
144013      ,ANGLIAN WATER BUS NATIONAL    ,1040107               ,68,171.9,WATER & SEWERAGE RATES                  ,04/08/2022,,Property Department,Utilities
144013      ,ANGLIAN WATER BUS NATIONAL    ,1040107               ,69,464.55,WATER & SEWERAGE RATES                  ,04/08/2022,,Property Department,Utilities
144013      ,ANGLIAN WATER BUS NATIONAL    ,1040107               ,70,151.5,WATER & SEWERAGE RATES                  ,04/08/2022,,Property Department,Utilities
144013      ,ANGLIAN WATER BUS NATIONAL    ,1040107               ,71,120.94,WATER & SEWERAGE RATES                  ,04/08/2022,,Property Department,Utilities
144013      ,ANGLIAN WATER BUS NATIONAL    ,1040107               ,72,651.55,WATER & SEWERAGE RATES                  ,04/08/2022,,Property Department,Utilities
144013      ,ANGLIAN WATER BUS NATIONAL    ,1040107               ,73,279.29,WATER & SEWERAGE RATES                  ,04/08/2022,,Property Department,Utilities
144013      ,ANGLIAN WATER BUS NATIONAL    ,1040107               ,74,108.84,WATER & SEWERAGE RATES                  ,04/08/2022,,Property Department,Utilities
144013      ,ANGLIAN WATER BUS NATIONAL    ,1040107               ,75,145.96,WATER & SEWERAGE RATES                  ,04/08/2022,,Property Department,Utilities
144013      ,ANGLIAN WATER BUS NATIONAL    ,1040107               ,76,73.87,WATER & SEWERAGE RATES                  ,04/08/2022,,Property Department,Utilities
144013      ,ANGLIAN WATER BUS NATIONAL    ,1040107               ,77,455.46,WATER & SEWERAGE RATES                  ,04/08/2022,,Property Department,Utilities
144013      ,ANGLIAN WATER BUS NATIONAL    ,1040107               ,78,153.73,WATER & SEWERAGE RATES                  ,04/08/2022,,Property Department,Utilities
144013      ,ANGLIAN WATER BUS NATIONAL    ,1040107               ,79,151.5,WATER & SEWERAGE RATES                  ,04/08/2022,,Property Department,Utilities
144013      ,ANGLIAN WATER BUS NATIONAL    ,1040107               ,80,1177.61,WATER & SEWERAGE RATES                  ,04/08/2022,,Property Department,Utilities
144013      ,ANGLIAN WATER BUS NATIONAL    ,1040107               ,81,137.61,WATER & SEWERAGE RATES                  ,04/08/2022,,Property Department,Utilities
144013      ,ANGLIAN WATER BUS NATIONAL    ,1040107               ,82,327.46,WATER & SEWERAGE RATES                  ,04/08/2022,,Property Department,Utilities
144013      ,ANGLIAN WATER BUS NATIONAL    ,1040107               ,83,137.69,WATER & SEWERAGE RATES                  ,04/08/2022,,Property Department,Utilities
144013      ,ANGLIAN WATER BUS NATIONAL    ,1040107               ,84,390.41,WATER & SEWERAGE RATES                  ,04/08/2022,,Property Department,Utilities
144013      ,ANGLIAN WATER BUS NATIONAL    ,1040107               ,85,239,WATER & SEWERAGE RATES                  ,04/08/2022,,Property Department,Utilities
144013      ,ANGLIAN WATER BUS NATIONAL    ,1040107               ,86,138.05,WATER & SEWERAGE RATES                  ,04/08/2022,,Property Department,Utilities
144013      ,ANGLIAN WATER BUS NATIONAL    ,1040107               ,87,316.92,WATER & SEWERAGE RATES                  ,04/08/2022,,Property Department,Utilities
144013      ,ANGLIAN WATER BUS NATIONAL    ,1040107               ,88,388.58,WATER & SEWERAGE RATES                  ,04/08/2022,,Property Department,Utilities
144013      ,ANGLIAN WATER BUS NATIONAL    ,1040107               ,89,229.29,WATER & SEWERAGE RATES                  ,04/08/2022,,Property Department,Utilities
144013      ,ANGLIAN WATER BUS NATIONAL    ,1040107               ,90,298.74,WATER & SEWERAGE RATES                  ,04/08/2022,,Property Department,Utilities
144013      ,ANGLIAN WATER BUS NATIONAL    ,1040107               ,91,117.33,WATER & SEWERAGE RATES                  ,04/08/2022,,Property Department,Utilities
144013      ,ANGLIAN WATER BUS NATIONAL    ,1040107               ,92,4.27,WATER & SEWERAGE RATES                  ,04/08/2022,,Property Department,Utilities
144013      ,ANGLIAN WATER BUS NATIONAL    ,1040107               ,93,189.63,WATER & SEWERAGE RATES                  ,04/08/2022,,Property Department,Utilities
144013      ,ANGLIAN WATER BUS NATIONAL    ,1040107               ,94,159.83,WATER & SEWERAGE RATES                  ,04/08/2022,,Property Department,Utilities
144013      ,ANGLIAN WATER BUS NATIONAL    ,1040107               ,95,313.57,WATER & SEWERAGE RATES                  ,04/08/2022,,Property Department,Utilities
144013      ,ANGLIAN WATER BUS NATIONAL    ,1040107               ,97,179.01,WATER & SEWERAGE RATES                  ,04/08/2022,,Property Department,Utilities
144013      ,ANGLIAN WATER BUS NATIONAL    ,1040107               ,98,295.98,WATER & SEWERAGE RATES                  ,04/08/2022,,Property Department,Utilities
144013      ,ANGLIAN WATER BUS NATIONAL    ,1040107               ,99,207.06,WATER & SEWERAGE RATES                  ,04/08/2022,,Property Department,Utilities
144013      ,ANGLIAN WATER BUS NATIONAL    ,1040107               ,100,394.13,WATER & SEWERAGE RATES                  ,04/08/2022,,Property Department,Utilities
144013      ,ANGLIAN WATER BUS NATIONAL    ,1040107               ,101,95.77,WATER & SEWERAGE RATES                  ,04/08/2022,,Property Department,Utilities
144013      ,ANGLIAN WATER BUS NATIONAL    ,1040107               ,102,137.32,WATER & SEWERAGE RATES                  ,04/08/2022,,Property Department,Utilities
144013      ,ANGLIAN WATER BUS NATIONAL    ,1040107               ,103,129.28,WATER & SEWERAGE RATES                  ,04/08/2022,,Property Department,Utilities
144013      ,ANGLIAN WATER BUS NATIONAL    ,1040107               ,104,29.43,WATER & SEWERAGE RATES                  ,04/08/2022,,Property Department,Utilities
144013      ,ANGLIAN WATER BUS NATIONAL    ,1040107               ,105,161.94,WATER & SEWERAGE RATES                  ,04/08/2022,,Property Department,Utilities
144013      ,ANGLIAN WATER BUS NATIONAL    ,1040107               ,106,143.18,WATER & SEWERAGE RATES                  ,04/08/2022,,Property Department,Utilities
144013      ,ANGLIAN WATER BUS NATIONAL    ,1040107               ,107,559.17,WATER & SEWERAGE RATES                  ,04/08/2022,,Property Department,Utilities
144013      ,ANGLIAN WATER BUS NATIONAL    ,1040107               ,108,168.22,WATER & SEWERAGE RATES                  ,04/08/2022,,Property Department,Utilities
144013      ,ANGLIAN WATER BUS NATIONAL    ,1040107               ,109,159.89,WATER & SEWERAGE RATES                  ,04/08/2022,,Property Department,Utilities
144013      ,ANGLIAN WATER BUS NATIONAL    ,1040107               ,110,246.91,WATER & SEWERAGE RATES                  ,04/08/2022,,Property Department,Utilities
144013      ,ANGLIAN WATER BUS NATIONAL    ,1040107               ,111,194.12,WATER & SEWERAGE RATES                  ,04/08/2022,,Property Department,Utilities
144013      ,ANGLIAN WATER BUS NATIONAL    ,1040107               ,112,118.17,WATER & SEWERAGE RATES                  ,04/08/2022,,Property Department,Utilities
144052      ,ANGLIAN WATER BUS NATIONAL    ,1041142               ,1,256.7,WATER & SEWERAGE RATES                  ,18/08/2022,,Property Department,Utilities
144052      ,ANGLIAN WATER BUS NATIONAL    ,1041142               ,2,151.36,WATER & SEWERAGE RATES                  ,18/08/2022,,Property Department,Utilities
144052      ,ANGLIAN WATER BUS NATIONAL    ,1041142               ,3,114.97,WATER & SEWERAGE RATES                  ,18/08/2022,,Property Department,Utilities
144052      ,ANGLIAN WATER BUS NATIONAL    ,1041142               ,4,87.68,WATER & SEWERAGE RATES                  ,18/08/2022,,Property Department,Utilities
144052      ,ANGLIAN WATER BUS NATIONAL    ,1041142               ,6,137.47,WATER & SEWERAGE RATES                  ,18/08/2022,,Property Department,Utilities
144052      ,ANGLIAN WATER BUS NATIONAL    ,1041142               ,7,19.66,WATER & SEWERAGE RATES                  ,18/08/2022,,Property Department,Utilities
144052      ,ANGLIAN WATER BUS NATIONAL    ,1041142               ,8,99.39,WATER & SEWERAGE RATES                  ,18/08/2022,24934.66,Property Department,Utilities
144052      ,ANGLIAN WATER BUS NATIONAL    ,1041142               ,9,52.6,WATER & SEWERAGE RATES                  ,18/08/2022,,Property Department,Utilities
144052      ,ANGLIAN WATER BUS NATIONAL    ,1041142               ,10,351.37,WATER & SEWERAGE RATES                  ,18/08/2022,,Property Department,Utilities
144052      ,ANGLIAN WATER BUS NATIONAL    ,1041142               ,11,112.49,WATER & SEWERAGE RATES                  ,18/08/2022,,Property Department,Utilities
144052      ,ANGLIAN WATER BUS NATIONAL    ,1041142               ,13,156.92,WATER & SEWERAGE RATES                  ,18/08/2022,,Property Department,Utilities
144052      ,ANGLIAN WATER BUS NATIONAL    ,1041142               ,14,237.47,WATER & SEWERAGE RATES                  ,18/08/2022,,Property Department,Utilities
144052      ,ANGLIAN WATER BUS NATIONAL    ,1041142               ,15,58.23,WATER & SEWERAGE RATES                  ,18/08/2022,,Property Department,Utilities
144052      ,ANGLIAN WATER BUS NATIONAL    ,1041142               ,16,206.92,WATER & SEWERAGE RATES                  ,18/08/2022,,Property Department,Utilities
144052      ,ANGLIAN WATER BUS NATIONAL    ,1041142               ,17,58.23,WATER & SEWERAGE RATES                  ,18/08/2022,,Property Department,Utilities
144052      ,ANGLIAN WATER BUS NATIONAL    ,1041142               ,18,59.7,WATER & SEWERAGE RATES                  ,18/08/2022,,Property Department,Utilities
144052      ,ANGLIAN WATER BUS NATIONAL    ,1041142               ,19,351.39,WATER & SEWERAGE RATES                  ,18/08/2022,,Property Department,Utilities
144052      ,ANGLIAN WATER BUS NATIONAL    ,1041142               ,20,638.77,WATER & SEWERAGE RATES                  ,18/08/2022,,Property Department,Utilities
144052      ,ANGLIAN WATER BUS NATIONAL    ,1041142               ,21,98.58,WATER & SEWERAGE RATES                  ,18/08/2022,,Property Department,Utilities
144052      ,ANGLIAN WATER BUS NATIONAL    ,1041142               ,22,28.11,WATER & SEWERAGE RATES                  ,18/08/2022,,Property Department,Utilities
144052      ,ANGLIAN WATER BUS NATIONAL    ,1041142               ,23,145.8,WATER & SEWERAGE RATES                  ,18/08/2022,,Property Department,Utilities
144052      ,ANGLIAN WATER BUS NATIONAL    ,1041142               ,24,140.25,WATER & SEWERAGE RATES                  ,18/08/2022,,Property Department,Utilities
144052      ,ANGLIAN WATER BUS NATIONAL    ,1041142               ,25,249.34,WATER & SEWERAGE RATES                  ,18/08/2022,,Property Department,Utilities
144052      ,ANGLIAN WATER BUS NATIONAL    ,1041142               ,26,173.11,WATER & SEWERAGE RATES                  ,18/08/2022,,Property Department,Utilities
144052      ,ANGLIAN WATER BUS NATIONAL    ,1041142               ,27,159.69,WATER & SEWERAGE RATES                  ,18/08/2022,,Property Department,Utilities
144052      ,ANGLIAN WATER BUS NATIONAL    ,1041142               ,28,145.81,WATER & SEWERAGE RATES                  ,18/08/2022,,Property Department,Utilities
144052      ,ANGLIAN WATER BUS NATIONAL    ,1041142               ,29,86.52,WATER & SEWERAGE RATES                  ,18/08/2022,,Property Department,Utilities
144052      ,ANGLIAN WATER BUS NATIONAL    ,1041142               ,30,28.52,WATER & SEWERAGE RATES                  ,18/08/2022,,Property Department,Utilities
144052      ,ANGLIAN WATER BUS NATIONAL    ,1041142               ,31,215.99,WATER & SEWERAGE RATES                  ,18/08/2022,,Property Department,Utilities
144052      ,ANGLIAN WATER BUS NATIONAL    ,1041142               ,32,11.93,WATER & SEWERAGE RATES                  ,18/08/2022,,Property Department,Utilities
144052      ,ANGLIAN WATER BUS NATIONAL    ,1041142               ,33,9.9,WATER & SEWERAGE RATES                  ,18/08/2022,,Property Department,Utilities
144052      ,ANGLIAN WATER BUS NATIONAL    ,1041142               ,36,253.67,WATER & SEWERAGE RATES                  ,18/08/2022,,Property Department,Utilities
144052      ,ANGLIAN WATER BUS NATIONAL    ,1041142               ,37,145.32,WATER & SEWERAGE RATES                  ,18/08/2022,,Property Department,Utilities
144052      ,ANGLIAN WATER BUS NATIONAL    ,1041142               ,38,126.37,WATER & SEWERAGE RATES                  ,18/08/2022,,Property Department,Utilities
144052      ,ANGLIAN WATER BUS NATIONAL    ,1041142               ,39,6.91,WATER & SEWERAGE RATES                  ,18/08/2022,,Property Department,Utilities
144052      ,ANGLIAN WATER BUS NATIONAL    ,1041142               ,40,576.4,WATER & SEWERAGE RATES                  ,18/08/2022,,Property Department,Utilities
144052      ,ANGLIAN WATER BUS NATIONAL    ,1041142               ,41,47.17,WATER & SEWERAGE RATES                  ,18/08/2022,,Property Department,Utilities
144052      ,ANGLIAN WATER BUS NATIONAL    ,1041142               ,42,11.21,WATER & SEWERAGE RATES                  ,18/08/2022,,Property Department,Utilities
144052      ,ANGLIAN WATER BUS NATIONAL    ,1041142               ,43,108.82,WATER & SEWERAGE RATES                  ,18/08/2022,,Property Department,Utilities
144052      ,ANGLIAN WATER BUS NATIONAL    ,1041142               ,44,61.18,WATER & SEWERAGE RATES                  ,18/08/2022,,Property Department,Utilities
144052      ,ANGLIAN WATER BUS NATIONAL    ,1041142               ,45,255.45,WATER & SEWERAGE RATES                  ,18/08/2022,,Property Department,Utilities
144052      ,ANGLIAN WATER BUS NATIONAL    ,1041142               ,46,103.79,WATER & SEWERAGE RATES                  ,18/08/2022,,Property Department,Utilities
144052      ,ANGLIAN WATER BUS NATIONAL    ,1041142               ,47,4.13,WATER & SEWERAGE RATES                  ,18/08/2022,,Property Department,Utilities
144052      ,ANGLIAN WATER BUS NATIONAL    ,1041142               ,48,901.43,WATER & SEWERAGE RATES                  ,18/08/2022,,Property Department,Utilities
144052      ,ANGLIAN WATER BUS NATIONAL    ,1041142               ,49,432.94,WATER & SEWERAGE RATES                  ,18/08/2022,,Property Department,Utilities
144052      ,ANGLIAN WATER BUS NATIONAL    ,1041142               ,50,173.58,WATER & SEWERAGE RATES                  ,18/08/2022,,Property Department,Utilities
144052      ,ANGLIAN WATER BUS NATIONAL    ,1041142               ,51,134.7,WATER & SEWERAGE RATES                  ,18/08/2022,,Property Department,Utilities
144052      ,ANGLIAN WATER BUS NATIONAL    ,1041142               ,52,126.1,WATER & SEWERAGE RATES                  ,18/08/2022,,Property Department,Utilities
144052      ,ANGLIAN WATER BUS NATIONAL    ,1041142               ,53,143.04,WATER & SEWERAGE RATES                  ,18/08/2022,,Property Department,Utilities
144052      ,ANGLIAN WATER BUS NATIONAL    ,1041142               ,54,2294.86,WATER & SEWERAGE RATES                  ,18/08/2022,,Property Department,Utilities
144052      ,ANGLIAN WATER BUS NATIONAL    ,1041142               ,55,235.73,WATER & SEWERAGE RATES                  ,18/08/2022,,Property Department,Utilities
144052      ,ANGLIAN WATER BUS NATIONAL    ,1041142               ,56,195.82,WATER & SEWERAGE RATES                  ,18/08/2022,,Property Department,Utilities
144052      ,ANGLIAN WATER BUS NATIONAL    ,1041142               ,57,68.03,WATER & SEWERAGE RATES                  ,18/08/2022,,Property Department,Utilities
144052      ,ANGLIAN WATER BUS NATIONAL    ,1041142               ,58,329.15,WATER & SEWERAGE RATES                  ,18/08/2022,,Property Department,Utilities
144052      ,ANGLIAN WATER BUS NATIONAL    ,1041142               ,59,1500.07,WATER & SEWERAGE RATES                  ,18/08/2022,,Property Department,Utilities
144052      ,ANGLIAN WATER BUS NATIONAL    ,1041142               ,60,158.34,WATER & SEWERAGE RATES                  ,18/08/2022,,Property Department,Utilities
144052      ,ANGLIAN WATER BUS NATIONAL    ,1041142               ,61,162.48,WATER & SEWERAGE RATES                  ,18/08/2022,,Property Department,Utilities
144052      ,ANGLIAN WATER BUS NATIONAL    ,1041142               ,63,362.5,WATER & SEWERAGE RATES                  ,18/08/2022,,Property Department,Utilities
144052      ,ANGLIAN WATER BUS NATIONAL    ,1041142               ,64,78.82,WATER & SEWERAGE RATES                  ,18/08/2022,,Property Department,Utilities
144052      ,ANGLIAN WATER BUS NATIONAL    ,1041142               ,65,828.72,WATER & SEWERAGE RATES                  ,18/08/2022,,Property Department,Utilities
144052      ,ANGLIAN WATER BUS NATIONAL    ,1041142               ,67,4,WATER & SEWERAGE RATES                  ,18/08/2022,,Property Department,Utilities
144052      ,ANGLIAN WATER BUS NATIONAL    ,1041142               ,68,160.44,WATER & SEWERAGE RATES                  ,18/08/2022,,Property Department,Utilities
144052      ,ANGLIAN WATER BUS NATIONAL    ,1041142               ,69,551.71,WATER & SEWERAGE RATES                  ,18/08/2022,,Property Department,Utilities
144052      ,ANGLIAN WATER BUS NATIONAL    ,1041142               ,70,4.13,WATER & SEWERAGE RATES                  ,18/08/2022,,Property Department,Utilities
144052      ,ANGLIAN WATER BUS NATIONAL    ,1041142               ,72,973.65,WATER & SEWERAGE RATES                  ,18/08/2022,,Property Department,Utilities
144052      ,ANGLIAN WATER BUS NATIONAL    ,1041142               ,73,251.36,WATER & SEWERAGE RATES                  ,18/08/2022,,Property Department,Utilities
144052      ,ANGLIAN WATER BUS NATIONAL    ,1041142               ,74,920.72,WATER & SEWERAGE RATES                  ,18/08/2022,,Property Department,Utilities
144052      ,ANGLIAN WATER BUS NATIONAL    ,1041142               ,75,76.34,WATER & SEWERAGE RATES                  ,18/08/2022,,Property Department,Utilities
144052      ,ANGLIAN WATER BUS NATIONAL    ,1041142               ,76,100.84,WATER & SEWERAGE RATES                  ,18/08/2022,,Property Department,Utilities
144052      ,ANGLIAN WATER BUS NATIONAL    ,1041142               ,77,440.04,WATER & SEWERAGE RATES                  ,18/08/2022,,Property Department,Utilities
144052      ,ANGLIAN WATER BUS NATIONAL    ,1041142               ,78,145.69,WATER & SEWERAGE RATES                  ,18/08/2022,,Property Department,Utilities
144052      ,ANGLIAN WATER BUS NATIONAL    ,1041142               ,79,76.35,WATER & SEWERAGE RATES                  ,18/08/2022,,Property Department,Utilities
144052      ,ANGLIAN WATER BUS NATIONAL    ,1041142               ,80,594.84,WATER & SEWERAGE RATES                  ,18/08/2022,,Property Department,Utilities
144052      ,ANGLIAN WATER BUS NATIONAL    ,1041142               ,81,120.8,WATER & SEWERAGE RATES                  ,18/08/2022,,Property Department,Utilities
144052      ,ANGLIAN WATER BUS NATIONAL    ,1041142               ,82,402.12,WATER & SEWERAGE RATES                  ,18/08/2022,,Property Department,Utilities
144052      ,ANGLIAN WATER BUS NATIONAL    ,1041142               ,83,141.53,WATER & SEWERAGE RATES                  ,18/08/2022,,Property Department,Utilities
144052      ,ANGLIAN WATER BUS NATIONAL    ,1041142               ,85,227.52,WATER & SEWERAGE RATES                  ,18/08/2022,,Property Department,Utilities
144052      ,ANGLIAN WATER BUS NATIONAL    ,1041142               ,87,262.69,WATER & SEWERAGE RATES                  ,18/08/2022,,Property Department,Utilities
144052      ,ANGLIAN WATER BUS NATIONAL    ,1041142               ,88,354.89,WATER & SEWERAGE RATES                  ,18/08/2022,,Property Department,Utilities
144052      ,ANGLIAN WATER BUS NATIONAL    ,1041142               ,89,168.03,WATER & SEWERAGE RATES                  ,18/08/2022,,Property Department,Utilities
144052      ,ANGLIAN WATER BUS NATIONAL    ,1041142               ,90,606.93,WATER & SEWERAGE RATES                  ,18/08/2022,,Property Department,Utilities
144052      ,ANGLIAN WATER BUS NATIONAL    ,1041142               ,91,114.9,WATER & SEWERAGE RATES                  ,18/08/2022,,Property Department,Utilities
144052      ,ANGLIAN WATER BUS NATIONAL    ,1041142               ,92,4.13,WATER & SEWERAGE RATES                  ,18/08/2022,,Property Department,Utilities
144052      ,ANGLIAN WATER BUS NATIONAL    ,1041142               ,93,125.87,WATER & SEWERAGE RATES                  ,18/08/2022,,Property Department,Utilities
144052      ,ANGLIAN WATER BUS NATIONAL    ,1041142               ,94,159.69,WATER & SEWERAGE RATES                  ,18/08/2022,,Property Department,Utilities
144052      ,ANGLIAN WATER BUS NATIONAL    ,1041142               ,96,140.25,WATER & SEWERAGE RATES                  ,18/08/2022,,Property Department,Utilities
144052      ,ANGLIAN WATER BUS NATIONAL    ,1041142               ,97,113.92,WATER & SEWERAGE RATES                  ,18/08/2022,,Property Department,Utilities
144052      ,ANGLIAN WATER BUS NATIONAL    ,1041142               ,98,176.37,WATER & SEWERAGE RATES                  ,18/08/2022,,Property Department,Utilities
144052      ,ANGLIAN WATER BUS NATIONAL    ,1041142               ,99,262.47,WATER & SEWERAGE RATES                  ,18/08/2022,,Property Department,Utilities
144052      ,ANGLIAN WATER BUS NATIONAL    ,1041142               ,100,352.1,WATER & SEWERAGE RATES                  ,18/08/2022,,Property Department,Utilities
144052      ,ANGLIAN WATER BUS NATIONAL    ,1041142               ,101,144.81,WATER & SEWERAGE RATES                  ,18/08/2022,,Property Department,Utilities
144052      ,ANGLIAN WATER BUS NATIONAL    ,1041142               ,102,227.96,WATER & SEWERAGE RATES                  ,18/08/2022,,Property Department,Utilities
144052      ,ANGLIAN WATER BUS NATIONAL    ,1041142               ,103,131.91,WATER & SEWERAGE RATES                  ,18/08/2022,,Property Department,Utilities
144052      ,ANGLIAN WATER BUS NATIONAL    ,1041142               ,104,49.12,WATER & SEWERAGE RATES                  ,18/08/2022,,Property Department,Utilities
144052      ,ANGLIAN WATER BUS NATIONAL    ,1041142               ,105,113.24,WATER & SEWERAGE RATES                  ,18/08/2022,,Property Department,Utilities
144052      ,ANGLIAN WATER BUS NATIONAL    ,1041142               ,106,201.37,WATER & SEWERAGE RATES                  ,18/08/2022,,Property Department,Utilities
144052      ,ANGLIAN WATER BUS NATIONAL    ,1041142               ,107,552.98,WATER & SEWERAGE RATES                  ,18/08/2022,,Property Department,Utilities
144052      ,ANGLIAN WATER BUS NATIONAL    ,1041142               ,108,170.33,WATER & SEWERAGE RATES                  ,18/08/2022,,Property Department,Utilities
144052      ,ANGLIAN WATER BUS NATIONAL    ,1041142               ,109,148.1,WATER & SEWERAGE RATES                  ,18/08/2022,,Property Department,Utilities
144052      ,ANGLIAN WATER BUS NATIONAL    ,1041142               ,110,302.1,WATER & SEWERAGE RATES                  ,18/08/2022,,Property Department,Utilities
144052      ,ANGLIAN WATER BUS NATIONAL    ,1041142               ,111,291.01,WATER & SEWERAGE RATES                  ,18/08/2022,,Property Department,Utilities
144052      ,ANGLIAN WATER BUS NATIONAL    ,1041142               ,112,95.81,WATER & SEWERAGE RATES                  ,18/08/2022,,Property Department,Utilities
144034      ,MEDICESS LIMITED              ,107458/11/S           ,1,870,LEGAL PROFESSIONAL FEES-GENERL          ,04/08/2022,870,Grenfell Investigation Legal Costs,Legal Services
170822P     ,FOCUS & VISION TECHNOLOGY LTD ,107708                ,1,391.2,MEDICAL EXPENSES CONTRACT               ,25/08/2022,391.2,People Services,Human Resources
170822P     ,FOCUS & VISION TECHNOLOGY LTD ,107724                ,1,666.8,MEDICAL EXPENSES CONTRACT               ,25/08/2022,666.8,People Services,Human Resources
170822P     ,FOCUS & VISION TECHNOLOGY LTD ,107733                ,1,862.4,MEDICAL EXPENSES CONTRACT               ,25/08/2022,862.4,People Services,Human Resources
270722 PROP ,BELLROCK PROPERTY & FACILITIES,110-38693             ,1,31537.01,REACTIVE SMALL WORKS AND PROJ           ,15/08/2022,31537.01,Property Department,Works - Construction
080822K     ,OPERATIONAL RESEARCH IN HEALTH,110H/LFB2/7H          ,1,1341.6,CONSULTANTS                             ,11/08/2022,1341.6,Enterprise Application Group (ICT),Consultancy
120822 PROP ,Brookvex IMS Ltd              ,11469                 ,1,3065.93,WORKPLACE IMPROVEMENTS                  ,18/08/2022,3065.93,Property Department,Works - Construction
130722K     ,CORPORATE TRAVEL MGMT(NORTH)  ,115444                ,1,28484.29,ACCOMMODATION BOOKINGS                  ,01/08/2022,28484.29,Procurement,Human Resources
240822P     ,FIREANGEL SAFETY TECHNOLOGY LD,1177613               ,1,3330,FIRE DETECTORS                          ,30/08/2022,21108,Fire Stations (South West),Health and Safety
240822P     ,FIREANGEL SAFETY TECHNOLOGY LD,1177613               ,2,3330,FIRE DETECTORS                          ,30/08/2022,,Fire Stations (South West),Health and Safety
240822P     ,FIREANGEL SAFETY TECHNOLOGY LD,1177613               ,3,3894,FIRE DETECTORS                          ,30/08/2022,,Fire Stations (South West),Health and Safety
240822P     ,FIREANGEL SAFETY TECHNOLOGY LD,1177613               ,4,3894,FIRE DETECTORS                          ,30/08/2022,,Fire Stations (South West),Health and Safety
240822P     ,FIREANGEL SAFETY TECHNOLOGY LD,1177613               ,5,3330,FIRE DETECTORS                          ,30/08/2022,,Fire Stations (South West),Health and Safety
240822P     ,FIREANGEL SAFETY TECHNOLOGY LD,1177613               ,6,3330,FIRE DETECTORS                          ,30/08/2022,,Fire Stations (South West),Health and Safety
190822P     ,FIREANGEL SAFETY TECHNOLOGY LD,1178005               ,1,1898,FIRE DETECTORS                          ,25/08/2022,1898,Fire Stations (North East),Health and Safety
190822P     ,FIREANGEL SAFETY TECHNOLOGY LD,1178192               ,1,1518.4,FIRE DETECTORS                          ,25/08/2022,1518.4,Fire Stations (North West),Health and Safety
010822B     ,FIREANGEL SAFETY TECHNOLOGY LD,1178410               ,1,778.8,FIRE DETECTORS                          ,04/08/2022,778.8,Fire Stations (North West),Health and Safety
010822B     ,FIREANGEL SAFETY TECHNOLOGY LD,1178569               ,1,3416.4,FIRE DETECTORS                          ,04/08/2022,3416.4,Fire Stations (North West),Health and Safety
190822P     ,FIREANGEL SAFETY TECHNOLOGY LD,1179093               ,1,3796,FIRE DETECTORS                          ,25/08/2022,9637,Fire Stations (North West),Health and Safety
190822P     ,FIREANGEL SAFETY TECHNOLOGY LD,1179093               ,2,5841,FIRE DETECTORS                          ,25/08/2022,,Fire Stations (North West),Health and Safety
144037      ,MR JONATHAN MOFFETT           ,119126/INVJM556       ,1,1350,PROFESSIONAL FEES GENERAL               ,15/08/2022,1350,General Counsel,Legal Services
020822B     ,ACTICA CONSULTING LTD         ,12396                 ,1,14320,SECURITY SERVICES                       ,08/08/2022,14320,Infrastructure Team (ICT),ICT
150822B PROP,CURRIE & BROWN UK LIMITED     ,124006433             ,1,600,PLANNED BUILDING DECORATIONS            ,18/08/2022,600,Property Department,Works - Construction
150822B PROP,CURRIE & BROWN UK LIMITED     ,124006437             ,1,600,PLANNED BUILDING DECORATIONS            ,18/08/2022,600,Property Department,Works - Construction
240822 PROP ,CURRIE & BROWN UK LIMITED     ,124011763             ,1,331.06,PLANNED BUILDING DECORATIONS            ,30/08/2022,331.06,Property Department,Works - Construction
080822P     ,Restore PLC                   ,1276445               ,1,2377.01,DATA SERVICES                           ,18/08/2022,2377.01,Information Management (ICT),ICT
144050      ,LB OF ENFIELD                 ,13103 - 11414136V1KOD ,1,494.2,DEVELOPMENT  EXPENSES-CONTRACT          ,15/08/2022,494.2,,Consultancy
144034      ,SHARPE PRITCHARD              ,131488                ,1,513,PROFESSIONAL FEES GENERAL               ,04/08/2022,513,General Counsel,Legal Services
220822K2    ,PLASTOR                       ,132501                ,1,112.35,PURCHASE                                ,25/08/2022,275.85,Technical & Support Service,Furniture & Soft Furnishings
220822K2    ,PLASTOR                       ,132501                ,2,123.5,PURCHASE                                ,25/08/2022,,Technical & Support Service,Furniture & Soft Furnishings
220822K2    ,PLASTOR                       ,132501                ,3,40,PURCHASE                                ,25/08/2022,,Technical & Support Service,Furniture & Soft Furnishings
030822P     ,SILVERSANDS LIMITED           ,133523                ,1,4040,SOFTWARE COTS                           ,08/08/2022,4040,Enterprise Application Group (ICT),ICT
170822P     ,SILVERSANDS LIMITED           ,133615                ,1,1125,SOFTWARE COTS                           ,25/08/2022,6000,Enterprise Application Group (ICT),ICT
170822P     ,SILVERSANDS LIMITED           ,133615                ,2,3980,SOFTWARE COTS                           ,25/08/2022,,Enterprise Application Group (ICT),ICT
170822P     ,SILVERSANDS LIMITED           ,133615                ,3,895,SOFTWARE COTS                           ,25/08/2022,,Enterprise Application Group (ICT),ICT
170822P     ,SILVERSANDS LIMITED           ,133616                ,1,3375,SOFTWARE COTS                           ,25/08/2022,4270,Enterprise Application Group (ICT),ICT
170822P     ,SILVERSANDS LIMITED           ,133616                ,2,895,SOFTWARE COTS                           ,25/08/2022,,Enterprise Application Group (ICT),ICT
170822P     ,SILVERSANDS LIMITED           ,133617                ,1,995,SOFTWARE COTS                           ,25/08/2022,995,Enterprise Application Group (ICT),ICT
170822P     ,SILVERSANDS LIMITED           ,133618                ,1,15980,SOFTWARE COTS                           ,25/08/2022,15980,Enterprise Application Group (ICT),ICT
170822P     ,SILVERSANDS LIMITED           ,133698                ,1,6.67,SOFTWARE COTS                           ,25/08/2022,,Enterprise Application Group (ICT),ICT
170822P     ,SILVERSANDS LIMITED           ,133698                ,2,1118.33,SOFTWARE COTS                           ,25/08/2022,1125,Enterprise Application Group (ICT),ICT
170822P     ,SILVERSANDS LIMITED           ,133699                ,1,995,SOFTWARE COTS                           ,25/08/2022,995,Enterprise Application Group (ICT),ICT
220822K1    ,In-Press Photography Ltd      ,1407                  ,1,550,PRINTING                                ,25/08/2022,550,Communications,Facilities & Management Services
090822B PROP,MERLIN ELECTRICAL SERVICES LTD,14243                 ,1,599.49,WORKPLACE IMPROVEMENTS                  ,15/08/2022,599.49,Property Department,Works - Construction
140722 PROP ,MERLIN ELECTRICAL SERVICES LTD,14264                 ,1,351.87,WORKPLACE IMPROVEMENTS                  ,01/08/2022,351.87,Property Department,Works - Construction
290722B     ,PAIDEIA TRAINING & CONSULTANCY,15/IPPF003400/22      ,1,1800,CULTURAL CHANGE & TALENT                ,04/08/2022,1800,People Services,Human Resources
240822 PROP ,Fulkers Bailey Russell        ,15082                 ,1,2116,DEVELOPMENT  EXPENSES-CONTRACT          ,30/08/2022,2116,Property Department,Consultancy
240822 PROP ,Fulkers Bailey Russell        ,15089                 ,1,2170,PROF FEES-MISCELLANEOUS                 ,30/08/2022,2170,Property Department,Consultancy
260722B PROP,FRANKHAM CONSULTANCY GROUP LTD,157206                ,1,1200,PROF FEES-MISCELLANEOUS                 ,01/08/2022,1200,Property Department,Consultancy
260722B PROP,FRANKHAM CONSULTANCY GROUP LTD,157241                ,1,2292,PROF FEES-MISCELLANEOUS                 ,01/08/2022,2292,Property Department,Consultancy
260722B PROP,FRANKHAM CONSULTANCY GROUP LTD,157243                ,1,870,DEVELOPMENT  EXPENSES-CONTRACT          ,01/08/2022,870,Property Department,Consultancy
210722 PROP ,Fulkers Bailey Russell        ,15894                 ,1,5751.29,PROF FEES-MISCELLANEOUS                 ,01/08/2022,5751.29,Property Department,Consultancy
050822B PROP,Fulkers Bailey Russell        ,16052                 ,1,1800,PROF FEES-MISCELLANEOUS                 ,11/08/2022,1800,Property Department,Consultancy
230822B     ,PartB Group Ltd               ,1620                  ,1,1250,PROFESSIONAL DEVELOPMENT                ,30/08/2022,1250,Training and Professional Development,Human Resources
010822B PROP,Fulkers Bailey Russell        ,16392                 ,1,1800,PROF FEES-MISCELLANEOUS                 ,04/08/2022,1800,Property Department,Consultancy
290722B PROP,Fulkers Bailey Russell        ,16397                 ,1,1675,DEVELOPMENT  EXPENSES-CONTRACT          ,04/08/2022,1675,Property Department,Consultancy
050822B PROP,Fulkers Bailey Russell        ,16425                 ,1,6696.91,PROF FEES-MISCELLANEOUS                 ,11/08/2022,6696.91,Property Department,Consultancy
050822B PROP,Fulkers Bailey Russell        ,16426                 ,1,4230.3,PROF FEES-MISCELLANEOUS                 ,11/08/2022,4230.3,Property Department,Consultancy
220822B PROP,Fulkers Bailey Russell        ,16627                 ,1,4050,DEVELOPMENT  EXPENSES-CONTRACT          ,25/08/2022,4050,Property Department,Consultancy
240822 PROP ,Fulkers Bailey Russell        ,16629                 ,1,3010,DEVELOPMENT  EXPENSES-CONTRACT          ,30/08/2022,3010,Property Department,Consultancy
240822 PROP ,Fulkers Bailey Russell        ,16630                 ,1,2160,DEVELOPMENT  EXPENSES-CONTRACT          ,30/08/2022,2160,Property Department,Consultancy
144041      ,CORONA ENERGY RETAIL 4 LTD    ,170107221             ,1,1043.19,GAS                                     ,11/08/2022,,Property Department,Utilities
144041      ,CORONA ENERGY RETAIL 4 LTD    ,170107221             ,2,20.4,GAS                                     ,11/08/2022,,Property Department,Utilities
144041      ,CORONA ENERGY RETAIL 4 LTD    ,170107221             ,3,1041.04,GAS                                     ,11/08/2022,,Property Department,Utilities
144041      ,CORONA ENERGY RETAIL 4 LTD    ,170107221             ,4,537.68,GAS                                     ,11/08/2022,,Property Department,Utilities
144041      ,CORONA ENERGY RETAIL 4 LTD    ,170107221             ,5,1086.94,GAS                                     ,11/08/2022,,Property Department,Utilities
144041      ,CORONA ENERGY RETAIL 4 LTD    ,170107221             ,6,869.67,GAS                                     ,11/08/2022,,Property Department,Utilities
144041      ,CORONA ENERGY RETAIL 4 LTD    ,170107221             ,7,919.12,GAS                                     ,11/08/2022,,Property Department,Utilities
144041      ,CORONA ENERGY RETAIL 4 LTD    ,170107221             ,8,629.17,GAS                                     ,11/08/2022,,Property Department,Utilities
144041      ,CORONA ENERGY RETAIL 4 LTD    ,170107221             ,9,785.26,GAS                                     ,11/08/2022,,Property Department,Utilities
144041      ,CORONA ENERGY RETAIL 4 LTD    ,170107221             ,10,106.51,GAS                                     ,11/08/2022,,Property Department,Utilities
144041      ,CORONA ENERGY RETAIL 4 LTD    ,170107221             ,11,36.73,GAS                                     ,11/08/2022,,Property Department,Utilities
144041      ,CORONA ENERGY RETAIL 4 LTD    ,170107221             ,12,1156.03,GAS                                     ,11/08/2022,,Property Department,Utilities
144041      ,CORONA ENERGY RETAIL 4 LTD    ,170107221             ,13,867.2,GAS                                     ,11/08/2022,,Property Department,Utilities
144041      ,CORONA ENERGY RETAIL 4 LTD    ,170107221             ,14,615.97,GAS                                     ,11/08/2022,,Property Department,Utilities
144041      ,CORONA ENERGY RETAIL 4 LTD    ,170107221             ,15,591.3,GAS                                     ,11/08/2022,,Property Department,Utilities
144041      ,CORONA ENERGY RETAIL 4 LTD    ,170107221             ,16,795.19,GAS                                     ,11/08/2022,,Property Department,Utilities
144041      ,CORONA ENERGY RETAIL 4 LTD    ,170107221             ,17,558.07,GAS                                     ,11/08/2022,,Property Department,Utilities
144041      ,CORONA ENERGY RETAIL 4 LTD    ,170107221             ,18,360.36,GAS                                     ,11/08/2022,,Property Department,Utilities
144041      ,CORONA ENERGY RETAIL 4 LTD    ,170107221             ,19,493.11,GAS                                     ,11/08/2022,,Property Department,Utilities
144041      ,CORONA ENERGY RETAIL 4 LTD    ,170107221             ,20,967.78,GAS                                     ,11/08/2022,,Property Department,Utilities
144041      ,CORONA ENERGY RETAIL 4 LTD    ,170107221             ,21,1032.88,GAS                                     ,11/08/2022,,Property Department,Utilities
144041      ,CORONA ENERGY RETAIL 4 LTD    ,170107221             ,24,753.78,GAS                                     ,11/08/2022,,Property Department,Utilities
144041      ,CORONA ENERGY RETAIL 4 LTD    ,170107221             ,25,606.62,GAS                                     ,11/08/2022,,Property Department,Utilities
144041      ,CORONA ENERGY RETAIL 4 LTD    ,170107221             ,26,893.66,GAS                                     ,11/08/2022,,Property Department,Utilities
144041      ,CORONA ENERGY RETAIL 4 LTD    ,170107221             ,27,506.29,GAS                                     ,11/08/2022,,Property Department,Utilities
144041      ,CORONA ENERGY RETAIL 4 LTD    ,170107221             ,28,419.55,GAS                                     ,11/08/2022,24875.96,Property Department,Utilities
144041      ,CORONA ENERGY RETAIL 4 LTD    ,170107221             ,29,427.95,GAS                                     ,11/08/2022,,Property Department,Utilities
144041      ,CORONA ENERGY RETAIL 4 LTD    ,170107221             ,30,648.71,GAS                                     ,11/08/2022,,Property Department,Utilities
144041      ,CORONA ENERGY RETAIL 4 LTD    ,170107221             ,31,51.3,GAS                                     ,11/08/2022,,Property Department,Utilities
144041      ,CORONA ENERGY RETAIL 4 LTD    ,170107221             ,32,392.67,GAS                                     ,11/08/2022,,Property Department,Utilities
144041      ,CORONA ENERGY RETAIL 4 LTD    ,170107221             ,33,882.77,GAS                                     ,11/08/2022,,Property Department,Utilities
144041      ,CORONA ENERGY RETAIL 4 LTD    ,170107221             ,34,585.59,GAS                                     ,11/08/2022,,Property Department,Utilities
144041      ,CORONA ENERGY RETAIL 4 LTD    ,170107221             ,35,608.56,GAS                                     ,11/08/2022,,Property Department,Utilities
144041      ,CORONA ENERGY RETAIL 4 LTD    ,170107221             ,36,531.08,GAS                                     ,11/08/2022,,Property Department,Utilities
144041      ,CORONA ENERGY RETAIL 4 LTD    ,170107221             ,37,1466.97,GAS                                     ,11/08/2022,,Property Department,Utilities
144041      ,CORONA ENERGY RETAIL 4 LTD    ,170107221             ,38,787.04,GAS                                     ,11/08/2022,,Property Department,Utilities
144041      ,CORONA ENERGY RETAIL 4 LTD    ,170107221             ,39,799.82,GAS                                     ,11/08/2022,,Property Department,Utilities
144042      ,CORONA ENERGY RETAIL 4 LTD    ,170107222             ,1,1916.07,GAS                                     ,11/08/2022,,Property Department,Utilities
144042      ,CORONA ENERGY RETAIL 4 LTD    ,170107222             ,2,1599.67,GAS                                     ,11/08/2022,,Property Department,Utilities
144042      ,CORONA ENERGY RETAIL 4 LTD    ,170107222             ,3,725.22,GAS                                     ,11/08/2022,,Property Department,Utilities
144042      ,CORONA ENERGY RETAIL 4 LTD    ,170107222             ,4,481.18,GAS                                     ,11/08/2022,,Property Department,Utilities
144042      ,CORONA ENERGY RETAIL 4 LTD    ,170107222             ,5,434.24,GAS                                     ,11/08/2022,,Property Department,Utilities
144042      ,CORONA ENERGY RETAIL 4 LTD    ,170107222             ,6,581.73,GAS                                     ,11/08/2022,,Property Department,Utilities
144042      ,CORONA ENERGY RETAIL 4 LTD    ,170107222             ,7,529.41,GAS                                     ,11/08/2022,24739.66,Property Department,Utilities
144042      ,CORONA ENERGY RETAIL 4 LTD    ,170107222             ,8,789.11,GAS                                     ,11/08/2022,,Property Department,Utilities
144042      ,CORONA ENERGY RETAIL 4 LTD    ,170107222             ,9,622.59,GAS                                     ,11/08/2022,,Property Department,Utilities
144042      ,CORONA ENERGY RETAIL 4 LTD    ,170107222             ,10,1946.93,GAS                                     ,11/08/2022,,Property Department,Utilities
144042      ,CORONA ENERGY RETAIL 4 LTD    ,170107222             ,11,545.46,GAS                                     ,11/08/2022,,Property Department,Utilities
144042      ,CORONA ENERGY RETAIL 4 LTD    ,170107222             ,12,638.76,GAS                                     ,11/08/2022,,Property Department,Utilities
144042      ,CORONA ENERGY RETAIL 4 LTD    ,170107222             ,13,1215.58,GAS                                     ,11/08/2022,,Property Department,Utilities
144042      ,CORONA ENERGY RETAIL 4 LTD    ,170107222             ,14,1052.98,GAS                                     ,11/08/2022,,Property Department,Utilities
144042      ,CORONA ENERGY RETAIL 4 LTD    ,170107222             ,15,725.31,GAS                                     ,11/08/2022,,Property Department,Utilities
144042      ,CORONA ENERGY RETAIL 4 LTD    ,170107222             ,16,476.84,GAS                                     ,11/08/2022,,Property Department,Utilities
144042      ,CORONA ENERGY RETAIL 4 LTD    ,170107222             ,17,730.89,GAS                                     ,11/08/2022,,Property Department,Utilities
144042      ,CORONA ENERGY RETAIL 4 LTD    ,170107222             ,18,732.72,GAS                                     ,11/08/2022,,Property Department,Utilities
144042      ,CORONA ENERGY RETAIL 4 LTD    ,170107222             ,19,528.58,GAS                                     ,11/08/2022,,Property Department,Utilities
144042      ,CORONA ENERGY RETAIL 4 LTD    ,170107222             ,20,600.73,GAS                                     ,11/08/2022,,Property Department,Utilities
144042      ,CORONA ENERGY RETAIL 4 LTD    ,170107222             ,21,525.27,GAS                                     ,11/08/2022,,Property Department,Utilities
144042      ,CORONA ENERGY RETAIL 4 LTD    ,170107222             ,22,555.86,GAS                                     ,11/08/2022,,Property Department,Utilities
144042      ,CORONA ENERGY RETAIL 4 LTD    ,170107222             ,23,602.8,GAS                                     ,11/08/2022,,Property Department,Utilities
144042      ,CORONA ENERGY RETAIL 4 LTD    ,170107222             ,24,1068.51,GAS                                     ,11/08/2022,,Property Department,Utilities
144042      ,CORONA ENERGY RETAIL 4 LTD    ,170107222             ,25,640.33,GAS                                     ,11/08/2022,,Property Department,Utilities
144042      ,CORONA ENERGY RETAIL 4 LTD    ,170107222             ,26,704.2,GAS                                     ,11/08/2022,,Property Department,Utilities
144042      ,CORONA ENERGY RETAIL 4 LTD    ,170107222             ,27,405.39,GAS                                     ,11/08/2022,,Property Department,Utilities
144042      ,CORONA ENERGY RETAIL 4 LTD    ,170107222             ,28,90.6,GAS                                     ,11/08/2022,,Property Department,Utilities
144042      ,CORONA ENERGY RETAIL 4 LTD    ,170107222             ,29,830.48,GAS                                     ,11/08/2022,,Property Department,Utilities
144042      ,CORONA ENERGY RETAIL 4 LTD    ,170107222             ,30,816.18,GAS                                     ,11/08/2022,,Property Department,Utilities
144042      ,CORONA ENERGY RETAIL 4 LTD    ,170107222             ,31,445.96,GAS                                     ,11/08/2022,,Property Department,Utilities
144042      ,CORONA ENERGY RETAIL 4 LTD    ,170107222             ,32,572.68,GAS                                     ,11/08/2022,,Property Department,Utilities
144042      ,CORONA ENERGY RETAIL 4 LTD    ,170107222             ,33,607.4,GAS                                     ,11/08/2022,,Property Department,Utilities
144043      ,CORONA ENERGY RETAIL 4 LTD    ,170107223             ,1,760.42,GAS                                     ,11/08/2022,,Property Department,Utilities
144043      ,CORONA ENERGY RETAIL 4 LTD    ,170107223             ,2,739.04,GAS                                     ,11/08/2022,,Property Department,Utilities
144043      ,CORONA ENERGY RETAIL 4 LTD    ,170107223             ,3,551.63,GAS                                     ,11/08/2022,,Property Department,Utilities
144043      ,CORONA ENERGY RETAIL 4 LTD    ,170107223             ,4,520.36,GAS                                     ,11/08/2022,2571.45,Property Department,Utilities
144044      ,CORONA ENERGY RETAIL 4 LTD    ,170107224             ,1,208.95,GAS                                     ,11/08/2022,,Property Department,Utilities
144044      ,CORONA ENERGY RETAIL 4 LTD    ,170107224             ,2,103.16,GAS                                     ,11/08/2022,,Property Department,Utilities
144044      ,CORONA ENERGY RETAIL 4 LTD    ,170107224             ,3,133.55,GAS                                     ,11/08/2022,,Property Department,Utilities
144044      ,CORONA ENERGY RETAIL 4 LTD    ,170107224             ,4,353.54,GAS                                     ,11/08/2022,,Property Department,Utilities
144044      ,CORONA ENERGY RETAIL 4 LTD    ,170107224             ,5,89.66,GAS                                     ,11/08/2022,,Property Department,Utilities
144044      ,CORONA ENERGY RETAIL 4 LTD    ,170107224             ,6,365.37,GAS                                     ,11/08/2022,,Property Department,Utilities
144044      ,CORONA ENERGY RETAIL 4 LTD    ,170107224             ,7,279.18,GAS                                     ,11/08/2022,,Property Department,Utilities
144044      ,CORONA ENERGY RETAIL 4 LTD    ,170107224             ,8,309.66,GAS                                     ,11/08/2022,,Property Department,Utilities
144044      ,CORONA ENERGY RETAIL 4 LTD    ,170107224             ,9,289.23,GAS                                     ,11/08/2022,,Property Department,Utilities
144044      ,CORONA ENERGY RETAIL 4 LTD    ,170107224             ,10,324.05,GAS                                     ,11/08/2022,,Property Department,Utilities
144044      ,CORONA ENERGY RETAIL 4 LTD    ,170107224             ,11,155.91,GAS                                     ,11/08/2022,,Property Department,Utilities
144044      ,CORONA ENERGY RETAIL 4 LTD    ,170107224             ,12,272.51,GAS                                     ,11/08/2022,,Property Department,Utilities
144044      ,CORONA ENERGY RETAIL 4 LTD    ,170107224             ,13,75.08,GAS                                     ,11/08/2022,,Property Department,Utilities
144044      ,CORONA ENERGY RETAIL 4 LTD    ,170107224             ,14,71.04,GAS                                     ,11/08/2022,,Property Department,Utilities
144044      ,CORONA ENERGY RETAIL 4 LTD    ,170107224             ,15,190.51,GAS                                     ,11/08/2022,,Property Department,Utilities
144044      ,CORONA ENERGY RETAIL 4 LTD    ,170107224             ,16,9.9,GAS                                     ,11/08/2022,,Property Department,Utilities
144044      ,CORONA ENERGY RETAIL 4 LTD    ,170107224             ,17,18.9,GAS                                     ,11/08/2022,,Property Department,Utilities
144044      ,CORONA ENERGY RETAIL 4 LTD    ,170107224             ,18,36.3,GAS                                     ,11/08/2022,,Property Department,Utilities
144044      ,CORONA ENERGY RETAIL 4 LTD    ,170107224             ,19,38.7,GAS                                     ,11/08/2022,,Property Department,Utilities
144044      ,CORONA ENERGY RETAIL 4 LTD    ,170107224             ,20,387.92,GAS                                     ,11/08/2022,,Property Department,Utilities
144044      ,CORONA ENERGY RETAIL 4 LTD    ,170107224             ,21,83.43,GAS                                     ,11/08/2022,,Property Department,Utilities
144044      ,CORONA ENERGY RETAIL 4 LTD    ,170107224             ,22,363.47,GAS                                     ,11/08/2022,,Property Department,Utilities
144044      ,CORONA ENERGY RETAIL 4 LTD    ,170107224             ,23,280.17,GAS                                     ,11/08/2022,,Property Department,Utilities
144044      ,CORONA ENERGY RETAIL 4 LTD    ,170107224             ,24,103.84,GAS                                     ,11/08/2022,,Property Department,Utilities
144044      ,CORONA ENERGY RETAIL 4 LTD    ,170107224             ,25,366.47,GAS                                     ,11/08/2022,,Property Department,Utilities
144044      ,CORONA ENERGY RETAIL 4 LTD    ,170107224             ,26,184.01,GAS                                     ,11/08/2022,,Property Department,Utilities
144044      ,CORONA ENERGY RETAIL 4 LTD    ,170107224             ,27,52.2,GAS                                     ,11/08/2022,,Property Department,Utilities
144044      ,CORONA ENERGY RETAIL 4 LTD    ,170107224             ,28,39.92,GAS                                     ,11/08/2022,,Property Department,Utilities
144044      ,CORONA ENERGY RETAIL 4 LTD    ,170107224             ,29,46.53,GAS                                     ,11/08/2022,,Property Department,Utilities
144044      ,CORONA ENERGY RETAIL 4 LTD    ,170107224             ,30,317.98,GAS                                     ,11/08/2022,,Property Department,Utilities
144044      ,CORONA ENERGY RETAIL 4 LTD    ,170107224             ,31,38.94,GAS                                     ,11/08/2022,,Property Department,Utilities
144044      ,CORONA ENERGY RETAIL 4 LTD    ,170107224             ,32,82.59,GAS                                     ,11/08/2022,,Property Department,Utilities
144044      ,CORONA ENERGY RETAIL 4 LTD    ,170107224             ,33,356.3,GAS                                     ,11/08/2022,6405.93,Property Department,Utilities
144044      ,CORONA ENERGY RETAIL 4 LTD    ,170107224             ,34,39.09,GAS                                     ,11/08/2022,,Property Department,Utilities
144044      ,CORONA ENERGY RETAIL 4 LTD    ,170107224             ,35,75.6,GAS                                     ,11/08/2022,,Property Department,Utilities
144044      ,CORONA ENERGY RETAIL 4 LTD    ,170107224             ,36,6.64,GAS                                     ,11/08/2022,,Property Department,Utilities
144044      ,CORONA ENERGY RETAIL 4 LTD    ,170107224             ,38,47.7,GAS                                     ,11/08/2022,,Property Department,Utilities
144044      ,CORONA ENERGY RETAIL 4 LTD    ,170107224             ,39,51.46,GAS                                     ,11/08/2022,,Property Department,Utilities
144044      ,CORONA ENERGY RETAIL 4 LTD    ,170107224             ,41,49.29,GAS                                     ,11/08/2022,,Property Department,Utilities
144044      ,CORONA ENERGY RETAIL 4 LTD    ,170107224             ,42,107.18,GAS                                     ,11/08/2022,,Property Department,Utilities
144045      ,CORONA ENERGY RETAIL 4 LTD    ,170107225             ,1,66.39,GAS                                     ,11/08/2022,,Property Department,Utilities
144045      ,CORONA ENERGY RETAIL 4 LTD    ,170107225             ,2,235.84,GAS                                     ,11/08/2022,,Property Department,Utilities
144045      ,CORONA ENERGY RETAIL 4 LTD    ,170107225             ,3,39.3,GAS                                     ,11/08/2022,,Property Department,Utilities
144045      ,CORONA ENERGY RETAIL 4 LTD    ,170107225             ,4,309.35,GAS                                     ,11/08/2022,,Property Department,Utilities
144045      ,CORONA ENERGY RETAIL 4 LTD    ,170107225             ,5,49.2,GAS                                     ,11/08/2022,,Property Department,Utilities
144045      ,CORONA ENERGY RETAIL 4 LTD    ,170107225             ,6,357.33,GAS                                     ,11/08/2022,,Property Department,Utilities
144045      ,CORONA ENERGY RETAIL 4 LTD    ,170107225             ,7,303.65,GAS                                     ,11/08/2022,,Property Department,Utilities
144045      ,CORONA ENERGY RETAIL 4 LTD    ,170107225             ,8,418.01,GAS                                     ,11/08/2022,,Property Department,Utilities
144045      ,CORONA ENERGY RETAIL 4 LTD    ,170107225             ,9,309.94,GAS                                     ,11/08/2022,,Property Department,Utilities
144045      ,CORONA ENERGY RETAIL 4 LTD    ,170107225             ,10,22.5,GAS                                     ,11/08/2022,,Property Department,Utilities
144045      ,CORONA ENERGY RETAIL 4 LTD    ,170107225             ,11,292.99,GAS                                     ,11/08/2022,,Property Department,Utilities
144045      ,CORONA ENERGY RETAIL 4 LTD    ,170107225             ,12,329.82,GAS                                     ,11/08/2022,,Property Department,Utilities
144045      ,CORONA ENERGY RETAIL 4 LTD    ,170107225             ,13,117.61,GAS                                     ,11/08/2022,,Property Department,Utilities
144045      ,CORONA ENERGY RETAIL 4 LTD    ,170107225             ,14,202.01,GAS                                     ,11/08/2022,,Property Department,Utilities
144045      ,CORONA ENERGY RETAIL 4 LTD    ,170107225             ,15,371.82,GAS                                     ,11/08/2022,,Property Department,Utilities
144045      ,CORONA ENERGY RETAIL 4 LTD    ,170107225             ,16,109.5,GAS                                     ,11/08/2022,,Property Department,Utilities
144045      ,CORONA ENERGY RETAIL 4 LTD    ,170107225             ,17,317.66,GAS                                     ,11/08/2022,,Property Department,Utilities
144045      ,CORONA ENERGY RETAIL 4 LTD    ,170107225             ,18,61.82,GAS                                     ,11/08/2022,,Property Department,Utilities
144045      ,CORONA ENERGY RETAIL 4 LTD    ,170107225             ,19,178.36,GAS                                     ,11/08/2022,,Property Department,Utilities
144045      ,CORONA ENERGY RETAIL 4 LTD    ,170107225             ,20,83.88,GAS                                     ,11/08/2022,,Property Department,Utilities
144045      ,CORONA ENERGY RETAIL 4 LTD    ,170107225             ,21,298.95,GAS                                     ,11/08/2022,,Property Department,Utilities
144045      ,CORONA ENERGY RETAIL 4 LTD    ,170107225             ,22,20.4,GAS                                     ,11/08/2022,,Property Department,Utilities
144045      ,CORONA ENERGY RETAIL 4 LTD    ,170107225             ,23,36.17,GAS                                     ,11/08/2022,,Property Department,Utilities
144045      ,CORONA ENERGY RETAIL 4 LTD    ,170107225             ,24,219.14,GAS                                     ,11/08/2022,,Property Department,Utilities
144045      ,CORONA ENERGY RETAIL 4 LTD    ,170107225             ,25,165.4,GAS                                     ,11/08/2022,,Property Department,Utilities
144045      ,CORONA ENERGY RETAIL 4 LTD    ,170107225             ,26,63.08,GAS                                     ,11/08/2022,7561.81,Property Department,Utilities
144045      ,CORONA ENERGY RETAIL 4 LTD    ,170107225             ,27,309.57,GAS                                     ,11/08/2022,,Property Department,Utilities
144045      ,CORONA ENERGY RETAIL 4 LTD    ,170107225             ,28,371.35,GAS                                     ,11/08/2022,,Property Department,Utilities
144045      ,CORONA ENERGY RETAIL 4 LTD    ,170107225             ,29,218.23,GAS                                     ,11/08/2022,,Property Department,Utilities
144045      ,CORONA ENERGY RETAIL 4 LTD    ,170107225             ,30,227.51,GAS                                     ,11/08/2022,,Property Department,Utilities
144045      ,CORONA ENERGY RETAIL 4 LTD    ,170107225             ,31,141.81,GAS                                     ,11/08/2022,,Property Department,Utilities
144045      ,CORONA ENERGY RETAIL 4 LTD    ,170107225             ,32,74.7,GAS                                     ,11/08/2022,,Property Department,Utilities
144045      ,CORONA ENERGY RETAIL 4 LTD    ,170107225             ,33,170.54,GAS                                     ,11/08/2022,,Property Department,Utilities
144045      ,CORONA ENERGY RETAIL 4 LTD    ,170107225             ,34,340.38,GAS                                     ,11/08/2022,,Property Department,Utilities
144045      ,CORONA ENERGY RETAIL 4 LTD    ,170107225             ,35,156.12,GAS                                     ,11/08/2022,,Property Department,Utilities
144045      ,CORONA ENERGY RETAIL 4 LTD    ,170107225             ,36,178.4,GAS                                     ,11/08/2022,,Property Department,Utilities
144045      ,CORONA ENERGY RETAIL 4 LTD    ,170107225             ,37,278.06,GAS                                     ,11/08/2022,,Property Department,Utilities
144045      ,CORONA ENERGY RETAIL 4 LTD    ,170107225             ,38,115.02,GAS                                     ,11/08/2022,,Property Department,Utilities
144046      ,CORONA ENERGY RETAIL 4 LTD    ,170107226             ,1,329.12,GAS                                     ,11/08/2022,,Property Department,Utilities
144046      ,CORONA ENERGY RETAIL 4 LTD    ,170107226             ,2,519.19,GAS                                     ,11/08/2022,1737.25,Property Department,Utilities
144046      ,CORONA ENERGY RETAIL 4 LTD    ,170107226             ,3,386.74,GAS                                     ,11/08/2022,,Property Department,Utilities
144046      ,CORONA ENERGY RETAIL 4 LTD    ,170107226             ,4,172.91,GAS                                     ,11/08/2022,,Property Department,Utilities
144046      ,CORONA ENERGY RETAIL 4 LTD    ,170107226             ,5,92.1,GAS                                     ,11/08/2022,,Property Department,Utilities
144046      ,CORONA ENERGY RETAIL 4 LTD    ,170107226             ,6,26.87,GAS                                     ,11/08/2022,,Property Department,Utilities
144046      ,CORONA ENERGY RETAIL 4 LTD    ,170107226             ,7,149.31,GAS                                     ,11/08/2022,,Property Department,Utilities
144046      ,CORONA ENERGY RETAIL 4 LTD    ,170107226             ,8,28.36,GAS                                     ,11/08/2022,,Property Department,Utilities
144046      ,CORONA ENERGY RETAIL 4 LTD    ,170107226             ,9,32.65,GAS                                     ,11/08/2022,,Property Department,Utilities
090822B     ,IRON MOUNTAIN UK PLC          ,17147088              ,1,3901.37,SOFTWARE BESPOKE                        ,18/08/2022,3901.37,Infrastructure Team (ICT),ICT
220822K2    ,UK TAPES LTD                  ,176271                ,1,2460,GENERAL CONSUMABLES                     ,25/08/2022,2460,Technical & Support Service,Emergency Services
240822P     ,BABCOCK CRITICAL SERVICES LTD ,1800000979            ,1,148370,PURCHASES-VEHICLES                      ,30/08/2022,310064.32,Technical & Support Service,Vehicle Management
240822P     ,BABCOCK CRITICAL SERVICES LTD ,1800000979            ,2,143642.82,PURCHASES-VEHICLES                      ,30/08/2022,,Technical & Support Service,Vehicle Management
240822P     ,BABCOCK CRITICAL SERVICES LTD ,1800000979            ,3,585,PURCHASES-VEHICLES                      ,30/08/2022,,Technical & Support Service,Vehicle Management
240822P     ,BABCOCK CRITICAL SERVICES LTD ,1800000979            ,4,11660,PURCHASES-VEHICLES                      ,30/08/2022,,Technical & Support Service,Vehicle Management
240822P     ,BABCOCK CRITICAL SERVICES LTD ,1800000979            ,5,3855,PURCHASES-VEHICLES                      ,30/08/2022,,Technical & Support Service,Vehicle Management
240822P     ,BABCOCK CRITICAL SERVICES LTD ,1800000979            ,6,1951.5,PURCHASES-VEHICLES                      ,30/08/2022,,Technical & Support Service,Vehicle Management
270722V     ,BABCOCK CRITICAL SERVICES LTD ,1800000980            ,1,2040,MODIFICATIONS                           ,11/08/2022,1159074.65,Operational Resilience,Vehicle Management
270722V     ,BABCOCK CRITICAL SERVICES LTD ,1800000980            ,2,0.98,PURCHASES-VEHICLES                      ,11/08/2022,,Technical & Support Service,Vehicle Management
270722V     ,BABCOCK CRITICAL SERVICES LTD ,1800000980            ,3,307377.01,VEHICLES                                ,11/08/2022,,Technical & Support Service,Vehicle Management
270722V     ,BABCOCK CRITICAL SERVICES LTD ,1800000980            ,4,706408.74,VEHICLES                                ,11/08/2022,,Technical & Support Service,Vehicle Management
270722V     ,BABCOCK CRITICAL SERVICES LTD ,1800000980            ,5,3263.64,VEHICLES                                ,11/08/2022,,Training and Professional Development,Vehicle Management
270722V     ,BABCOCK CRITICAL SERVICES LTD ,1800000980            ,6,20857.35,LOST & NFWT OPS EQUIPMENT               ,11/08/2022,,Technical & Support Service,Fire & Rescue
270722V     ,BABCOCK CRITICAL SERVICES LTD ,1800000980            ,7,33443.86,VEHICLES NWFT                           ,11/08/2022,,Technical & Support Service,Vehicle Management
270722V     ,BABCOCK CRITICAL SERVICES LTD ,1800000980            ,8,14423.04,ACCIDENT REPAIRS                        ,11/08/2022,,Technical & Support Service,Vehicle Management
270722V     ,BABCOCK CRITICAL SERVICES LTD ,1800000980            ,9,15851.26,ACCIDENT REPAIRS                        ,11/08/2022,,Technical & Support Service,Vehicle Management
270722V     ,BABCOCK CRITICAL SERVICES LTD ,1800000980            ,10,2583.32,MODIFICATIONS                           ,11/08/2022,,Technical & Support Service,Vehicle Management
270722V     ,BABCOCK CRITICAL SERVICES LTD ,1800000980            ,11,208.56,MODIFICATIONS                           ,11/08/2022,,Technical & Support Service,Vehicle Management
270722V     ,BABCOCK CRITICAL SERVICES LTD ,1800000980            ,12,1512.16,MODIFICATIONS                           ,11/08/2022,,Technical & Support Service,Vehicle Management
270722V     ,BABCOCK CRITICAL SERVICES LTD ,1800000980            ,13,40798,PURCHASES-VEHICLES                      ,11/08/2022,,Technical & Support Service,Vehicle Management
270722V     ,BABCOCK CRITICAL SERVICES LTD ,1800000980            ,14,152.46,MODIFICATIONS                           ,11/08/2022,,Technical & Support Service,Vehicle Management
270722V     ,BABCOCK CRITICAL SERVICES LTD ,1800000980            ,15,7046.27,PURCHASES-PLANT/MACHINERY               ,11/08/2022,,Technical & Support Service,"Works - Construction, Repair & Maintenance"
270722V     ,BABCOCK CRITICAL SERVICES LTD ,1800000980            ,16,1986.6,PURCHASES-PLANT/MACHINERY               ,11/08/2022,,Technical & Support Service,"Works - Construction, Repair & Maintenance"
270722V     ,BABCOCK CRITICAL SERVICES LTD ,1800000980            ,17,326.4,PURCHASES-VEHICLES                      ,11/08/2022,,Technical & Support Service,Vehicle Management
270722V     ,BABCOCK CRITICAL SERVICES LTD ,1800000980            ,18,795,PURCHASES-VEHICLES                      ,11/08/2022,,Technical & Support Service,Vehicle Management
030822P     ,HERTS COUNTY COUNCIL FIRE & RE,1803642297            ,1,90816,FIRE AUTHS-MUTUAL ASSISTANCE            ,08/08/2022,90816,Enterprise Application Group (ICT),Non Influenceable Spend
150822K     ,RESPIREX                      ,184363                ,1,1979.99,PROFESSIONAL DEVELOPMENT                ,18/08/2022,1979.99,Training and Professional Development,Human Resources
160822K     ,KEELA INTERNATIONAL LTD       ,190322                ,1,319.95,CLOTHING                                ,22/08/2022,319.95,Rescue and ISAR Policy ,Clothing
050822K     ,BT GLOBAL SERVICES            ,197908                ,1,26672,TELECOMMUNICATIONS                      ,11/08/2022,26672,Enterprise Application Group (ICT),ICT
050822K     ,BT GLOBAL SERVICES            ,198278                ,1,2687.5,TELECOMMUNICATIONS                      ,11/08/2022,2687.5,Enterprise Application Group (ICT),ICT
260722P     ,BT REDCARE                    ,20034337              ,1,966.56,TELECOMMUNICATIONS                      ,01/08/2022,11843.8,Enterprise Application Group (ICT),ICT
260722P     ,BT REDCARE                    ,20034337              ,2,4408.21,TELECOMMUNICATIONS                      ,01/08/2022,,Enterprise Application Group (ICT),ICT
260722P     ,BT REDCARE                    ,20034337              ,3,3417.57,TELECOMMUNICATIONS                      ,01/08/2022,,Enterprise Application Group (ICT),ICT
260722P     ,BT REDCARE                    ,20034337              ,4,3051.46,TELECOMMUNICATIONS                      ,01/08/2022,,Enterprise Application Group (ICT),ICT
144018      ,ATHLON MOBILITY SERVICES LIMIT,2022.80.005241        ,1,6219.95,LEASE CAR CHARGES                       ,01/08/2022,,Procurement,Vehicle Management
144018      ,ATHLON MOBILITY SERVICES LIMIT,2022.80.005241        ,2,-453.83,VAT CAR LEASING                         ,01/08/2022,5766.12,Finance Services,Vehicle Management
144018      ,ATHLON MOBILITY SERVICES LIMIT,2022.80.005259        ,1,6546.38,LEASE CAR CHARGES                       ,01/08/2022,,Procurement,Vehicle Management
144018      ,ATHLON MOBILITY SERVICES LIMIT,2022.80.005259        ,2,-483.5,VAT CAR LEASING                         ,01/08/2022,6062.88,Finance Services,Vehicle Management
144018      ,ATHLON MOBILITY SERVICES LIMIT,2022.80.008367        ,1,471.87,LEASE CAR CHARGES                       ,01/08/2022,,Procurement,Vehicle Management
144018      ,ATHLON MOBILITY SERVICES LIMIT,2022.80.008367        ,2,-35.97,VAT CAR LEASING                         ,01/08/2022,435.9,Finance Services,Vehicle Management
144048      ,ATHLON MOBILITY SERVICES LIMIT,2022.80.015327        ,1,4782.68,LEASE CAR CHARGES                       ,18/08/2022,,Procurement,Vehicle Management
144048      ,ATHLON MOBILITY SERVICES LIMIT,2022.80.015327        ,2,-357.54,VAT CAR LEASING                         ,18/08/2022,4425.14,Finance Services,Vehicle Management
144048      ,ATHLON MOBILITY SERVICES LIMIT,2022.80.016150        ,1,342.34,LEASE CAR CHARGES                       ,18/08/2022,,Procurement,Vehicle Management
144048      ,ATHLON MOBILITY SERVICES LIMIT,2022.80.016150        ,2,-26.59,VAT CAR LEASING                         ,18/08/2022,315.75,Finance Services,Vehicle Management
144048      ,ATHLON MOBILITY SERVICES LIMIT,2022.80.016151        ,1,377.17,LEASE CAR CHARGES                       ,18/08/2022,,Procurement,Vehicle Management
144048      ,ATHLON MOBILITY SERVICES LIMIT,2022.80.016151        ,2,-29.53,VAT CAR LEASING                         ,18/08/2022,347.64,Finance Services,Vehicle Management
144048      ,ATHLON MOBILITY SERVICES LIMIT,2022.80.016152        ,1,323.94,LEASE CAR CHARGES                       ,18/08/2022,,Procurement,Vehicle Management
144048      ,ATHLON MOBILITY SERVICES LIMIT,2022.80.016152        ,2,-26.09,VAT CAR LEASING                         ,18/08/2022,297.85,Finance Services,Vehicle Management
144048      ,ATHLON MOBILITY SERVICES LIMIT,2022.80.016153        ,1,294.2,LEASE CAR CHARGES                       ,18/08/2022,,Procurement,Vehicle Management
144048      ,ATHLON MOBILITY SERVICES LIMIT,2022.80.016153        ,2,-23.59,VAT CAR LEASING                         ,18/08/2022,270.61,Finance Services,Vehicle Management
144048      ,ATHLON MOBILITY SERVICES LIMIT,2022.80.016154        ,1,291,LEASE CAR CHARGES                       ,18/08/2022,,Procurement,Vehicle Management
144048      ,ATHLON MOBILITY SERVICES LIMIT,2022.80.016154        ,2,-23.27,VAT CAR LEASING                         ,18/08/2022,267.73,Finance Services,Vehicle Management
144048      ,ATHLON MOBILITY SERVICES LIMIT,2022.80.016155        ,1,485.26,LEASE CAR CHARGES                       ,18/08/2022,,Procurement,Vehicle Management
144048      ,ATHLON MOBILITY SERVICES LIMIT,2022.80.016155        ,2,-39.16,VAT CAR LEASING                         ,18/08/2022,446.1,Finance Services,Vehicle Management
144048      ,ATHLON MOBILITY SERVICES LIMIT,2022.80.016156        ,1,549.86,LEASE CAR CHARGES                       ,18/08/2022,,Procurement,Vehicle Management
144048      ,ATHLON MOBILITY SERVICES LIMIT,2022.80.016156        ,2,-41.66,VAT CAR LEASING                         ,18/08/2022,508.2,Finance Services,Vehicle Management
144048      ,ATHLON MOBILITY SERVICES LIMIT,2022.80.016157        ,1,591.74,LEASE CAR CHARGES                       ,18/08/2022,,Procurement,Vehicle Management
144048      ,ATHLON MOBILITY SERVICES LIMIT,2022.80.016157        ,2,-44.65,VAT CAR LEASING                         ,18/08/2022,547.09,Finance Services,Vehicle Management
144048      ,ATHLON MOBILITY SERVICES LIMIT,2022.80.016158        ,1,397.5,LEASE CAR CHARGES                       ,18/08/2022,,Procurement,Vehicle Management
144048      ,ATHLON MOBILITY SERVICES LIMIT,2022.80.016158        ,2,-31.28,VAT CAR LEASING                         ,18/08/2022,366.22,Finance Services,Vehicle Management
144048      ,ATHLON MOBILITY SERVICES LIMIT,2022.80.016159        ,1,438.9,LEASE CAR CHARGES                       ,18/08/2022,,Procurement,Vehicle Management
144048      ,ATHLON MOBILITY SERVICES LIMIT,2022.80.016159        ,2,-35.28,VAT CAR LEASING                         ,18/08/2022,403.62,Finance Services,Vehicle Management
144048      ,ATHLON MOBILITY SERVICES LIMIT,2022.80.016161        ,1,326.95,LEASE CAR CHARGES                       ,18/08/2022,,Procurement,Vehicle Management
144048      ,ATHLON MOBILITY SERVICES LIMIT,2022.80.016161        ,2,-25.77,VAT CAR LEASING                         ,18/08/2022,301.18,Finance Services,Vehicle Management
144018      ,ATHLON MOBILITY SERVICES LIMIT,2022.80.019015        ,1,5027.08,LEASE CAR CHARGES                       ,01/08/2022,,Procurement,Vehicle Management
144018      ,ATHLON MOBILITY SERVICES LIMIT,2022.80.019015        ,2,-397.84,VAT CAR LEASING                         ,01/08/2022,4629.24,Finance Services,Vehicle Management
290722B     ,Karen Bishi Coaching and      ,2022/23/5/CONSULTLFB  ,1,1200,CONSULTANTS                             ,04/08/2022,1200,People Services,Consultancy
190822B     ,CHARTERED INST. OF MARKETING  ,20356981              ,1,399,PROFESSIONAL DEVELOPMENT                ,25/08/2022,399,Training and Professional Development,Human Resources
270722 PROP ,DRON & WRIGHT                 ,20937                 ,1,7611.98,ESTATES MANGT CONSULTANCY PLND          ,01/08/2022,23951.78,Property Department,Consultancy
270722 PROP ,DRON & WRIGHT                 ,20937                 ,2,4935.59,ESTATES MANGT CONSULTANCY PLND          ,01/08/2022,,Property Department,Consultancy
270722 PROP ,DRON & WRIGHT                 ,20937                 ,3,776.16,ESTATES MANGT CONSULTANCY PLND          ,01/08/2022,,Property Department,Consultancy
270722 PROP ,DRON & WRIGHT                 ,20937                 ,4,173.19,ESTATES MANGT CONSULTANCY PLND          ,01/08/2022,,Property Department,Consultancy
270722 PROP ,DRON & WRIGHT                 ,20937                 ,5,2274.36,ESTATES MANGT CONSULTANCY PLND          ,01/08/2022,,Property Department,Consultancy
270722 PROP ,DRON & WRIGHT                 ,20937                 ,6,911.58,ESTATES MANGT CONSULTANCY PLND          ,01/08/2022,,Property Department,Consultancy
270722 PROP ,DRON & WRIGHT                 ,20937                 ,7,7268.92,ESTATES MANGT CONSULTANCY PLND          ,01/08/2022,,Property Department,Consultancy
150722 PROP ,BURKE HUNTER ADAMS LLP        ,21/215                ,1,8471.8,PROF FEES-MISCELLANEOUS                 ,01/08/2022,8471.8,Property Department,Consultancy
080822P     ,INSIGHT DIRECT (UK) LTD       ,2100311773            ,1,17425,SOFTWARE COTS                           ,15/08/2022,17425,Enterprise Application Group (ICT),ICT
220722B     ,PCC FOR WEST MIDLANDS         ,210543                ,1,550,PROFESSIONAL DEVELOPMENT                ,11/08/2022,550,Training and Professional Development,Human Resources
220722B     ,PCC FOR WEST MIDLANDS         ,210544                ,1,550,PROFESSIONAL DEVELOPMENT                ,11/08/2022,550,Training and Professional Development,Human Resources
190822B     ,PCC FOR WEST MIDLANDS         ,210546                ,1,550,PROFESSIONAL DEVELOPMENT                ,25/08/2022,550,Training and Professional Development,Human Resources
010822B     ,PCC FOR WEST MIDLANDS         ,210547                ,1,550,PROFESSIONAL DEVELOPMENT                ,11/08/2022,550,Training and Professional Development,Human Resources
030822P     ,E3 MEDIA LTD                  ,213577                ,1,800,MAINTENANCE & SUPPORT                   ,08/08/2022,800,Communications,ICT
110822K     ,CMT                           ,217433                ,1,4664,PROTECTIVE EQUIPT - PARTS               ,18/08/2022,,Technical & Support Service,Emergency Services
110822K     ,CMT                           ,217433                ,2,66,OPERATIONAL EQUIP-PURCHASE              ,18/08/2022,4730,Technical & Support Service,Fire & Rescue
110822K     ,CMT                           ,217434                ,1,4664,PROTECTIVE EQUIPT - PARTS               ,18/08/2022,4664,Technical & Support Service,Emergency Services
150722 PROP ,BURKE HUNTER ADAMS LLP        ,22/055                ,1,7463.8,PROF FEES-MISCELLANEOUS                 ,01/08/2022,7463.8,Property Department,Consultancy
190822B     ,IRG ADVISORS LLP              ,22001184TE86587       ,1,8910,CONSULTANTS                             ,25/08/2022,8910,People Services,Consultancy
210722K1    ,BUREAU VERITAS                ,22009257              ,1,116480.42,SCIENTIFIC SERVICES                     ,04/08/2022,116480.42,Procurement,Environmental Services
240822P     ,BUREAU VERITAS                ,22010495              ,1,116480.42,SCIENTIFIC SERVICES                     ,30/08/2022,116480.42,Procurement,Environmental Services
040822K     ,APPLUS LLT                    ,22047                 ,1,5184,GENERAL                                 ,15/08/2022,5184,Technical & Support Service,Consultancy
210722 PROP ,MULALLEY & CO LTD             ,2206/055              ,1,1718.68,DEVELOPMENT  EXPENSES-CONTRACT          ,01/08/2022,1718.68,Property Department,Consultancy
190822B     ,TORQUE CALIBRATION LTD        ,2206013               ,1,313.65,PURCHASE                                ,25/08/2022,543.65,Technical & Support Service,Furniture & Soft Furnishings
190822B     ,TORQUE CALIBRATION LTD        ,2206013               ,2,210,PURCHASE                                ,25/08/2022,,Technical & Support Service,Furniture & Soft Furnishings
190822B     ,TORQUE CALIBRATION LTD        ,2206013               ,3,20,PURCHASE                                ,25/08/2022,,Technical & Support Service,Furniture & Soft Furnishings
240822K     ,XACT CONSULTANCY & TRAINING LT,22-1808               ,1,23088,TRAINING CONTRACT - OTHER               ,30/08/2022,23088,Training and Professional Development,Human Resources
250722B     ,FLAMESKILL LIMITED            ,237382                ,1,2300,PROTECTIVE EQUIPT - PARTS               ,04/08/2022,,Technical & Support Service,Emergency Services
250722B     ,FLAMESKILL LIMITED            ,237382                ,2,1150,PROTECTIVE EQUIPT - PARTS               ,04/08/2022,,Technical & Support Service,Emergency Services
250722B     ,FLAMESKILL LIMITED            ,237382                ,3,65,REPAIR & MAINTENANCE                    ,04/08/2022,3515,Technical & Support Service,Fire & Rescue
050822 PROP ,Crown Workspace Limited       ,238580                ,1,1165.5,HIRE OF FACILITIES                      ,11/08/2022,1165.5,Property Department,Facilities & Management Services
050822 PROP ,Crown Workspace Limited       ,239486                ,1,1165.5,HIRE OF FACILITIES                      ,11/08/2022,1165.5,Property Department,Facilities & Management Services
800182934   ,"Mitie FM Limited,             ",24670092560760        ,1,1421.71,REACTIVE CLEANING                       ,04/08/2022,,Property Department,Cleaning & Janitorial
800182934   ,"Mitie FM Limited,             ",24670092560760        ,2,1421.71,REACTIVE CLEANING                       ,04/08/2022,,Property Department,Cleaning & Janitorial
800182934   ,"Mitie FM Limited,             ",24670092560760        ,3,1421.71,REACTIVE CLEANING                       ,04/08/2022,,Property Department,Cleaning & Janitorial
800182934   ,"Mitie FM Limited,             ",24670092560760        ,4,1421.71,REACTIVE CLEANING                       ,04/08/2022,,Property Department,Cleaning & Janitorial
800182934   ,"Mitie FM Limited,             ",24670092560760        ,5,1502.31,REACTIVE CLEANING                       ,04/08/2022,,Property Department,Cleaning & Janitorial
800182934   ,"Mitie FM Limited,             ",24670092560760        ,6,1421.71,REACTIVE CLEANING                       ,04/08/2022,,Property Department,Cleaning & Janitorial
800182934   ,"Mitie FM Limited,             ",24670092560760        ,7,1690.37,REACTIVE CLEANING                       ,04/08/2022,,Property Department,Cleaning & Janitorial
800182934   ,"Mitie FM Limited,             ",24670092560760        ,8,1421.71,REACTIVE CLEANING                       ,04/08/2022,,Property Department,Cleaning & Janitorial
800182934   ,"Mitie FM Limited,             ",24670092560760        ,9,1556.04,REACTIVE CLEANING                       ,04/08/2022,143290,Property Department,Cleaning & Janitorial
800182934   ,"Mitie FM Limited,             ",24670092560760        ,10,1421.71,REACTIVE CLEANING                       ,04/08/2022,,Property Department,Cleaning & Janitorial
800182934   ,"Mitie FM Limited,             ",24670092560760        ,11,1556.04,REACTIVE CLEANING                       ,04/08/2022,,Property Department,Cleaning & Janitorial
800182934   ,"Mitie FM Limited,             ",24670092560760        ,12,1690.37,REACTIVE CLEANING                       ,04/08/2022,,Property Department,Cleaning & Janitorial
800182934   ,"Mitie FM Limited,             ",24670092560760        ,13,1421.71,REACTIVE CLEANING                       ,04/08/2022,,Property Department,Cleaning & Janitorial
800182934   ,"Mitie FM Limited,             ",24670092560760        ,14,1421.71,REACTIVE CLEANING                       ,04/08/2022,,Property Department,Cleaning & Janitorial
800182934   ,"Mitie FM Limited,             ",24670092560760        ,15,1421.71,REACTIVE CLEANING                       ,04/08/2022,,Property Department,Cleaning & Janitorial
800182934   ,"Mitie FM Limited,             ",24670092560760        ,16,1320.96,REACTIVE CLEANING                       ,04/08/2022,,Property Department,Cleaning & Janitorial
800182934   ,"Mitie FM Limited,             ",24670092560760        ,17,1421.71,REACTIVE CLEANING                       ,04/08/2022,,Property Department,Cleaning & Janitorial
800182934   ,"Mitie FM Limited,             ",24670092560760        ,18,3727.74,REACTIVE CLEANING                       ,04/08/2022,,Property Department,Cleaning & Janitorial
800182934   ,"Mitie FM Limited,             ",24670092560760        ,19,1153.04,REACTIVE CLEANING                       ,04/08/2022,,Property Department,Cleaning & Janitorial
800182934   ,"Mitie FM Limited,             ",24670092560760        ,20,1502.31,REACTIVE CLEANING                       ,04/08/2022,,Property Department,Cleaning & Janitorial
800182934   ,"Mitie FM Limited,             ",24670092560760        ,21,1690.37,REACTIVE CLEANING                       ,04/08/2022,,Property Department,Cleaning & Janitorial
800182934   ,"Mitie FM Limited,             ",24670092560760        ,22,1502.31,REACTIVE CLEANING                       ,04/08/2022,,Property Department,Cleaning & Janitorial
800182934   ,"Mitie FM Limited,             ",24670092560760        ,23,1502.31,REACTIVE CLEANING                       ,04/08/2022,,Property Department,Cleaning & Janitorial
800182934   ,"Mitie FM Limited,             ",24670092560760        ,24,1502.31,REACTIVE CLEANING                       ,04/08/2022,,Property Department,Cleaning & Janitorial
800182934   ,"Mitie FM Limited,             ",24670092560760        ,25,1690.37,REACTIVE CLEANING                       ,04/08/2022,,Property Department,Cleaning & Janitorial
800182934   ,"Mitie FM Limited,             ",24670092560760        ,26,1421.71,REACTIVE CLEANING                       ,04/08/2022,,Property Department,Cleaning & Janitorial
800182934   ,"Mitie FM Limited,             ",24670092560760        ,27,1690.37,REACTIVE CLEANING                       ,04/08/2022,,Property Department,Cleaning & Janitorial
800182934   ,"Mitie FM Limited,             ",24670092560760        ,28,1556.04,REACTIVE CLEANING                       ,04/08/2022,,Property Department,Cleaning & Janitorial
800182934   ,"Mitie FM Limited,             ",24670092560760        ,29,1421.71,REACTIVE CLEANING                       ,04/08/2022,,Property Department,Cleaning & Janitorial
800182934   ,"Mitie FM Limited,             ",24670092560760        ,30,1421.71,REACTIVE CLEANING                       ,04/08/2022,,Property Department,Cleaning & Janitorial
800182934   ,"Mitie FM Limited,             ",24670092560760        ,31,1421.71,REACTIVE CLEANING                       ,04/08/2022,,Property Department,Cleaning & Janitorial
800182934   ,"Mitie FM Limited,             ",24670092560760        ,32,1220.21,REACTIVE CLEANING                       ,04/08/2022,,Property Department,Cleaning & Janitorial
800182934   ,"Mitie FM Limited,             ",24670092560760        ,33,1690.37,REACTIVE CLEANING                       ,04/08/2022,,Property Department,Cleaning & Janitorial
800182934   ,"Mitie FM Limited,             ",24670092560760        ,34,1556.04,REACTIVE CLEANING                       ,04/08/2022,,Property Department,Cleaning & Janitorial
800182934   ,"Mitie FM Limited,             ",24670092560760        ,35,1690.37,REACTIVE CLEANING                       ,04/08/2022,,Property Department,Cleaning & Janitorial
800182934   ,"Mitie FM Limited,             ",24670092560760        ,36,1421.71,REACTIVE CLEANING                       ,04/08/2022,,Property Department,Cleaning & Janitorial
800182934   ,"Mitie FM Limited,             ",24670092560760        ,37,1421.71,REACTIVE CLEANING                       ,04/08/2022,,Property Department,Cleaning & Janitorial
800182934   ,"Mitie FM Limited,             ",24670092560760        ,38,6010.02,REACTIVE CLEANING                       ,04/08/2022,,Property Department,Cleaning & Janitorial
800182934   ,"Mitie FM Limited,             ",24670092560760        ,39,1421.71,REACTIVE CLEANING                       ,04/08/2022,,Property Department,Cleaning & Janitorial
800182934   ,"Mitie FM Limited,             ",24670092560760        ,40,1824.71,REACTIVE CLEANING                       ,04/08/2022,,Property Department,Cleaning & Janitorial
800182934   ,"Mitie FM Limited,             ",24670092560760        ,41,1153.04,REACTIVE CLEANING                       ,04/08/2022,,Property Department,Cleaning & Janitorial
800182934   ,"Mitie FM Limited,             ",24670092560760        ,42,1153.04,REACTIVE CLEANING                       ,04/08/2022,,Property Department,Cleaning & Janitorial
800182934   ,"Mitie FM Limited,             ",24670092560760        ,43,1287.37,REACTIVE CLEANING                       ,04/08/2022,,Property Department,Cleaning & Janitorial
800182934   ,"Mitie FM Limited,             ",24670092560760        ,44,1287.37,REACTIVE CLEANING                       ,04/08/2022,,Property Department,Cleaning & Janitorial
800182934   ,"Mitie FM Limited,             ",24670092560760        ,45,1421.71,REACTIVE CLEANING                       ,04/08/2022,,Property Department,Cleaning & Janitorial
800182934   ,"Mitie FM Limited,             ",24670092560760        ,46,1220.21,REACTIVE CLEANING                       ,04/08/2022,,Property Department,Cleaning & Janitorial
800182934   ,"Mitie FM Limited,             ",24670092560760        ,47,1421.71,REACTIVE CLEANING                       ,04/08/2022,,Property Department,Cleaning & Janitorial
800182934   ,"Mitie FM Limited,             ",24670092560760        ,48,1287.37,REACTIVE CLEANING                       ,04/08/2022,,Property Department,Cleaning & Janitorial
800182934   ,"Mitie FM Limited,             ",24670092560760        ,49,1556.04,REACTIVE CLEANING                       ,04/08/2022,,Property Department,Cleaning & Janitorial
800182934   ,"Mitie FM Limited,             ",24670092560760        ,50,1220.21,REACTIVE CLEANING                       ,04/08/2022,,Property Department,Cleaning & Janitorial
800182934   ,"Mitie FM Limited,             ",24670092560760        ,51,1421.71,REACTIVE CLEANING                       ,04/08/2022,,Property Department,Cleaning & Janitorial
800182934   ,"Mitie FM Limited,             ",24670092560760        ,52,1690.37,REACTIVE CLEANING                       ,04/08/2022,,Property Department,Cleaning & Janitorial
800182934   ,"Mitie FM Limited,             ",24670092560760        ,53,1502.31,REACTIVE CLEANING                       ,04/08/2022,,Property Department,Cleaning & Janitorial
800182934   ,"Mitie FM Limited,             ",24670092560760        ,54,1421.71,REACTIVE CLEANING                       ,04/08/2022,,Property Department,Cleaning & Janitorial
800182934   ,"Mitie FM Limited,             ",24670092560760        ,55,1153.04,REACTIVE CLEANING                       ,04/08/2022,,Property Department,Cleaning & Janitorial
800182934   ,"Mitie FM Limited,             ",24670092560760        ,56,1153.04,REACTIVE CLEANING                       ,04/08/2022,,Property Department,Cleaning & Janitorial
800182934   ,"Mitie FM Limited,             ",24670092560760        ,57,1421.71,REACTIVE CLEANING                       ,04/08/2022,,Property Department,Cleaning & Janitorial
800182934   ,"Mitie FM Limited,             ",24670092560760        ,58,1690.37,REACTIVE CLEANING                       ,04/08/2022,,Property Department,Cleaning & Janitorial
800182934   ,"Mitie FM Limited,             ",24670092560760        ,59,1153.04,REACTIVE CLEANING                       ,04/08/2022,,Property Department,Cleaning & Janitorial
800182934   ,"Mitie FM Limited,             ",24670092560760        ,60,1220.21,REACTIVE CLEANING                       ,04/08/2022,,Property Department,Cleaning & Janitorial
800182934   ,"Mitie FM Limited,             ",24670092560760        ,61,1421.71,REACTIVE CLEANING                       ,04/08/2022,,Property Department,Cleaning & Janitorial
800182934   ,"Mitie FM Limited,             ",24670092560760        ,62,1220.21,REACTIVE CLEANING                       ,04/08/2022,,Property Department,Cleaning & Janitorial
800182934   ,"Mitie FM Limited,             ",24670092560760        ,63,1153.04,REACTIVE CLEANING                       ,04/08/2022,,Property Department,Cleaning & Janitorial
800182934   ,"Mitie FM Limited,             ",24670092560760        ,64,1421.71,REACTIVE CLEANING                       ,04/08/2022,,Property Department,Cleaning & Janitorial
800182934   ,"Mitie FM Limited,             ",24670092560760        ,65,1690.37,REACTIVE CLEANING                       ,04/08/2022,,Property Department,Cleaning & Janitorial
800182934   ,"Mitie FM Limited,             ",24670092560760        ,66,1233.64,REACTIVE CLEANING                       ,04/08/2022,,Property Department,Cleaning & Janitorial
800182934   ,"Mitie FM Limited,             ",24670092560760        ,67,1287.37,REACTIVE CLEANING                       ,04/08/2022,,Property Department,Cleaning & Janitorial
800182934   ,"Mitie FM Limited,             ",24670092560760        ,68,1421.71,REACTIVE CLEANING                       ,04/08/2022,,Property Department,Cleaning & Janitorial
800182934   ,"Mitie FM Limited,             ",24670092560760        ,69,1287.37,REACTIVE CLEANING                       ,04/08/2022,,Property Department,Cleaning & Janitorial
800182934   ,"Mitie FM Limited,             ",24670092560760        ,70,1287.37,REACTIVE CLEANING                       ,04/08/2022,,Property Department,Cleaning & Janitorial
800182934   ,"Mitie FM Limited,             ",24670092560760        ,71,1690.36,REACTIVE CLEANING                       ,04/08/2022,,Property Department,Cleaning & Janitorial
800182934   ,"Mitie FM Limited,             ",24670092560760        ,72,1421.71,REACTIVE CLEANING                       ,04/08/2022,,Property Department,Cleaning & Janitorial
800182934   ,"Mitie FM Limited,             ",24670092560760        ,73,1287.37,REACTIVE CLEANING                       ,04/08/2022,,Property Department,Cleaning & Janitorial
800182934   ,"Mitie FM Limited,             ",24670092560760        ,74,1388.12,REACTIVE CLEANING                       ,04/08/2022,,Property Department,Cleaning & Janitorial
800182934   ,"Mitie FM Limited,             ",24670092560760        ,75,1959.04,REACTIVE CLEANING                       ,04/08/2022,,Property Department,Cleaning & Janitorial
800182934   ,"Mitie FM Limited,             ",24670092560760        ,76,1287.37,REACTIVE CLEANING                       ,04/08/2022,,Property Department,Cleaning & Janitorial
800182934   ,"Mitie FM Limited,             ",24670092560760        ,77,1354.54,REACTIVE CLEANING                       ,04/08/2022,,Property Department,Cleaning & Janitorial
800182934   ,"Mitie FM Limited,             ",24670092560760        ,78,1556.04,REACTIVE CLEANING                       ,04/08/2022,,Property Department,Cleaning & Janitorial
800182934   ,"Mitie FM Limited,             ",24670092560760        ,79,1421.71,REACTIVE CLEANING                       ,04/08/2022,,Property Department,Cleaning & Janitorial
800182934   ,"Mitie FM Limited,             ",24670092560760        ,80,1690.37,REACTIVE CLEANING                       ,04/08/2022,,Property Department,Cleaning & Janitorial
800182934   ,"Mitie FM Limited,             ",24670092560760        ,81,1690.37,REACTIVE CLEANING                       ,04/08/2022,,Property Department,Cleaning & Janitorial
800182934   ,"Mitie FM Limited,             ",24670092560760        ,82,1556.04,REACTIVE CLEANING                       ,04/08/2022,,Property Department,Cleaning & Janitorial
800182934   ,"Mitie FM Limited,             ",24670092560760        ,83,1421.71,REACTIVE CLEANING                       ,04/08/2022,,Property Department,Cleaning & Janitorial
800182934   ,"Mitie FM Limited,             ",24670092560760        ,84,1233.64,REACTIVE CLEANING                       ,04/08/2022,,Property Department,Cleaning & Janitorial
800182934   ,"Mitie FM Limited,             ",24670092560760        ,85,1421.71,REACTIVE CLEANING                       ,04/08/2022,,Property Department,Cleaning & Janitorial
800182934   ,"Mitie FM Limited,             ",24670092560760        ,86,1556.04,REACTIVE CLEANING                       ,04/08/2022,,Property Department,Cleaning & Janitorial
800182934   ,"Mitie FM Limited,             ",24670092560760        ,87,1556.04,REACTIVE CLEANING                       ,04/08/2022,,Property Department,Cleaning & Janitorial
800182934   ,"Mitie FM Limited,             ",24670092560760        ,88,1824.71,REACTIVE CLEANING                       ,04/08/2022,,Property Department,Cleaning & Janitorial
800182934   ,"Mitie FM Limited,             ",24670092560760        ,89,1153.04,REACTIVE CLEANING                       ,04/08/2022,,Property Department,Cleaning & Janitorial
800182934   ,"Mitie FM Limited,             ",24670092560760        ,90,1287.37,REACTIVE CLEANING                       ,04/08/2022,,Property Department,Cleaning & Janitorial
800182934   ,"Mitie FM Limited,             ",24670092560760        ,91,1287.37,REACTIVE CLEANING                       ,04/08/2022,,Property Department,Cleaning & Janitorial
800182934   ,"Mitie FM Limited,             ",24670092560760        ,92,1287.37,REACTIVE CLEANING                       ,04/08/2022,,Property Department,Cleaning & Janitorial
800182934   ,"Mitie FM Limited,             ",24670092560760        ,93,1220.21,REACTIVE CLEANING                       ,04/08/2022,,Property Department,Cleaning & Janitorial
800182934   ,"Mitie FM Limited,             ",24670092560760        ,94,1153.04,REACTIVE CLEANING                       ,04/08/2022,,Property Department,Cleaning & Janitorial
800182934   ,"Mitie FM Limited,             ",24670092560760        ,95,634.44,REACTIVE CLEANING                       ,04/08/2022,,Property Department,Cleaning & Janitorial
800182934   ,"Mitie FM Limited,             ",24670092560760        ,96,121.39,REACTIVE CLEANING                       ,04/08/2022,,Property Department,Cleaning & Janitorial
800182934   ,"Mitie FM Limited,             ",24670092560760        ,97,1153.04,PLANNED SOFT FM CONTRACT                ,04/08/2022,,Property Department,Facilities & Management Services
220822K     ,ENTEL UK LTD                  ,248315                ,1,540,RADIO                                   ,25/08/2022,1091,Enterprise Application Group (ICT),ICT
220822K     ,ENTEL UK LTD                  ,248315                ,2,11,RADIO                                   ,25/08/2022,,Enterprise Application Group (ICT),ICT
220822K     ,ENTEL UK LTD                  ,248315                ,3,540,RADIO                                   ,25/08/2022,,Enterprise Application Group (ICT),ICT
220822K     ,ENTEL UK LTD                  ,248423                ,1,453.5,RADIO                                   ,25/08/2022,453.5,Enterprise Application Group (ICT),ICT
230822K     ,ENTEL UK LTD                  ,248591                ,1,453.5,RADIO                                   ,30/08/2022,453.5,Enterprise Application Group (ICT),ICT
030822P     ,THE HOME OFFICE               ,2608275               ,1,154391.24,RADIO SERVICES                          ,08/08/2022,154391.24,Enterprise Application Group (ICT),ICT
170822P     ,THE HOME OFFICE               ,2610217               ,1,154391.24,RADIO SERVICES                          ,25/08/2022,173871.31,Enterprise Application Group (ICT),ICT
170822P     ,THE HOME OFFICE               ,2610217               ,2,19480.07,RADIO SERVICES                          ,25/08/2022,,Enterprise Application Group (ICT),ICT
144034      ,KINGSLEY NAPLEY LLP           ,265578                ,1,29737.5,LEGAL PROFESSIONAL FEES-GENERL          ,04/08/2022,29737.5,Grenfell Investigation Legal Costs,Legal Services
144034      ,KINGSLEY NAPLEY LLP           ,265579                ,1,3381,LEGAL PROFESSIONAL FEES-GENERL          ,04/08/2022,3381,Grenfell Investigation Legal Costs,Legal Services
090822K     ,Corporate Document Services   ,267100                ,1,2058.36,GENERAL CONSUMABLES                     ,15/08/2022,2058.36,Technical & Support Service,Emergency Services
144037      ,KINGSLEY NAPLEY LLP           ,267364                ,1,29217,LEGAL PROFESSIONAL FEES-GENERL          ,18/08/2022,29217,Grenfell Investigation Legal Costs,Legal Services
144037      ,KINGSLEY NAPLEY LLP           ,267365                ,1,315,LEGAL PROFESSIONAL FEES-GENERL          ,18/08/2022,315,Grenfell Investigation Legal Costs,Legal Services
260722B PROP,HARRIS INSTALLATION SERVICES  ,29079                 ,1,566,REMOVALS                                ,01/08/2022,566,Property Department,Facilities & Management Services
020822B     ,GFG EUROPE LTD                ,29101                 ,1,15,REPAIR & MAINTENANCE                    ,18/08/2022,644.15,Technical & Support Service,Fire & Rescue
020822B     ,GFG EUROPE LTD                ,29101                 ,2,60,REPAIR & MAINTENANCE                    ,18/08/2022,,Technical & Support Service,Fire & Rescue
020822B     ,GFG EUROPE LTD                ,29101                 ,3,75.65,REPAIR & MAINTENANCE                    ,18/08/2022,,Technical & Support Service,Fire & Rescue
020822B     ,GFG EUROPE LTD                ,29101                 ,4,246.5,REPAIR & MAINTENANCE                    ,18/08/2022,,Technical & Support Service,Fire & Rescue
020822B     ,GFG EUROPE LTD                ,29101                 ,5,60,REPAIR & MAINTENANCE                    ,18/08/2022,,Technical & Support Service,Fire & Rescue
020822B     ,GFG EUROPE LTD                ,29101                 ,6,187,REPAIR & MAINTENANCE                    ,18/08/2022,,Technical & Support Service,Fire & Rescue
290722B     ,DRAEGER SAFETY UK LIMITED     ,2910280939            ,1,3130.5,PROTECTIVE EQUIPT - PARTS               ,04/08/2022,3130.5,Technical & Support Service,Emergency Services
290722B     ,DRAEGER SAFETY UK LIMITED     ,2910280940            ,1,421.25,PROTECTIVE EQUIPT - PARTS               ,04/08/2022,1104.75,Technical & Support Service,Emergency Services
290722B     ,DRAEGER SAFETY UK LIMITED     ,2910280940            ,2,683.5,PROTECTIVE EQUIPT - PARTS               ,04/08/2022,,Technical & Support Service,Emergency Services
290722B     ,DRAEGER SAFETY UK LIMITED     ,2910280941            ,1,645.5,PROTECTIVE EQUIPT - PARTS               ,04/08/2022,645.5,Technical & Support Service,Emergency Services
290722B     ,DRAEGER SAFETY UK LIMITED     ,2910281069            ,1,404,PROTECTIVE EQUIPT - PARTS               ,04/08/2022,404,Technical & Support Service,Emergency Services
290722B     ,DRAEGER SAFETY UK LIMITED     ,2910283077            ,1,309.6,PROTECTIVE EQUIPT - PARTS               ,04/08/2022,309.6,Technical & Support Service,Emergency Services
180722B     ,DRAEGER SAFETY UK LIMITED     ,2910283078            ,1,4099.6,PROTECTIVE EQUIPT - PARTS               ,01/08/2022,4099.6,Technical & Support Service,Emergency Services
020822B     ,DRAEGER SAFETY UK LIMITED     ,2910283081            ,1,2057.04,PROTECTIVE EQUIPT - PARTS               ,08/08/2022,2057.04,Technical & Support Service,Emergency Services
290722B     ,DRAEGER SAFETY UK LIMITED     ,2910283082            ,1,727.56,PROTECTIVE EQUIPT - PARTS               ,04/08/2022,727.56,Technical & Support Service,Emergency Services
180722B     ,DRAEGER SAFETY UK LIMITED     ,2910283083            ,1,1024.9,PROTECTIVE EQUIPT - PARTS               ,01/08/2022,1024.9,Technical & Support Service,Emergency Services
290722B     ,DRAEGER SAFETY UK LIMITED     ,2910283085            ,1,973.44,PROTECTIVE EQUIPT - PARTS               ,04/08/2022,,Technical & Support Service,Emergency Services
290722B     ,DRAEGER SAFETY UK LIMITED     ,2910283085            ,2,58.32,PROTECTIVE EQUIPT - PARTS               ,04/08/2022,1031.76,Technical & Support Service,Emergency Services
290722B     ,DRAEGER SAFETY UK LIMITED     ,2910283736            ,1,368.8,PROTECTIVE EQUIPT - PARTS               ,08/08/2022,368.8,Technical & Support Service,Emergency Services
250722B     ,DRAEGER SAFETY UK LIMITED     ,2910283791            ,1,45.6,TELEMETRY MAINTENANCE                   ,08/08/2022,,Technical & Support Service,Fire & Rescue
250722B     ,DRAEGER SAFETY UK LIMITED     ,2910283791            ,2,363.65,TELEMETRY MAINTENANCE                   ,08/08/2022,,Technical & Support Service,Fire & Rescue
250722B     ,DRAEGER SAFETY UK LIMITED     ,2910283791            ,3,45.6,TELEMETRY MAINTENANCE                   ,08/08/2022,,Technical & Support Service,Fire & Rescue
250722B     ,DRAEGER SAFETY UK LIMITED     ,2910283791            ,4,45.6,TELEMETRY MAINTENANCE                   ,08/08/2022,,Technical & Support Service,Fire & Rescue
250722B     ,DRAEGER SAFETY UK LIMITED     ,2910283791            ,5,363.65,TELEMETRY MAINTENANCE                   ,08/08/2022,,Technical & Support Service,Fire & Rescue
250722B     ,DRAEGER SAFETY UK LIMITED     ,2910283791            ,6,45.6,TELEMETRY MAINTENANCE                   ,08/08/2022,,Technical & Support Service,Fire & Rescue
250722B     ,DRAEGER SAFETY UK LIMITED     ,2910283791            ,7,363.65,TELEMETRY MAINTENANCE                   ,08/08/2022,,Technical & Support Service,Fire & Rescue
250722B     ,DRAEGER SAFETY UK LIMITED     ,2910283791            ,8,45.6,TELEMETRY MAINTENANCE                   ,08/08/2022,,Technical & Support Service,Fire & Rescue
250722B     ,DRAEGER SAFETY UK LIMITED     ,2910283791            ,9,363.65,TELEMETRY MAINTENANCE                   ,08/08/2022,,Technical & Support Service,Fire & Rescue
250722B     ,DRAEGER SAFETY UK LIMITED     ,2910283791            ,10,45.6,TELEMETRY MAINTENANCE                   ,08/08/2022,2568.7,Technical & Support Service,Fire & Rescue
250722B     ,DRAEGER SAFETY UK LIMITED     ,2910283791            ,11,363.65,TELEMETRY MAINTENANCE                   ,08/08/2022,,Technical & Support Service,Fire & Rescue
250722B     ,DRAEGER SAFETY UK LIMITED     ,2910283791            ,12,45.6,TELEMETRY MAINTENANCE                   ,08/08/2022,,Technical & Support Service,Fire & Rescue
250722B     ,DRAEGER SAFETY UK LIMITED     ,2910283791            ,13,363.65,TELEMETRY MAINTENANCE                   ,08/08/2022,,Technical & Support Service,Fire & Rescue
250722B     ,DRAEGER SAFETY UK LIMITED     ,2910283791            ,14,45.6,TELEMETRY MAINTENANCE                   ,08/08/2022,,Technical & Support Service,Fire & Rescue
250722B     ,DRAEGER SAFETY UK LIMITED     ,2910283791            ,15,22,TELEMETRY MAINTENANCE                   ,08/08/2022,,Technical & Support Service,Fire & Rescue
020822B     ,DRAEGER SAFETY UK LIMITED     ,2910283836            ,1,423,PROTECTIVE EQUIPT - PARTS               ,08/08/2022,423,Technical & Support Service,Emergency Services
050822B     ,DRAEGER SAFETY UK LIMITED     ,2910283947            ,1,35,PROTECTIVE EQUIPT - PARTS               ,11/08/2022,,Technical & Support Service,Emergency Services
050822B     ,DRAEGER SAFETY UK LIMITED     ,2910283947            ,2,30,PROTECTIVE EQUIPT - PARTS               ,11/08/2022,,Technical & Support Service,Emergency Services
050822B     ,DRAEGER SAFETY UK LIMITED     ,2910283947            ,3,280.08,PROTECTIVE EQUIPT - PARTS               ,11/08/2022,,Technical & Support Service,Emergency Services
050822B     ,DRAEGER SAFETY UK LIMITED     ,2910283947            ,4,6.4,PROTECTIVE EQUIPT - PARTS               ,11/08/2022,,Technical & Support Service,Emergency Services
050822B     ,DRAEGER SAFETY UK LIMITED     ,2910283947            ,5,59.9,PROTECTIVE EQUIPT - PARTS               ,11/08/2022,1144.58,Technical & Support Service,Emergency Services
050822B     ,DRAEGER SAFETY UK LIMITED     ,2910283947            ,6,683.5,PROTECTIVE EQUIPT - PARTS               ,11/08/2022,,Technical & Support Service,Emergency Services
050822B     ,DRAEGER SAFETY UK LIMITED     ,2910283947            ,7,38,PROTECTIVE EQUIPT - PARTS               ,11/08/2022,,Technical & Support Service,Emergency Services
050822B     ,DRAEGER SAFETY UK LIMITED     ,2910283947            ,8,11.7,PROTECTIVE EQUIPT - PARTS               ,11/08/2022,,Technical & Support Service,Emergency Services
290722B     ,DRAEGER SAFETY UK LIMITED     ,2910284023            ,1,405,PROTECTIVE EQUIPT - PARTS               ,11/08/2022,405,Technical & Support Service,Emergency Services
020822B     ,DRAEGER SAFETY UK LIMITED     ,2910284391            ,1,353.16,REPAIR & MAINTENANCE                    ,15/08/2022,375.16,Technical & Support Service,Furniture & Soft Furnishings
020822B     ,DRAEGER SAFETY UK LIMITED     ,2910284391            ,2,22,REPAIR & MAINTENANCE                    ,15/08/2022,,Technical & Support Service,Furniture & Soft Furnishings
090822B     ,DRAEGER SAFETY UK LIMITED     ,2910284467            ,1,20.6,PROTECTIVE EQUIPT - PARTS               ,15/08/2022,,Technical & Support Service,Emergency Services
090822B     ,DRAEGER SAFETY UK LIMITED     ,2910284467            ,2,1010,PROTECTIVE EQUIPT - PARTS               ,15/08/2022,,Technical & Support Service,Emergency Services
090822B     ,DRAEGER SAFETY UK LIMITED     ,2910284467            ,3,320.8,PROTECTIVE EQUIPT - PARTS               ,15/08/2022,,Technical & Support Service,Emergency Services
090822B     ,DRAEGER SAFETY UK LIMITED     ,2910284467            ,4,249,PROTECTIVE EQUIPT - PARTS               ,15/08/2022,1600.4,Technical & Support Service,Emergency Services
020822B     ,DRAEGER SAFETY UK LIMITED     ,2910284583            ,1,1008.9,PROTECTIVE EQUIPT - PARTS               ,18/08/2022,1008.9,Technical & Support Service,Emergency Services
090822B     ,DRAEGER SAFETY UK LIMITED     ,2910285144            ,1,4717.5,PROTECTIVE EQUIPT - PARTS               ,22/08/2022,4717.5,Technical & Support Service,Emergency Services
270722 PROP ,HARRIS INSTALLATION SERVICES  ,29132                 ,1,566,REMOVALS                                ,01/08/2022,566,Property Department,Facilities & Management Services
260722B PROP,HARRIS INSTALLATION SERVICES  ,29232                 ,1,456,REMOVALS                                ,01/08/2022,456,Property Department,Facilities & Management Services
260722B PROP,HARRIS INSTALLATION SERVICES  ,29260                 ,1,315,REMOVALS                                ,01/08/2022,315,Property Department,Facilities & Management Services
270722 PROP ,HARRIS INSTALLATION SERVICES  ,29570                 ,1,641,REMOVALS                                ,01/08/2022,641,Property Department,Facilities & Management Services
270722 PROP ,HARRIS INSTALLATION SERVICES  ,29640                 ,1,851,REMOVALS                                ,01/08/2022,851,Property Department,Facilities & Management Services
120822B PROP,Tetra Tech                    ,30037981              ,1,20149.74,PREM.COMPLI &AUDIT PRO.SER.PLN          ,18/08/2022,20149.74,Property Department,Consultancy
270722 PROP ,Tetra Tech                    ,30038102              ,1,6185,ESTATES PROFESSIONAL SERV.REA           ,11/08/2022,6185,Property Department,Consultancy
160822K     ,Tetra Tech                    ,30039115              ,1,26750,ESTATES PROFESSIONAL SERV.REA           ,25/08/2022,26750,Property Department,Consultancy
120822P     ,BlackBerry Ltd                ,3100035791            ,1,10800,SOFTWARE COTS                           ,18/08/2022,,Enterprise Application Group (ICT),ICT
120822P     ,BlackBerry Ltd                ,3100035791            ,2,13800,SOFTWARE COTS                           ,18/08/2022,,Enterprise Application Group (ICT),ICT
120822P     ,BlackBerry Ltd                ,3100035791            ,3,10800,SOFTWARE COTS                           ,18/08/2022,35400,Enterprise Application Group (ICT),ICT
220822K1    ,LEEDAN PACKAGING LIMITED      ,31115                 ,1,760.5,GENERAL CONSUMABLES                     ,25/08/2022,760.5,Technical & Support Service,Emergency Services
144049      ,L B OF LAMBETH                ,327283257 2017/18     ,1,23234.5,PROPERTY RATES                          ,15/08/2022,23234.5,Property Department,Facilities & Management Services
090822K     ,B & A TEXTILES LTD            ,3522                  ,1,590,UNIFORMS - POMS                         ,15/08/2022,,Technical & Support Service,Clothing
090822K     ,B & A TEXTILES LTD            ,3522                  ,2,97,UNIFORMS - POMS                         ,15/08/2022,,Technical & Support Service,Clothing
090822K     ,B & A TEXTILES LTD            ,3522                  ,3,24.25,UNIFORMS - POMS                         ,15/08/2022,,Technical & Support Service,Clothing
090822K     ,B & A TEXTILES LTD            ,3522                  ,4,24.25,UNIFORMS - POMS                         ,15/08/2022,,Technical & Support Service,Clothing
090822K     ,B & A TEXTILES LTD            ,3522                  ,5,24.25,UNIFORMS - POMS                         ,15/08/2022,759.75,Technical & Support Service,Clothing
090822K     ,B & A TEXTILES LTD            ,3523                  ,1,295,UNIFORMS - POMS                         ,15/08/2022,707.25,Technical & Support Service,Clothing
090822K     ,B & A TEXTILES LTD            ,3523                  ,2,242.5,UNIFORMS - POMS                         ,15/08/2022,,Technical & Support Service,Clothing
090822K     ,B & A TEXTILES LTD            ,3523                  ,3,24.25,UNIFORMS - POMS                         ,15/08/2022,,Technical & Support Service,Clothing
090822K     ,B & A TEXTILES LTD            ,3523                  ,4,145.5,UNIFORMS - POMS                         ,15/08/2022,,Technical & Support Service,Clothing
240822K     ,Harwell Technical Services Ltd,35373                 ,1,275,GENERAL                                 ,30/08/2022,275,Communications,Consultancy
120822B     ,TNT UK LTD Domestic           ,3589015               ,1,380.65,COURIER SERVICES                        ,18/08/2022,380.65,Information Management (ICT),Mail Services
144034      ,OPUS 2 INTERNATIONAL LIMITED  ,362603                ,1,750,SOFTWARE COTS                           ,04/08/2022,750,Grenfell Investigation Legal Costs,ICT
144034      ,OPUS 2 INTERNATIONAL LIMITED  ,362663                ,1,600,SOFTWARE COTS                           ,04/08/2022,600,Grenfell Investigation Legal Costs,ICT
144037      ,OPUS 2 INTERNATIONAL LIMITED  ,363222                ,1,550,SOFTWARE COTS                           ,15/08/2022,550,Grenfell Investigation Legal Costs,ICT
